{"text_format":"1","workbook":"xlsx","n_sheets":3,"sheets":["IBA","IBA-prime","Sheet1"],"not_rendered":{"charts":1,"images":0,"macros":1,"external_links":0,"defined_names":104,"comments":0,"pivot_tables":0},"unopened":[],"bounds":{"document_bytes":16777216,"sheet_cells":100000,"rows_first":2000,"rows_last":500,"rows_between":2000,"halvings":0,"cell_chars":16384,"cell_head_chars":4096},"cells_cut":0,"cells_raw":0,"read":"whole","date_system":"1900"}

{"sheet":"IBA","index":0,"n_rows":774,"n_cols":121,"rows_kept":774,"cut":false,"hidden":false,"merged":[]}
["NUCLEAR REACTION ANALYSIS"]
["ENTER VALUES OF DESIRED REACTION IN YELLOW CELLS",null,null,null,null,null,null,null,null,null,null,null,null,null,null,null,null,null,null,null,null,null,null,null,null,null,null,null,null,null,null,null,null,null,null,null,null,null,null,null,null,null,null,null,null,null,null,null,null,null,null,null,null,null,null,null,null,null,null,null,null,null,null,null,null,null,null,null,null,null,null,null,null,null,"x",null,null,null,null,null,null,null,null,null,null,null,null,null,null,null,null,null,null,null,null,null,null,null,null,null,null,null,null,null,null,null,null,null,null,null,null,null,null,null,null,null,null,null,null,null,"X"]
["ENTER EXCITED STATE E LEVEL FOR NON-GROUND STATE REACTIONS"]
[]
["IBA INPUT GRID",null,"Z","M",null,null,"TARGET MATRIX GRID",null,null,null,null,"Mass in amu, Energy in MeV."]
["Projectile=",null,6,12,null,null,"Zmatrix=",42,null,null,null,"Z1,M1=incident atomic #(zI), mass(mI)"]
["Target=",null,1,1,null,null,"Mmatrix=",96,null,null,null,"Z2,M2=target atomic #(zT), mass(mT)"]
["Reaction Product=",null,1,1,null,null,null,null,null,null,null,"Z3,M3=detected reaction particle atomic #(zD),mass(mD)"]
["Incident Energy=",null,null,12,"MeV",null,"Vcoulomb=",{"$f":"((D6+D7)/D7)*C6*C7/(D6^0.33+D7^0.33)","v":23.849247666068742},"MeV",null,null,"Z4,M4=residual atomic #(zR),mass(mR)"]
["Detector Angle=",null,null,30,"degrees"]
["Mylar thicknes=",null,"works up to 19F",13,"microns"]
["Excited state E=",null,null,null,{"$f":"\"MeV above ground state \"&$AC$65","v":"MeV above ground state 12C"}]
[]
["NUCLEAR REACTION ANALYSIS INFORMATION"]
["Reaction",null,{"$f":"($AC$62&$AC$58&$AC$65)","v":"1H(12C,1H)12C"}]
["Q-Value",null,null,{"$f":"((INDEX($Z$69:$DQ$310,$D$6+1,$C$6+1+1)+INDEX($Z$69:$DQ$310,$D$7+1,$C$7+1+1)-INDEX($Z$69:$DQ$310,$D$8+1,$C$8+1+1)-INDEX($Z$69:$DQ$310,$D$32+1,$B$32+1+1))*931.48)-$D$12","v":0},"MeV","Matrix",null,null,null,null,null,null,null,null,null,null,null,null,"180/PI",{"$f":"180/PI()","v":57.295779513082323}]
["Detected Energy (Ed)",null,null,{"$f":"B86","v":2.3332724731358194},"MeV",{"$f":"D67","v":{"$error":"#NUM!"}},"RBS","ERD"]
["Rutherford Cross Section ",null,null,null,null,null,{"$f":"D46/1000","v":{"$error":"#NUM!"}},{"$f":"D69/1000","v":0.33712793921253031},"b/sr"]
[" ",null,null,null,null,null,null,null,null,null,null,null,null,null,null,null,"elasatic calculations"]
["REACTION CALCULATIONS CHECKS AND INFORMATION",null,null,null,null,null,null,null,null,null,null,null,null,null,null,null,"ERD Calculation of COM values"]
["Mass of comp nucl.=",null,null,{"$f":"INDEX($Z$69:$DQ$310,$D$6+$D$7+1,$C$6+$C$7+1+1)","v":13.0057387},"M1=",{"$f":"INDEX($Z$69:$DQ$310,$D$6+1,$C$6+1+1)","v":12},"M2=",{"$f":"INDEX($Z$69:$DQ$310,$D$7+1,$C$7+1+1)","v":1.00782522},null,null,null,null,null,null,null,null,"zeta",{"$f":"D10","v":30}]
["Compound Nucleus",null,null,{"$f":"INDEX($Z$69:$DQ$310,($D$6+$D$7)+1,1)&INDEX($Z$69:$DQ$310,1,($C$6+$C$7+1)+1)","v":"13N"},"M3=",{"$f":"INDEX($Z$69:$DQ$310,$D$8+1,$C$8+1+1)","v":1.00782522},"M4=",{"$f":"INDEX($Z$69:$DQ$310,$D$32+1,$B$32+1+1)","v":12},null,null,null,null,null,null,null,null,"phi",{"$f":"2*R21","v":60}]
["E of Compound Nucl.=",null,null,{"$f":"D16+D9*(1-F21/D21)","v":0.92796454537411321},"MeV ","Eo(cm)=",{"$f":"T47","v":0.92307692307692313},"MeV",null,null,null,null,null,null,null,null,"theta",{"$f":"180-R22","v":120}]
["Threshold =",null,null,{"$f":"-1*((F21+H21)/H21)*D16","v":0},"MeV","E(coulomb)=",{"$f":"(($C$7*$C$6*10000000000000*$T$59)/(1.4*($D$7^(1/3)+$D$6^(1/3))))*(1+$D$6/$D$7)","v":24.381352155498735},"MeV",null,null,null,null,null,null,null,null,null,null,null,null,null,null,null,null,null,"macro for angle scans",null,null,null,null,null,null,null,null,null,"macro for energy scans"]
[{"$f":"+$AC$62&\"+\"&+$AC$61&\" E level on the \"&$D$22&\" NDS=\"","v":"1H+12C E level on the 13N NDS="},null,null,null,{"$f":"((F21-$D$6)+(H21-$D$7)-($D$21-ROUND($D$21,0)))*931.48","v":1.9435516495997751}]
[]
["Emitted Energy (E3)",null,null,{"$f":"$T$31","v":2.556213017751479},"MeV",null,null,null,null,null,null,null,null,null,null,null,null,"Matrix k's","mumat",{"$f":"(H7/$D$6)","v":8},"kmat",{"$f":"(($W$71+($T$27^2-$W$73)^0.5)/(1+$T$27))^2","v":0.96702865462604082}]
[null,null,null,null,null,null,null,null,null,null,null,null,null,null,null,null,null,null,null,null,"Reaction particle angle"]
[null,null,null,null,null,null,null,null,null,null,null,null,null,null,null,null,null,null,"mu",{"$f":"$D$7/$D$6","v":8.3333333333333329E-2},"psi",{"$f":"$D$10","v":30},"cm angle",{"$f":"180-ASIN((T33/(T30*T58))^0.5*SIN(D36/T16))*T16","v":120.00000000000001}]
["RESIDUAL SPECIES INFORMATION",null,null,null,null,null,null,null,null,null,null,null,null,null,null,null,null,null,"etotal",{"$f":"$D$9+$D$16","v":12},"psirad",{"$f":"($D$10/(180/PI()))","v":0.52359877559829882},null,{"$f":"((T31/T30)/T58)^0.5","v":1.7320508075688772}]
[null,null,null,"(lab)",null,"(c.m.)",null,null,null,null,null,null,null,null,null,null,"B<D",{"$f":"IF(T56<T58,1,0)","v":0},"energy3",{"$f":"$T$30*$T$56*($V$31+($T$58/$T$56-$V$35^2)^0.5)^2","v":2.556213017751479},"cospsi",{"$f":"COS($V$30)","v":0.86602540378443871}]
["Z4=",{"$f":"$C$7+$T$42","v":6},"M4=",{"$f":"$D$7+$T$43","v":12},null,null,null,null,null,null,null,null,null,null,null,null,"B>D",{"$f":"IF(R31=1,0,1)","v":1},null,null,"zeta",{"$f":"((F22*T31/(H22*T35))^0.5*SIN(D43/T16))*T16","v":4.3193664896276092}]
["Species=",null,{"$f":"$AC$65","v":"12C"},null,null,null,null,null,null,"Cross Section Transformation Calculations",null,null,null,null,null,null,"psi<sin-1(D/B^.5)",{"$f":"IF(D10<ASIN((T58/T56)^0.5),1,0)","v":0},null,{"$f":"T31","v":2.556213017751479}]
["Residual Energy=",null,null,{"$f":"($T$30-$T$31)","v":9.4437869822485219},"MeV",{"$f":"$T$30*$T$57","v":7.1005917159763315E-2},"MeV"]
["Residual angle=",null,null,{"$f":"V32","v":4.3193664896276092},"deg.",{"$f":"180-$X$29","v":59.999999999999986},"deg",null,null,"Heavy ion is Projectile (the experiment system)",null,null,null,null,null,null,"A<C",{"$f":"IF(T55<T57,1,0)","v":0},"energy4",{"$f":"T30-T31","v":9.4437869822485219},"sinpsi",{"$f":"SIN($V$30)","v":0.49999999999999994}]
["Detector angle=",null,null,{"$f":"D10","v":30},"deg.",{"$f":"$X$29","v":120.00000000000001},"deg",null,null,"CS trabsform to com from lab for light product (M3)",null,null,null,null,null,null,"A>C",{"$f":"IF(R35=1,0,1)","v":1},"+",{"$f":"$T$30*$T$55*(COS($V$32/$T$16)+($T$57/$T$55-SIN($V$32/$T$16)^2)^0.5)^2","v":10.90712075476951}]
["Detected energy=",null,null,{"$f":"IF(ISERR($T$35)=1,\"N.Det.\",$T$35)","v":9.4437869822485219},{"$f":"IF(ISERR($T$35)=1,\"\",\"MeV\")","v":"MeV"},null,"MeV",null,null,null,null,null,null,null,null,null,"psi<sin-1(C/A^.5)",{"$f":"IF(D10<ASIN((T57/T55)^0.5),1,0)","v":0},"-",{"$f":"$T$30*$T$55*(COS($V$32/$T$16)-($T$57/$T$55-SIN($V$32/$T$16)^2)^0.5)^2","v":9.4525946887396568}]
[null,null,null,null,null,null,null,null,null,"CS3lab/CS3com=",null,{"$f":"(T31/T30)/(T55*T57*(T58/T56-SIN(D36/T16)^2))^0.5","v":3.4641016151377544}]
["RBS INFORMATION",null,null,"(lab)",null,"(c.m.)",null,null,null,"elastic=",null,{"$f":"(4*COS(D10/T16))","v":3.4641016151377548},"com","mb/sr"]
["Scattered Particle",null,null,{"$f":"$AC$61","v":"12C"},null,null,null,null,null,null,"E(MeV)","lab/com","mb/sr","lab",null,null,null,null,"qvalue",{"$f":"D16","v":0},"sinpsi2",{"$f":"($V$35^2)","v":0.24999999999999994}]
["Target Atom",null,null,{"$f":"$AC$62","v":"1H"},null,null,null,null,null,null,null,{"$f":"+L38","v":3.4641016151377544},"from ' system","mb/sr"]
["Incident Energy=",null,null,{"$f":"$D$9","v":12},"MeV",{"$f":"(D42/(1+$D$6/$D$7))","v":0.92307692307692313},"MeV",null,null,null,{"$f":"'IBA-prime'!K42*$D$6/$D$7","v":1.2000000000000002},3.4641016151377539,{"$f":"'IBA-prime'!N42","v":9.6700844163029451},{"$f":"M42*L42","v":33.498155045033457},null,null,null,null,"deltaZ",{"$f":"$C$6-$C$8","v":5}]
["Scattering Angle=",null,null,{"$f":"D10","v":30},"degrees",{"$f":"$X$69","v":{"$error":"#NUM!"}},"deg",null,null,null,{"$f":"'IBA-prime'!K43*$D$6/$D$7","v":2.4000000000000004},3.4641016151377539,{"$f":"'IBA-prime'!N43","v":2.4175211040757363},{"$f":"M43*L43","v":8.3745387612583642},null,null,null,null,"deltaM",{"$f":"$D$6-$D$8","v":11}]
["Recoil Angle=",null,null,{"$f":"V32","v":4.3193664896276092},"degrees",{"$f":"2*D44","v":8.6387329792552183},"deg",null,null,null,{"$f":"'IBA-prime'!K44*$D$6/$D$7","v":3.5999999999999996},3.4641016151377539,{"$f":"'IBA-prime'!N44","v":1.0744538240336607},{"$f":"M44*L44","v":3.7220172272259404},null,null,null,null,null,null,"Residual Particle angle"]
["K factor=",null,null,{"$f":"$T$69","v":{"$error":"#NUM!"}},null,null,null,null,null,null,{"$f":"'IBA-prime'!K45*$D$6/$D$7","v":4.8000000000000007},3.4641016151377539,{"$f":"'IBA-prime'!N45","v":0.60438027601893407},2.093634690314591,null,null,null,null,"total system",null,"zeta",{"$f":"$D$35","v":4.3193664896276092},"cm angle",{"$f":"180-X29","v":59.999999999999986}]
["Rutherford xsection=",null,null,{"$f":"$T$61*1000","v":{"$error":"#NUM!"}},"mb/sr",{"$f":"$T$62*1000","v":55.165205338121275},"mb/sr",null,null,null,{"$f":"'IBA-prime'!K46*$D$6/$D$7","v":6},3.4641016151377544,{"$f":"'IBA-prime'!N46","v":0.38680337665211789},1.3399262018013387,null,null,null,null,"energy [MeV]=",{"$f":"(INDEX($Z$69:$DQ$310,$D$6+1,$C$6+1)+INDEX($Z$69:$DQ$310,$D$7+1,$C$7+1)-INDEX($Z$69:$DQ$310,($D$6+$D$7)+1,($C$6+$C$7)+1))*931.48+$T$47","v":19.238514800517045},"zetarad",-0.16550269573866241]
["Scattered Energy=",null,null,{"$f":"$T$70","v":{"$error":"#NUM!"}},"MeV",{"$f":"$D$7*$D$7*D42/($D$6+$D$7)^2","v":7.1005917159763315E-2},"MeV",null,null,null,{"$f":"'IBA-prime'!K47*$D$6/$D$7","v":7.1999999999999993},3.4641016151377539,{"$f":"'IBA-prime'!N47","v":0.26861345600841519},0.9305043068064851,null,null,null,null,"E1[cm frame]=",{"$f":"$D$9/(1+$D$6/$D$7)","v":0.92307692307692313},"coszeta",{"$f":"COS($V$46)","v":0.98633566176753196}]
["Recoil Energy=",null,null,0.95550843012684705,"MeV",{"$f":"$D$6*$D$7*D42/($D$6+$D$7)^2","v":0.85207100591715978},"MeV",null,null,null,{"$f":"'IBA-prime'!K48*$D$6/$D$7","v":8.3999999999999986},3.4641016151377539,{"$f":"'IBA-prime'!N48","v":0.19734866155720304},0.68363581724558098,null,null,null,null,null,null,"sinzeta",{"$f":"SIN($V$46)","v":-0.16474817851983897}]
[null,null,null,null,null,null,null,null,null,null,{"$f":"'IBA-prime'!K49*$D$6/$D$7","v":9.6000000000000014},3.4641016151377539,{"$f":"'IBA-prime'!N49","v":0.15109506900473352},0.52340867257864776,null,null,null,null,null,null,"sinzeta2",{"$f":"SIN($V$46)^2","v":2.7141962325604733E-2}]
[null,null,null,null,null,null,null,null,null,null,{"$f":"'IBA-prime'!K50*$D$6/$D$7","v":10.8},3.4641016151377544,{"$f":"'IBA-prime'!N50","v":0.11938375822596228},0.4135574696917711]
["ERD INPUT VALUES GRID",null,null,null,null,null,null,null,null,null,{"$f":"'IBA-prime'!K51*$D$6/$D$7","v":12},3.4641016151377544,{"$f":"'IBA-prime'!N51","v":9.6700844163029473E-2},0.33498155045033468,null,null,null,null,null,null,null,null,null,null,null,null,null,null,null,null,null,"Be"]
[null,null,"Atomic#",2,"Species",null,null,null,null,null,{"$f":"'IBA-prime'!K52*$D$6/$D$7","v":13.200000000000001},3.4641016151377544,{"$f":"'IBA-prime'!N52","v":7.9918053027297042E-2},0.27684425657052436]
["Incident Ion",null,{"$f":"C6","v":6},{"$f":"D6","v":12},{"$f":"INDEX($Z$69:$DQ$310,$D$53+1,1)&INDEX($Z$69:$DQ$310,1,$C$53+1+1)","v":"12C"},null,null,null,null,null,{"$f":"'IBA-prime'!K53*$D$6/$D$7","v":14.399999999999999},3.4641016151377539,{"$f":"'IBA-prime'!N53","v":6.7153364002103796E-2},0.23262607670162128,null,null,null,null,null,"NRA Calculations"]
["Recoil Atom",null,{"$f":"C7","v":1},{"$f":"D7","v":1},{"$f":"INDEX($Z$69:$DQ$310,$D$54+1,1)&INDEX($Z$69:$DQ$310,1,$C$54+1+1)","v":"1H"},null,null,null,null,null,{"$f":"'IBA-prime'!K54*$D$6/$D$7","v":15.600000000000001},3.4641016151377544,{"$f":"'IBA-prime'!N54","v":5.7219434415993753E-2},0.19821393517771277,null,null,null,null,null,"Green book coefficients"]
["Substrate",null,{"$f":"H6","v":42},{"$f":"H7","v":96},{"$f":"INDEX($Z$69:$DQ$310,$D$55+1,1)&INDEX($Z$69:$DQ$310,1,$C$55+1+1)","v":"96Mo"},null,null,null,null,null,{"$f":"'IBA-prime'!K55*$D$6/$D$7","v":16.799999999999997},3.4641016151377539,{"$f":"'IBA-prime'!N55","v":4.9337165389300761E-2},0.17090895431139524,null,null,null,null,"A",{"$f":"($D$6*$D$32*($D$9/$T$30))/(($D$6+$D$7)*($D$8+$D$32))","v":0.85207100591715978},{"$f":"(T55*T57)","v":5.0418402716991698E-3},"\u001bAC",0.53401494390094484]
["Recoil Angle=",null,null,{"$f":"D10","v":30},"degrees",null,null,null,null,null,{"$f":"'IBA-prime'!K56*$D$6/$D$7","v":18},3.4641016151377544,{"$f":"'IBA-prime'!N56","v":4.2978152961346425E-2},0.14888068908903762,null,null,null,null,"B",{"$f":"($D$6*$D$8*($D$9/$T$30))/(($D$6+$D$7)*($D$8+$D$32))","v":7.1005917159763315E-2},{"$f":"(T56*T58)","v":5.0418402716991707E-3},"\u001bBD",3.8143924564353206E-2]
["Incident Energy=",null,null,{"$f":"D9","v":12},"MeV",null,null,null,null,null,{"$f":"'IBA-prime'!K57*$D$6/$D$7","v":19.200000000000003},3.4641016151377539,{"$f":"'IBA-prime'!N57","v":3.7773767251183379E-2},0.13085216814466194,null,null,null,null,"C",{"$f":"(($D$7*$D$8)/(($D$6+$D$7)*($D$8+$D$32)))*(1+($D$6*$D$16)/($D$7*$T$30))","v":5.9171597633136093E-3},{"$f":"SUM(T55:T58)","v":1},"\u001bSum",2.852274210231346E-2]
["Mylar thicknes=",null,null,{"$f":"D11","v":13},"microns",null,null,null,null,null,{"$f":"'IBA-prime'!K58*$D$6/$D$7","v":20.399999999999999},3.4641016151377544,{"$f":"'IBA-prime'!N58","v":3.3460499710390813E-2},0.11591057109008118,null,null,null,null,"D",{"$f":"(($D$7*$D$32)/(($D$6+$D$7)*($D$8+$D$32)))*(1+($D$6*$D$16)/($D$7*$T$30))","v":7.1005917159763315E-2},null,null,0.39931838943238845,null,null,null,null,"RXN",{"$f":"(\"(\"&AC61&\",\"&AC64&\")\")","v":"(12C,1H)"}]
[null,null,null,null,null,null,null,null,null,null,{"$f":"'IBA-prime'!K59*$D$6/$D$7","v":21.6},3.4641016151377544,{"$f":"'IBA-prime'!N59","v":2.9845939556490571E-2},0.10338936742294277,null,null,null,null,"esqrd",{"$f":"(14.395/1000000)/100000000","v":1.4395000000000001E-13},"MeV cm"]
["ERD INFORMATION",null,null," ",null,null,null,null,null,null,{"$f":"'IBA-prime'!K60*$D$6/$D$7","v":22.799999999999997},3.4641016151377544,{"$f":"'IBA-prime'!N60","v":2.6786937441282396E-2},9.2792673254940339E-2,null,null,null,null,null,null,null,null,null,null,null,null,null,"GAMMA","g-ray"]
["Recoil Energy=",null,null,{"$f":"$T$76","v":2.5562130177514795},"MeV",null,null,null,null,null,{"$f":"'IBA-prime'!K61*$D$6/$D$7","v":24},3.4641016151377544,{"$f":"'IBA-prime'!N61","v":2.4175211040757368E-2},8.3745387612583669E-2,null,null,null,"Rutherford","dsigma",{"$f":"(U61*U62/U63)/1E-24","v":{"$error":"#NUM!"}},{"$f":"($C$6*$C$7*$T$59/(2*$D$9))^2","v":1.2951001562500002E-27},{"$f":"($C$6*$C$7*$T$59/(2*$F$42))^2","v":2.1887192640625E-25},null,null,null,null,null,"INCIDENT",{"$f":"INDEX($Z$69:$DQ$310,$D$6+1,1)&INDEX($Z$69:$DQ$310,1,$C$6+1+1)","v":"12C"}]
["Detected Energy=",null,null,{"$f":"B106","v":2.3332724731358212},"Mev",null,null,null,null,null,{"$f":"'IBA-prime'!K62*$D$6/$D$7","v":25.200000000000003},3.4641016151377544,{"$f":"'IBA-prime'!N62","v":2.1927629061911442E-2},7.5959535249508991E-2,null,null,null,null,"cmsigma",{"$f":"(V61/V63)/1E-24","v":5.5165205338121276E-2},{"$f":"($W$71+(1-($D$6/$D$7)^2*$W$73)^0.5)^2","v":{"$error":"#NUM!"}},null,null,null,null,null,null,"TARGET",{"$f":"INDEX($Z$69:$DQ$310,$D$7+1,1)&INDEX($Z$69:$DQ$310,1,$C$7+1+1)","v":"1H"},null,"3He(3He,2p)a Q value"]
["Recoiled Particle",null,null,{"$f":"$E$54","v":"1H"},null,null,null,null,null,null,{"$f":"'IBA-prime'!K63*$D$6/$D$7","v":26.400000000000002},3.4641016151377544,{"$f":"'IBA-prime'!N63","v":1.9979513256824261E-2},6.921106414263109E-2,null,null,null,null,null,null,{"$f":"($W$72^4*(1-($D$6/$D$7)^2*$W$73)^0.5)","v":{"$error":"#NUM!"}},3.9675720422815339,null,null,null,null,null,"COMPOUND",{"$f":"INDEX($Z$69:$DQ$310,($D$6+$D$7)+1,1)&INDEX($Z$69:$DQ$310,1,($C$6+$C$7+1)+1)","v":"13N"},null,12.859379473599907]
["Detector Angle=",null,null,{"$f":"$D$56","v":30},"degrees",null,null,null,null,null,{"$f":"'IBA-prime'!K64*$D$6/$D$7","v":27.599999999999998},3.4641016151377548,{"$f":"'IBA-prime'!N64","v":1.8279932734032032E-2},6.3323544508569876E-2,null,null,null,null,null,null,null,null,null,null,null,null,null,"DETECTED",{"$f":"INDEX($Z$69:$DQ$310,$D$8+1,1)&INDEX($Z$69:$DQ$310,1,$C$8+1+1)","v":"1H"}]
["Scattered Particle",null,null,{"$f":"$E$53","v":"12C"},null,null,null,null,null,null,{"$f":"'IBA-prime'!K65*$D$6/$D$7","v":28.799999999999997},3.4641016151377539,{"$f":"'IBA-prime'!N65","v":1.6788341000525949E-2},5.8156519175405319E-2,null,null,null,null,null,null,null,null,null,null,null,null,null,"RESIDUAL",{"$f":"INDEX($Z$69:$DQ$310,$D$32+1,1)&INDEX($Z$69:$DQ$310,1,$B$32+1+1)","v":"12C"}]
["Scattered Energy=",null,null,{"$f":"$D$9*V27","v":11.604343855512489},{"$f":"IF(ISERR($W$76)=1,$S$87,$S$86)","v":"MeV at DET. ANGLE"},null,null,null,null,null,{"$f":"'IBA-prime'!K66*$D$6/$D$7","v":30},3.4641016151377548,{"$f":"'IBA-prime'!N66","v":1.5472135066084712E-2},5.3597048072053545E-2,null,null,null,null,null,null,null,null,null,null,null,"mtable"]
["scatt energy after foil=",null,null,{"$f":"B95","v":{"$error":"#NUM!"}},{"$f":"IF(ISERR($W$76)=1,$S$87,$S$86)","v":"MeV at DET. ANGLE"},null,null,null,null,null,{"$f":"'IBA-prime'!K67*$D$6/$D$7","v":31.200000000000003},3.4641016151377544,{"$f":"'IBA-prime'!N67","v":1.4304858603998438E-2},4.9553483794428192E-2,null,null,null,null,null,null,null,null,"lab","c.m.",null,null,"Z\u001a"]
["Max. Scat. Angle=",null,null,{"$f":"IF(ISERR($W$76)=1,180,$W$76)","v":180},"degrees",null,null,null,null,null,{"$f":"'IBA-prime'!K68*$D$6/$D$7","v":32.400000000000006},3.4641016151377544,{"$f":"'IBA-prime'!N68","v":1.3264862025106922E-2},4.5950829965752352E-2,null,null,null,null,"MeV",null,null,"RBS Scattering angle",null,null,null,"\u001fM",0,"1","2","3","4","5","6","7","8","9","10","11","12","13","14","15","16","17","18","19","20","21","22","23","24","25","26","27","28","29","30","31","32","33","34","35","36","37","38","39","40","41","42","43","44","45","46","47","48","49","50","51","52","53","54","55","56","57","58","59","60","61","62","63","64","65","66","67","68","69","70","71","72","73","74","75","76","77","78","79","80","81","82","83","84","85","86","87","88","89","90","91","92",93,94]
["Cross Section=",null,null,{"$f":"20.731*(C53*C54*(D53+D54)/(2*D54*D57))^2/COS(D56*3.14159/180)^3","v":337.12793921253029},"mb/sr",null,null,null,null,null,{"$f":"'IBA-prime'!K69*$D$6/$D$7","v":33.599999999999994},3.4641016151377539,{"$f":"'IBA-prime'!N69","v":1.233429134732519E-2},4.2727238577848811E-2,null,null,null,null,"K",{"$f":"(($W$71+($T$29^2-$W$73)^0.5)/(1+$T$29))^2","v":{"$error":"#NUM!"}},null,"theta",{"$f":"$D$43","v":30},{"$f":"$D$43+ASIN($D$6*W72/$D$7)","v":{"$error":"#NUM!"}},null,"g-ray","n","H","He","Li","Be","B","C","N","O","F","Ne","Na","Mg","Al","Si","P","S","Cl","Ar","K","Ca","Sc","Ti","V","Cr","Mn","Fe","Co","Ni","Cu","Zn","Ga","Ge","As","Se","Br","Kr","Rb","Sr","Y","Zr","Nb","Mo","Tc","Ru","Rh","Pd","Ag","Cd","In","Sn","Sb","Te","I","Xe","Cs","Ba","La","Ce","Pr","Nd","Pm","Sm","Eu","Gd","Tb","Dy","Ho","Er","Tm","Yb","Lu","Hf","Ta","W","Re","Os","Ir","Pt","Au","Hg","Tl","Pb","Bi","Po","At","Rn","Fr","Ra","Ac","Th","Pa","U","Np","Pu"]
[null,null,null,null,null,null,null,null,null,null,{"$f":"'IBA-prime'!K70*$D$6/$D$7","v":34.799999999999997},3.4641016151377544,{"$f":"'IBA-prime'!N70","v":1.1498316785140244E-2},3.983133774676987E-2,null,null,null,null,"escatter",{"$f":"$T$69*$D$9","v":{"$error":"#NUM!"}},null,"thetarad",{"$f":"W69*3.14159/180","v":0.52359833333333328},2.8867520437663026,null,"1",1.0086649670000001,1.00782522]
["...........................................................",null,null,null,null,null,null,null,null,null,{"$f":"'IBA-prime'!K71*$D$6/$D$7","v":36},3.4641016151377544,{"$f":"'IBA-prime'!N71","v":1.0744538240336606E-2},3.7220172272259405E-2,null,null,null,null,"bsrecoilE",{"$f":"(1-$T$69)*$D$9","v":{"$error":"#NUM!"}},null,"costheta",{"$f":"COS($W$70)","v":0.86602562491683677},{"$f":"COS(X70)","v":-0.96770348883675772},null,"2",null,2.014101787]
["Mylar foil effect on detected energy",null,null,null,null,null,null,null,null,null,null,null,null,null,null,null,null,null,null,null,null,"sintheta",{"$f":"SIN($W$70)","v":0.4999996169872557},{"$f":"SIN(X70)","v":0.2520911694073536},null,"3",null,3.0160492859999999,3.0160292970000002]
[null,null,null,null,null,null,null,null,null,null,null,null,null,null,null,null,null,null,"erdmu",{"$f":"($D$55/$D$53)","v":8},null,"sintheta2",{"$f":"(W72^2)","v":0.24999961698740239},{"$f":"SIN(X70)^2","v":6.3549957693167056E-2},null,"4",null,4.0278299999999998,4.0026032499999999,4.0269700000000004]
["logR = mlogE + b",null,null,null,null,null,null,null,null,null,null,null,null,null,null,null,null,null,"erdK",{"$f":"IF(ISERR($W$76)=1,$T$83,$T$84)","v":0.96702860106097932},null,null,null,null,null,"5",null,5.03627,5.0122200000000001,5.0125000000000002]
["logE = (logR - b)/m",null,null,null,null,null,null,null,null,null,null,null,null,null,null,null,null,null,"erdescatter",{"$f":"$T$74*$D$57","v":11.604343212731752},null,"ERD Scattering angle",null,null,null,"6",null,null,6.018891,6.0151209999999997,6.0197269999999996]
[null,null,null,null,null,null,null,null,null,null,null,null,null,null,null,null,null,null,"erdrecoilE",{"$f":"4*$D$53*$D$54*$D$57*$W$85/($D$53+$D$54)^2","v":2.5562130177514795},null,"phi",{"$error":"#VALUE!"},null,null,"7",null,null,7.0280310000000004,7.0160030000000004,7.0169299000000001]
["R in um -- E in MeV",null,null,null,null,null,null,null,null,null,null,null,null,null,null,null,null,null,null,null,null,"phirad",{"$error":"#VALUE!"},null,null,"8",null,null,null,8.0224890000000002,8.0053051499999999,8.0246075000000001]
[null,null,null,null,"calc",null,null,null,null,null,null,null,null,null,null,null,null,null,null,null,null,"cosphi",{"$f":"COS($W$77)","v":{"$error":"#VALUE!"}},null,null,"9",null,null,null,null,9.0121824999999998,9.0133291,9.0310380000000006]
["input from nra",null,null,null,null,null,null,null,null,null,null,null,null,null,null,null,null,null,null,null,null,"sinphi",{"$f":"SIN($W$77)","v":{"$error":"#VALUE!"}},null,null,"10",null,null,null,null,10.013534699999999,10.012938,10.0168576]
["Z",{"$f":"C8","v":1},null,null,"m",{"$f":"IF(B80>9,0,INDEX($B$111:$J$129,B81,B80))","v":1.6694520282906096},null,null,null,null,null,null,null,null,null,null,null,null,null,null,null,"sinphi2",{"$f":"($W$79^2)","v":{"$error":"#VALUE!"}},null,null,"11",null,null,null,null,11.021660000000001,11.009305299999999,11.0114331,11.02708]
["M",{"$f":"D8","v":1},null,null,"b",{"$f":"IF(B80>9,0,INDEX($B$136:$J$154,B81,B80))","v":1.2833101815966044},null,null,null,null,null,null,null,null,null,null,null,null,null,null,null,null,null,null,null,"12",null,null,null,null,12.026870000000001,12.0143526,12,12.018613]
["E3",{"$f":"D27","v":2.556213017751479},"MeV",null,"R",{"$f":"10^(LOG(B82)*F80+F81)","v":91.997047680324101},"um",null,null,null,null,null,null,null,null,null,null,null,null,null,null,"ERD Recoil angle",null,null,null,"13",null,null,null,null,null,null,13.003354839,13.0057387]
[null,null,null,null,"x",{"$f":"F82-B84","v":78.997047680324101},"um",null,null,null,null,null,null,null,null,null,null,null,"erdk if 1",{"$f":"(($W$86+($T$73^2-$W$87)^0.5)/(1+$T$73))^2","v":0.96702860106097932},null,"recoilangle",{"$f":"D56","v":30},null,null,"14",null,null,null,null,null,null,14.003241993,14.003074008,14.008597200000001]
["thick=",{"$f":"D11","v":13},"um",null,null,null,null,null,null,null,null,null,null,null,null,null,null,null,"erdk if 2",{"$f":"(($W$78+($T$73^2-$W$80)^0.5)/(1+$T$73))^2","v":{"$error":"#VALUE!"}},null,"sinrecoil",0.5,null,null,"15",null,null,null,null,null,null,null,15.000108978,15.003065400000001,15.01895]
[null,null,null,null,null,null,null,null,null,null,null,null,null,null,null,null,null,null,null,null,null,"cosrecoil2",0.75,null,null,"16",null,null,null,null,null,null,null,16.0060994,15.994914639999999,16.011479000000001]
["Ed",{"$f":"10^((LOG(F83)-F81)/F80)","v":2.3332724731358194},"MeV",null,null,null,null,null,null,null,null,null,null,null,null,null,null,null,"MeV at MAX ANGLE",null,null,"cosrecoil",0.8660254037844386,null,null,"17",null,null,null,null,null,null,null,null,16.999130600000001,17.002095180000001]
[null,null,null,null,null,null,null,null,null,null,null,null,null,null,null,null,null,null,"MeV at DET. ANGLE",null,null,"sinrecoil2",{"$f":"(W84^2)","v":0.25},null,null,"18",null,null,null,null,null,null,null,null,17.999159389999999,18.000936599999999,18.005710000000001]
["input from RBS",null,null,null,null,null,null,null,null,null,null,null,null,null,null,null,null,null,null,null,null,null,null,null,null,"19",null,null,null,null,null,null,null,null,19.0035764,18.998403249999999,19.0018797]
["Z",{"$f":"C53","v":6},null,null,"m",{"$f":"IF(B89>9,0,INDEX($B$111:$J$129,B90,B89))","v":0.9860379051542888},null,null,null,null,null,null,null,null,null,null,null,null,null,null,null,null,null,null,null,"20",null,null,null,null,null,null,null,null,null,19.999981699999999,19.992439099999999,20.007346999999999]
["M",{"$f":"D53","v":12},null,null,"b",{"$f":"IF(B89>9,0,INDEX($B$136:$J$154,B90,B89))","v":5.5961469181884826E-2},null,null,null,null,null,null,null,null,null,null,null,null,null,null,null,null,null,null,null,"21",null,null,null,null,null,null,null,null,null,null,20.9938453,20.997653499999998]
["E3",{"$f":"D66","v":11.604343855512489},"MeV",null,"R",{"$f":"10^(LOG(B91)*F89+F90)","v":12.756094405371279},"um",null,null,null,null,null,null,null,null,null,null,null,null,null,null,null,null,null,null,"22",null,null,null,null,null,null,null,null,null,null,21.9913837,21.994436,21.999576900000001]
[null,null,null,null,"x",{"$f":"F91-B93","v":-0.24390559462872119},"um",null,null,null,null,null,null,null,null,null,null,null,null,null,null,null,null,null,null,"23",null,null,null,null,null,null,null,null,null,null,22.9944658,22.989768000000002,22.994125]
["thick=",{"$f":"B84","v":13},"um",null,null,null,null,null,null,null,null,null,null,null,null,null,null,null,null,null,null,null,null,null,null,"24",null,null,null,null,null,null,null,null,null,null,null,23.990964000000002,23.985042,23.999943999999999]
[null,null,null,null,null,null,null,null,null,null,null,null,null,null,null,null,null,null,null,null,null,null,null,null,null,"25",null,null,null,null,null,null,null,null,null,null,null,null,24.985838000000001,24.990431699999998]
["Ed",{"$f":"10^((LOG(F92)-F90)/F89)","v":{"$error":"#NUM!"}},"MeV",null,null,null,null,null,null,null,null,null,null,null,null,null,null,null,null,null,null,null,null,null,null,"26",null,null,null,null,null,null,null,null,null,null,null,null,25.982593999999999,25.986893999999999,25.9923316]
[null,null,null,null,null,null,null,null,null,null,null,null,null,null,null,null,null,null,null,null,null,null,null,null,null,"27",null,null,null,null,null,null,null,null,null,null,null,null,26.984342999999999,26.981539000000001,26.986704]
[null,null,null,null,null,null,null,null,null,null,null,null,null,null,null,null,null,null,null,null,null,null,null,null,null,"28",null,null,null,null,null,null,null,null,null,null,null,null,null,27.9819122,27.976927,27.992314]
[null,null,null,null,null,null,null,null,null,null,null,null,null,null,null,null,null,null,null,null,null,null,null,null,null,"29",null,null,null,null,null,null,null,null,null,null,null,null,null,null,28.976495,28.981804400000001]
["input from erd",null,null,null,null,null,null,null,null,null,null,null,null,null,null,null,null,null,null,null,null,null,null,null,null,"30",null,null,null,null,null,null,null,null,null,null,null,null,null,null,29.973769999999998,29.97831,29.984903899999999]
["Z",{"$f":"C54","v":1},null,null,"m",{"$f":"IF(B100>9,0,INDEX($B$111:$J$129,B101,B100))","v":1.6694520282906096},null,null,null,null,null,null,null,null,null,null,null,null,null,null,null,null,null,null,null,"31",null,null,null,null,null,null,null,null,null,null,null,null,null,null,30.975365,30.973762000000001,30.979600000000001]
["M",{"$f":"D54","v":1},null,null,"b",{"$f":"IF(B100>9,0,INDEX($B$136:$J$154,B101,B100))","v":1.2833101815966044},null,null,null,null,null,null,null,null,null,null,null,null,null,null,null,null,null,null,null,"32",null,null,null,null,null,null,null,null,null,null,null,null,null,null,null,31.973908699999999,31.972071,31.985690999999999]
["E3",{"$f":"D61","v":2.5562130177514795},"MeV",null,"R",{"$f":"10^(LOG(B102)*F100+F101)","v":91.997047680324187},"um",null,null,null,null,null,null,null,null,null,null,null,null,null,null,null,null,null,null,"33",null,null,null,null,null,null,null,null,null,null,null,null,null,null,null,32.971726400000001,32.971459000000003,32.977452599999999]
[null,null,null,null,"x",{"$f":"F102-B104","v":78.997047680324187},"um",null,null,null,null,null,null,null,null,null,null,null,null,null,null,null,null,null,null,"34",null,null,null,null,null,null,null,null,null,null,null,null,null,null,null,null,33.967866700000002,33.973765,33.980269300000003]
["thick=",{"$f":"D58","v":13},"um",null,null,null,null,null,null,null,null,null,null,null,null,null,null,null,null,null,null,null,null,null,null,"35",null,null,null,null,null,null,null,null,null,null,null,null,null,null,null,null,34.9690333,34.968852699999999,34.975256199999997]
[null,null,null,null,null,null,null,null,null,null,null,null,null,null,null,null,null,null,null,null,null,null,null,null,null,"36",null,null,null,null,null,null,null,null,null,null,null,null,null,null,null,null,35.967080600000003,35.968307000000003,35.967545604999998,35.981293000000001]
["Ed",{"$f":"10^((LOG(F103)-F101)/F100)","v":2.3332724731358212},"MeV",null,null,null,null,null,null,null,null,null,null,null,null,null,null,null,null,null,null,null,null,null,null,"37",null,null,null,null,null,null,null,null,null,null,null,null,null,null,null,null,null,36.9659026,36.966776299999999,36.973370000000003]
[null,null,null,null,null,null,null,null,null,null,null,null,null,null,null,null,null,null,null,null,null,null,null,null,null,"38",null,null,null,null,null,null,null,null,null,null,null,null,null,null,null,null,null,37.968009000000002,37.962732199999998,37.969080099999999,37.976317999999999]
["slope=m",null,null,null,null,null,null,null,null,null,null,null,null,null,null,null,null,null,null,null,null,null,null,null,null,"39",null,null,null,null,null,null,null,null,null,null,null,null,null,null,null,null,null,null,38.964314999999999,38.963707900000003,38.970711000000001]
[" ","z",null,null,null,null,null,null,null,null,null,null,null,null,null,null,null,null,null,null,null,null,null,null,null,"40",null,null,null,null,null,null,null,null,null,null,null,null,null,null,null,null,null,null,39.962383099999997,39.963998799999999,39.9625907,39.977963000000003]
["m",1,2,3,4,5,6,7,8,9,null,null,null,null,null,null,null,null,null,null,null,null,null,null,null,"41",null,null,null,null,null,null,null,null,null,null,null,null,null,null,null,null,null,null,40.964500600000001,40.961825400000002,40.962279199999998,40.969250199999998]
[1,1.6694520282906096,null,null,null,null,null,null,null,null,null,null,null,null,null,null,null,null,null,null,null,null,null,null,null,"42",null,null,null,null,null,null,null,null,null,null,null,null,null,null,null,null,null,null,null,41.962401800000002,41.958618000000001,41.965517300000002,41.973030999999999]
[2,1.6212553266223282,null,null,null,null,null,null,null,null,null,null,null,null,null,null,null,null,null,null,null,null,null,null,null,"43",null,null,null,null,null,null,null,null,null,null,null,null,null,null,null,null,null,null,null,42.960720999999999,42.958767000000002,42.961154100000002,42.968519000000001]
[3,1.5526328490769452,1.5121279892299686,null,null,null,null,null,null,null,null,null,null,null,null,null,null,null,null,null,null,null,null,null,null,"44",null,null,null,null,null,null,null,null,null,null,null,null,null,null,null,null,null,null,null,43.961559999999999,43.955480999999999,43.959408799999999,43.959692799999999]
[4,null,1.5040446658818245,null,null,null,null,null,null,null,null,null,null,null,null,null,null,null,null,null,null,null,null,null,null,"45",null,null,null,null,null,null,null,null,null,null,null,null,null,null,null,null,null,null,null,44.960697000000003,44.956192999999999,44.955910000000003,44.958127900000001]
[5,null,null,null,null,null,null,null,null,null,null,null,null,null,null,null,null,null,null,null,null,null,null,null,null,"46",null,null,null,null,null,null,null,null,null,null,null,null,null,null,null,null,null,null,null,null,45.953690000000002,45.955173899999998,45.952632700000002,45.960203200000002]
[6,null,null,null,null,null,null,null,null,null,null,null,null,null,null,null,null,null,null,null,null,null,null,null,null,"47",null,null,null,null,null,null,null,null,null,null,null,null,null,null,null,null,null,null,null,null,46.954543000000001,46.952409600000003,46.951764900000001,46.954910400000003]
[7,null,null,1.2991330348645937,null,null,null,null,null,null,null,null,null,null,null,null,null,null,null,null,null,null,null,null,null,"48",null,null,null,null,null,null,null,null,null,null,null,null,null,null,null,null,null,null,null,null,47.952534,47.95223,47.947946700000003,47.952256900000002,47.954033000000003]
[8,null,null,null,null,null,null,null,null,null,null,null,null,null,null,null,null,null,null,null,null,null,null,null,null,"49",null,null,null,null,null,null,null,null,null,null,null,null,null,null,null,null,null,null,null,null,null,48.950021999999997,48.947870500000001,48.948516599999998,48.951337700000003]
[9,null,null,null,1.1641836090425788,null,null,null,null,null,null,null,null,null,null,null,null,null,null,null,null,null,null,null,null,"50",null,null,null,null,null,null,null,null,null,null,null,null,null,null,null,null,null,null,null,null,null,49.952185999999998,49.944785799999998,49.947161299999998,49.946046299999999,49.954239800000003]
[10,null,null,null,null,null,null,null,null,null,null,null,null,null,null,null,null,null,null,null,null,null,null,null,null,"51",null,null,null,null,null,null,null,null,null,null,null,null,null,null,null,null,null,null,null,null,null,null,null,50.943962499999998,50.944769000000001,50.948212900000001]
[11,null,null,null,null,1.0394207257924954,null,null,null,null,null,null,null,null,null,null,null,null,null,null,null,null,null,null,null,"52",null,null,null,null,null,null,null,null,null,null,null,null,null,null,null,null,null,null,null,null,null,null,null,51.944778599999999,51.9405097,51.945567199999999,51.948113999999997]
[12,null,null,null,null,null,0.9860379051542888,null,null,null,null,null,null,null,null,null,null,null,null,null,null,null,null,null,null,"53",null,null,null,null,null,null,null,null,null,null,null,null,null,null,null,null,null,null,null,null,null,null,null,null,52.940651000000003,52.941291200000002,52.9453095]
[13,null,null,null,null,null,null,null,null,null,null,null,null,null,null,null,null,null,null,null,null,null,null,null,null,"54",null,null,null,null,null,null,null,null,null,null,null,null,null,null,null,null,null,null,null,null,null,null,null,null,53.938882200000002,53.940360499999997,53.939612099999998,53.948459999999997]
[14,null,null,null,null,null,null,0.92047940805848538,null,null,null,null,null,null,null,null,null,null,null,null,null,null,null,null,null,"55",null,null,null,null,null,null,null,null,null,null,null,null,null,null,null,null,null,null,null,null,null,null,null,null,54.940841499999998,54.938046300000003,54.9382947,54.942003399999997]
[15,null,null,null,null,null,null,null,null,null,null,null,null,null,null,null,null,null,null,null,null,null,null,null,null,"56",null,null,null,null,null,null,null,null,null,null,null,null,null,null,null,null,null,null,null,null,null,null,null,null,null,55.9389064,55.934939300000003,55.939842599999999,55.942134000000003]
[16,null,null,null,null,null,null,null,0.90347043319054465,null,null,null,null,null,null,null,null,null,null,null,null,null,null,null,null,"57",null,null,null,null,null,null,null,null,null,null,null,null,null,null,null,null,null,null,null,null,null,null,null,null,null,null,56.935395700000001,56.936293800000001,56.939774999999997]
[17,null,null,null,null,null,null,null,null,null,null,null,null,null,null,null,null,null,null,null,null,null,null,null,null,"58",null,null,null,null,null,null,null,null,null,null,null,null,null,null,null,null,null,null,null,null,null,null,null,null,null,null,57.933277799999999,57.935755299999997,57.935347100000001,57.944539399999996]
[18,null,null,null,null,null,null,null,null,null,null,null,null,null,null,null,null,null,null,null,null,null,null,null,null,"59",null,null,null,null,null,null,null,null,null,null,null,null,null,null,null,null,null,null,null,null,null,null,null,null,null,null,null,58.933197800000002,58.934350199999997,58.939503899999998]
[19,null,null,null,null,null,null,null,null,0.86527202751660437,null,null,null,null,null,null,null,null,null,null,null,null,null,null,null,"60",null,null,null,null,null,null,null,null,null,null,null,null,null,null,null,null,null,null,null,null,null,null,null,null,null,null,null,59.9338202,59.930788999999997,59.937366400000002,59.941831000000001]
[null,null,null,null,null,null,null,null,null,null,null,null,null,null,null,null,null,null,null,null,null,null,null,null,null,"61",null,null,null,null,null,null,null,null,null,null,null,null,null,null,null,null,null,null,null,null,null,null,null,null,null,null,null,60.932477800000001,60.9310586,60.933461600000001,60.939259999999997]
[null,null,null,null,null,null,null,null,null,null,null,null,null,null,null,null,null,null,null,null,null,null,null,null,null,"62",null,null,null,null,null,null,null,null,null,null,null,null,null,null,null,null,null,null,null,null,null,null,null,null,null,null,null,null,61.928346400000002,61.932586000000001,61.934333000000002]
["intercept=b",null,null,null,null,null,null,null,null,null,null,null,null,null,null,null,null,null,null,null,null,null,null,null,null,"63",null,null,null,null,null,null,null,null,null,null,null,null,null,null,null,null,null,null,null,null,null,null,null,null,null,null,null,null,62.9296699,62.929599199999998,62.933214100000001]
[null,null,null,null,null,null,null,null,null,null,null,null,null,null,null,null,null,null,null,null,null,null,null,null,null,"64",null,null,null,null,null,null,null,null,null,null,null,null,null,null,null,null,null,null,null,null,null,null,null,null,null,null,null,null,63.927968,63.929766100000002,63.929145400000003,63.936836999999997,63.941569999999999]
[" ","z",null,null,null,null,null,null,null,null,null,null,null,null,null,null,null,null,null,null,null,null,null,null,null,"65",null,null,null,null,null,null,null,null,null,null,null,null,null,null,null,null,null,null,null,null,null,null,null,null,null,null,null,null,null,64.927792400000001,64.929243700000001,64.932738900000004,64.939440000000005]
["m",1,2,3,4,5,6,7,8,9,null,null,null,null,null,null,null,null,null,null,null,null,null,null,null,"66",null,null,null,null,null,null,null,null,null,null,null,null,null,null,null,null,null,null,null,null,null,null,null,null,null,null,null,null,null,65.928871000000001,65.926035200000001,65.931590799999995,65.933847]
[1,1.2833101815966044,null,null,null,null,null,null,null,null,null,null,null,null,null,null,null,null,null,null,null,null,null,null,null,"67",null,null,null,null,null,null,null,null,null,null,null,null,null,null,null,null,null,null,null,null,null,null,null,null,null,null,null,null,null,66.927745999999999,66.9271289,66.928203600000003,66.932959999999994]
[2,1.1103071378728733,null,null,null,null,null,null,null,null,null,null,null,null,null,null,null,null,null,null,null,null,null,null,null,"68",null,null,null,null,null,null,null,null,null,null,null,null,null,null,null,null,null,null,null,null,null,null,null,null,null,null,null,null,null,null,67.9248458,67.927981700000004,67.928104000000005]
[3,1.0484391462175604,0.49936832791053121,null,null,null,null,null,null,null,null,null,null,null,null,null,null,null,null,null,null,null,null,null,null,"69",null,null,null,null,null,null,null,null,null,null,null,null,null,null,null,null,null,null,null,null,null,null,null,null,null,null,null,null,null,null,68.926551900000007,68.9255809,68.927970000000002]
[4,null,0.43060856564791961,null,null,null,null,null,null,null,null,null,null,null,null,null,null,null,null,null,null,null,null,null,null,"70",null,null,null,null,null,null,null,null,null,null,null,null,null,null,null,null,null,null,null,null,null,null,null,null,null,null,null,null,null,null,69.925324900000007,69.9260278,69.924249799999998,69.930929000000006]
[5,null,null,null,null,null,null,null,null,null,null,null,null,null,null,null,null,null,null,null,null,null,null,null,null,"71",null,null,null,null,null,null,null,null,null,null,null,null,null,null,null,null,null,null,null,null,null,null,null,null,null,null,null,null,null,null,null,70.924700599999994,70.924953700000003,70.927114000000003]
[6,null,null,null,null,null,null,null,null,null,null,null,null,null,null,null,null,null,null,null,null,null,null,null,null,"72",null,null,null,null,null,null,null,null,null,null,null,null,null,null,null,null,null,null,null,null,null,null,null,null,null,null,null,null,null,null,null,71.926365099999998,71.922079999999994,71.926750999999996,71.927113000000006]
[7,null,null,0.23661270390043729,null,null,null,null,null,null,null,null,null,null,null,null,null,null,null,null,null,null,null,null,null,"73",null,null,null,null,null,null,null,null,null,null,null,null,null,null,null,null,null,null,null,null,null,null,null,null,null,null,null,null,null,null,null,72.925139999999999,72.923463900000002,72.923833999999999,72.926775000000006]
[8,null,null,null,null,null,null,null,null,null,null,null,null,null,null,null,null,null,null,null,null,null,null,null,null,"74",null,null,null,null,null,null,null,null,null,null,null,null,null,null,null,null,null,null,null,null,null,null,null,null,null,null,null,null,null,null,null,null,73.921178800000007,73.923929599999994,73.922477099999995,73.929902999999996]
[9,null,null,null,0.13862239005370564,null,null,null,null,null,null,null,null,null,null,null,null,null,null,null,null,null,null,null,null,"75",null,null,null,null,null,null,null,null,null,null,null,null,null,null,null,null,null,null,null,null,null,null,null,null,null,null,null,null,null,null,null,null,74.922859900000006,74.921595499999995,74.922523999999996,74.925754999999995]
[10,null,null,null,null,0.11418124598689067,null,null,null,null,null,null,null,null,null,null,null,null,null,null,null,null,null,null,null,"76",null,null,null,null,null,null,null,null,null,null,null,null,null,null,null,null,null,null,null,null,null,null,null,null,null,null,null,null,null,null,null,null,75.921402700000002,75.922393400000004,75.919206599999995,75.924526999999998,75.925820000000002]
[11,null,null,null,null,null,null,null,null,null,null,null,null,null,null,null,null,null,null,null,null,null,null,null,null,"77",null,null,null,null,null,null,null,null,null,null,null,null,null,null,null,null,null,null,null,null,null,null,null,null,null,null,null,null,null,null,null,null,null,76.920648799999995,76.919907699999996,76.921373000000003,76.924599000000001]
[12,null,null,null,null,null,5.5961469181884826E-2,null,null,null,null,null,null,null,null,null,null,null,null,null,null,null,null,null,null,"78",null,null,null,null,null,null,null,null,null,null,null,null,null,null,null,null,null,null,null,null,null,null,null,null,null,null,null,null,null,null,null,null,null,77.921909999999997,77.917304000000001,77.921141000000006,77.920396999999994,77.927980000000005]
[13,null,null,null,null,null,null,null,null,null,null,null,null,null,null,null,null,null,null,null,null,null,null,null,null,"79",null,null,null,null,null,null,null,null,null,null,null,null,null,null,null,null,null,null,null,null,null,null,null,null,null,null,null,null,null,null,null,null,null,78.920860000000005,78.918497000000002,78.918336100000005,78.920086999999995,78.923929999999999]
[14,null,null,null,null,null,null,3.6242071476753519E-2,null,null,null,null,null,null,null,null,null,null,null,null,null,null,null,null,null,"80",null,null,null,null,null,null,null,null,null,null,null,null,null,null,null,null,null,null,null,null,null,null,null,null,null,null,null,null,null,null,null,null,null,null,79.916520500000004,79.9185284,79.916375000000002,79.922501999999994,79.924430000000001]
[15,null,null,null,null,null,null,null,null,null,null,null,null,null,null,null,null,null,null,null,null,null,null,null,null,"81",null,null,null,null,null,null,null,null,null,null,null,null,null,null,null,null,null,null,null,null,null,null,null,null,null,null,null,null,null,null,null,null,null,null,80.917991000000001,80.916290000000004,80.916578000000001,80.919006999999993,80.923289999999994]
[16,null,null,null,null,null,null,null,-6.5437137776740576E-3,null,null,null,null,null,null,null,null,null,null,null,null,null,null,null,null,"82",null,null,null,null,null,null,null,null,null,null,null,null,null,null,null,null,null,null,null,null,null,null,null,null,null,null,null,null,null,null,null,null,null,null,81.916708999999997,81.916803000000002,81.913482999999999,81.918182999999999,81.918413000000001]
[17,null,null,null,null,null,null,null,null,null,null,null,null,null,null,null,null,null,null,null,null,null,null,null,null,"83",null,null,null,null,null,null,null,null,null,null,null,null,null,null,null,null,null,null,null,null,null,null,null,null,null,null,null,null,null,null,null,null,null,null,null,82.915164000000004,82.914134000000004,82.915205,82.917619999999999]
[18,null,null,null,null,null,null,null,null,null,null,null,null,null,null,null,null,null,null,null,null,null,null,null,null,"84",null,null,null,null,null,null,null,null,null,null,null,null,null,null,null,null,null,null,null,null,null,null,null,null,null,null,null,null,null,null,null,null,null,null,null,83.916522999999998,83.911506399999993,83.914383999999998,83.913427999999996,83.920889000000003]
[19,null,null,null,null,null,null,null,null,-9.9892517341248575E-3,null,null,null,null,null,null,null,null,null,null,null,null,null,null,null,"85",null,null,null,null,null,null,null,null,null,null,null,null,null,null,null,null,null,null,null,null,null,null,null,null,null,null,null,null,null,null,null,null,null,null,null,null,84.912537099999994,84.911799599999995,84.912942000000001,84.916442000000004]
[null,null,null,null,null,null,null,null,null,null,null,null,null,null,null,null,null,null,null,null,null,null,null,null,null,"86",null,null,null,null,null,null,null,null,null,null,null,null,null,null,null,null,null,null,null,null,null,null,null,null,null,null,null,null,null,null,null,null,null,null,null,null,85.910613999999995,85.911178100000001,85.909273200000001,85.914934000000002,85.916330000000002]
[null,null,null,null,null,null,null,null,null,null,null,null,null,null,null,null,null,null,null,null,null,null,null,null,null,"87",null,null,null,null,null,null,null,null,null,null,null,null,null,null,null,null,null,null,null,null,null,null,null,null,null,null,null,null,null,null,null,null,null,null,null,null,null,86.909183600000006,86.908890200000002,86.910888799999995,86.914730000000006]
[null,null,null,null,null,null,null,null,null,null,null,null,null,null,null,null,null,null,null,null,null,null,null,null,null,"88",null,null,null,null,null,null,null,null,null,null,null,null,null,null,null,null,null,null,null,null,null,null,null,null,null,null,null,null,null,null,null,null,null,null,null,null,null,87.911323999999993,87.905624900000007,87.909503000000001,87.910229999999999]
[null,null,null,null,null,null,null,null,null,null,null,null,null,null,null,null,null,null,null,null,null,null,null,null,null,"89",null,null,null,null,null,null,null,null,null,null,null,null,null,null,null,null,null,null,null,null,null,null,null,null,null,null,null,null,null,null,null,null,null,null,null,null,null,null,88.907458000000005,88.905856,88.908900299999999,88.913450999999995]
[null,null,null,null,null,null,null,null,null,null,null,null,null,null,null,null,null,null,null,null,null,null,null,null,null,"90",null,null,null,null,null,null,null,null,null,null,null,null,null,null,null,null,null,null,null,null,null,null,null,null,null,null,null,null,null,null,null,null,null,null,null,null,null,null,null,89.907159899999996,89.904707999999999,89.911268000000007]
[null,null,null,null,null,null,null,null,null,null,null,null,null,null,null,null,null,null,null,null,null,null,null,null,null,"91",null,null,null,null,null,null,null,null,null,null,null,null,null,null,null,null,null,null,null,null,null,null,null,null,null,null,null,null,null,null,null,null,null,null,null,null,null,null,null,90.907300699999993,90.905644199999998,90.906992000000002,90.911756999999994]
[null,null,null,null,null,null,null,null,null,null,null,null,null,null,null,null,null,null,null,null,null,null,null,null,null,"92",null,null,null,null,null,null,null,null,null,null,null,null,null,null,null,null,null,null,null,null,null,null,null,null,null,null,null,null,null,null,null,null,null,null,null,null,null,null,null,91.908940999999999,91.905039200000004,91.905039200000004,91.906808999999996,91.915260000000004]
[null,null,null,null,null,null,null,null,null,null,null,null,null,null,null,null,null,null,null,null,null,null,null,null,null,"97",null,null,null,null,null,null,null,null,null,null,null,null,null,null,null,null,null,null,null,null,null,null,null,null,null,null,null,null,null,null,null,null,null,null,null,null,null,null,null,92.909580000000005,92.906477100000004,92.906378000000004,92.906813999999997,92.910241999999997]
[null,null,null,null,null,null,null,null,null,null,null,null,null,null,null,null,null,null,null,null,null,null,null,null,null,"97",null,null,null,null,null,null,null,null,null,null,null,null,null,null,null,null,null,null,null,null,null,null,null,null,null,null,null,null,null,null,null,null,null,null,null,null,null,null,null,null,93.906319100000005,93.907281900000001,93.9050862,93.909655000000001,93.911356999999995]
[null,null,null,null,null,null,null,null,null,null,null,null,null,null,null,null,null,null,null,null,null,null,null,null,null,"97",null,null,null,null,null,null,null,null,null,null,null,null,null,null,null,null,null,null,null,null,null,null,null,null,null,null,null,null,null,null,null,null,null,null,null,null,null,null,null,null,94.908037300000004,94.906831600000004,94.905837899999995,94.907662000000002,94.910410999999996]
[null,null,null,null,null,null,null,null,null,null,null,null,null,null,null,null,null,null,null,null,null,null,null,null,null,"96",null,null,null,null,null,null,null,null,null,null,null,null,null,null,null,null,null,null,null,null,null,null,null,null,null,null,null,null,null,null,null,null,null,null,null,null,null,null,null,null,95.908271999999997,95.908096999999998,95.904675499999996,95.907867999999993,95.907595999999998,95.914511000000005]
[null,null,null,null,null,null,null,null,null,null,null,null,null,null,null,null,null,null,null,null,null,null,null,null,null,"97",null,null,null,null,null,null,null,null,null,null,null,null,null,null,null,null,null,null,null,null,null,null,null,null,null,null,null,null,null,null,null,null,null,null,null,null,null,null,null,null,null,96.908092999999994,96.906017899999995,96.906362000000001,96.907600000000002]
[null,null,null,null,null,null,null,null,null,null,null,null,null,null,null,null,null,null,null,null,null,null,null,null,null,"98",null,null,null,null,null,null,null,null,null,null,null,null,null,null,null,null,null,null,null,null,null,null,null,null,null,null,null,null,null,null,null,null,null,null,null,null,null,null,null,null,null,97.910326999999995,97.905405000000002,97.907211000000004,97.905287000000001,97.910715999999994,97.912760000000006]
[null,null,null,null,null,null,null,null,null,null,null,null,null,null,null,null,null,null,null,null,null,null,null,null,null,"99",null,null,null,null,null,null,null,null,null,null,null,null,null,null,null,null,null,null,null,null,null,null,null,null,null,null,null,null,null,null,null,null,null,null,null,null,null,null,null,null,null,null,98.907708700000001,98.906252199999997,98.905937100000003,98.908195000000006,98.911850000000001]
[null,null,null,null,null,null,null,null,null,null,null,null,null,null,null,null,null,null,null,null,null,null,null,null,null,"100",null,null,null,null,null,null,null,null,null,null,null,null,null,null,null,null,null,null,null,null,null,null,null,null,null,null,null,null,null,null,null,null,null,null,null,null,null,null,null,null,null,null,99.907472999999996,99.907655800000001,99.904217500000001,99.908113999999998,99.908501999999999]
[null,null,null,null,null,null,null,null,null,null,null,null,null,null,null,null,null,null,null,null,null,null,null,null,null,"101",null,null,null,null,null,null,null,null,null,null,null,null,null,null,null,null,null,null,null,null,null,null,null,null,null,null,null,null,null,null,null,null,null,null,null,null,null,null,null,null,null,null,null,100.907325,100.9055808,100.90616199999999,100.90828999999999]
[null,null,null,null,null,null,null,null,null,null,null,null,null,null,null,null,null,null,null,null,null,null,null,null,null,"102",null,null,null,null,null,null,null,null,null,null,null,null,null,null,null,null,null,null,null,null,null,null,null,null,null,null,null,null,null,null,null,null,null,null,null,null,null,null,null,null,null,null,null,101.90918000000001,101.9043475,101.906842,101.905609,101.91162]
[null,null,null,null,null,null,null,null,null,null,null,null,null,null,null,null,null,null,null,null,null,null,null,null,null,"103",null,null,null,null,null,null,null,null,null,null,null,null,null,null,null,null,null,null,null,null,null,null,null,null,null,null,null,null,null,null,null,null,null,null,null,null,null,null,null,null,null,null,null,null,102.9063218,102.905503,102.90608899999999,102.90897]
[null,null,null,null,null,null,null,null,null,null,null,null,null,null,null,null,null,null,null,null,null,null,null,null,null,"104",null,null,null,null,null,null,null,null,null,null,null,null,null,null,null,null,null,null,null,null,null,null,null,null,null,null,null,null,null,null,null,null,null,null,null,null,null,null,null,null,null,null,null,null,103.905422,103.90665300000001,103.904026,103.90858799999999,103.90998]
[null,null,null,null,null,null,null,null,null,null,null,null,null,null,null,null,null,null,null,null,null,null,null,null,null,"105",null,null,null,null,null,null,null,null,null,null,null,null,null,null,null,null,null,null,null,null,null,null,null,null,null,null,null,null,null,null,null,null,null,null,null,null,null,null,null,null,null,null,null,null,null,104.90568399999999,104.905075,104.906522,104.909462]
[null,null,null,null,null,null,null,null,null,null,null,null,null,null,null,null,null,null,null,null,null,null,null,null,null,"106",null,null,null,null,null,null,null,null,null,null,null,null,null,null,null,null,null,null,null,null,null,null,null,null,null,null,null,null,null,null,null,null,null,null,null,null,null,null,null,null,null,null,null,null,null,105.907276,105.903475,105.906678,105.90646099999999,105.913488]
[null,null,null,null,null,null,null,null,null,null,null,null,null,null,null,null,null,null,null,null,null,null,null,null,null,"107",null,null,null,null,null,null,null,null,null,null,null,null,null,null,null,null,null,null,null,null,null,null,null,null,null,null,null,null,null,null,null,null,null,null,null,null,null,null,null,null,null,null,null,null,null,106.90675,106.90513,106.905095,106.90616,106.91036]
[null,null,null,null,null,null,null,null,null,null,null,null,null,null,null,null,null,null,null,null,null,null,null,null,null,"108",null,null,null,null,null,null,null,null,null,null,null,null,null,null,null,null,null,null,null,null,null,null,null,null,null,null,null,null,null,null,null,null,null,null,null,null,null,null,null,null,null,null,null,null,null,null,107.90389399999999,107.905956,107.904186,107.90971,107.91208]
[null,null,null,null,null,null,null,null,null,null,null,null,null,null,null,null,null,null,null,null,null,null,null,null,null,"109",null,null,null,null,null,null,null,null,null,null,null,null,null,null,null,null,null,null,null,null,null,null,null,null,null,null,null,null,null,null,null,null,null,null,null,null,null,null,null,null,null,null,null,null,null,null,108.905952,108.904754,108.904949,108.907113,108.9113]
[null,null,null,null,null,null,null,null,null,null,null,null,null,null,null,null,null,null,null,null,null,null,null,null,null,"110",null,null,null,null,null,null,null,null,null,null,null,null,null,null,null,null,null,null,null,null,null,null,null,null,null,null,null,null,null,null,null,null,null,null,null,null,null,null,null,null,null,null,null,null,null,null,109.905169,109.906113,109.903007,109.90723699999999,109.907854]
[null,null,null,null,null,null,null,null,null,null,null,null,null,null,null,null,null,null,null,null,null,null,null,null,null,"111",null,null,null,null,null,null,null,null,null,null,null,null,null,null,null,null,null,null,null,null,null,null,null,null,null,null,null,null,null,null,null,null,null,null,null,null,null,null,null,null,null,null,null,null,null,null,null,110.905286,110.90418200000001,110.90509400000001,110.90774]
[null,null,null,null,null,null,null,null,null,null,null,null,null,null,null,null,null,null,null,null,null,null,null,null,null,"112",null,null,null,null,null,null,null,null,null,null,null,null,null,null,null,null,null,null,null,null,null,null,null,null,null,null,null,null,null,null,null,null,null,null,null,null,null,null,null,null,null,null,null,null,null,null,null,111.907011,111.9027614,111.905529,111.90482299999999,111.91255,111.91674999999999]
[null,null,null,null,null,null,null,null,null,null,null,null,null,null,null,null,null,null,null,null,null,null,null,null,null,"113",null,null,null,null,null,null,null,null,null,null,null,null,null,null,null,null,null,null,null,null,null,null,null,null,null,null,null,null,null,null,null,null,null,null,null,null,null,null,null,null,null,null,null,null,null,null,null,112.906559,112.9044013,112.904056,112.90517199999999,112.90934799999999,112.91567999999999]
[null,null,null,null,null,null,null,null,null,null,null,null,null,null,null,null,null,null,null,null,null,null,null,null,null,"114",null,null,null,null,null,null,null,null,null,null,null,null,null,null,null,null,null,null,null,null,null,null,null,null,null,null,null,null,null,null,null,null,null,null,null,null,null,null,null,null,null,null,null,null,null,null,null,null,113.90336069999999,113.904911,113.902781,113.90889,113.91177]
[null,null,null,null,null,null,null,null,null,null,null,null,null,null,null,null,null,null,null,null,null,null,null,null,null,"115",null,null,null,null,null,null,null,null,null,null,null,null,null,null,null,null,null,null,null,null,null,null,null,null,null,null,null,null,null,null,null,null,null,null,null,null,null,null,null,null,null,null,null,null,null,null,null,null,114.905429,114.903875,114.9033441,114.906597,114.91152]
[null,null,null,null,null,null,null,null,null,null,null,null,null,null,null,null,null,null,null,null,null,null,null,null,null,"116",null,null,null,null,null,null,null,null,null,null,null,null,null,null,null,null,null,null,null,null,null,null,null,null,null,null,null,null,null,null,null,null,null,null,null,null,null,null,null,null,null,null,null,null,null,null,null,null,115.904758,115.90525700000001,115.90174349999999,115.90667999999999,115.90836]
[null,null,null,null,null,null,null,null,null,null,null,null,null,null,null,null,null,null,null,null,null,null,null,null,null,"117",null,null,null,null,null,null,null,null,null,null,null,null,null,null,null,null,null,null,null,null,null,null,null,null,null,null,null,null,null,null,null,null,null,null,null,null,null,null,null,null,null,null,null,null,null,null,null,null,null,116.904515,116.9029536,116.904827,116.908573]
[null,null,null,null,null,null,null,null,null,null,null,null,null,null,null,null,null,null,null,null,null,null,null,null,null,"118",null,null,null,null,null,null,null,null,null,null,null,null,null,null,null,null,null,null,null,null,null,null,null,null,null,null,null,null,null,null,null,null,null,null,null,null,null,null,null,null,null,null,null,null,null,null,null,null,null,117.90612,117.90160659999999,117.905564,117.90588200000001]
[null,null,null,null,null,null,null,null,null,null,null,null,null,null,null,null,null,null,null,null,null,null,null,null,null,"119",null,null,null,null,null,null,null,null,null,null,null,null,null,null,null,null,null,null,null,null,null,null,null,null,null,null,null,null,null,null,null,null,null,null,null,null,null,null,null,null,null,null,null,null,null,null,null,null,null,118.90581899999999,118.90331020000001,118.903937,118.9064]
[null,null,null,null,null,null,null,null,null,null,null,null,null,null,null,null,null,null,null,null,null,null,null,null,null,"120",null,null,null,null,null,null,null,null,null,null,null,null,null,null,null,null,null,null,null,null,null,null,null,null,null,null,null,null,null,null,null,null,null,null,null,null,null,null,null,null,null,null,null,null,null,null,null,null,null,119.908,119.902199,119.90507700000001,119.904021,119.90982]
[null,null,null,null,null,null,null,null,null,null,null,null,null,null,null,null,null,null,null,null,null,null,null,null,null,"121",null,null,null,null,null,null,null,null,null,null,null,null,null,null,null,null,null,null,null,null,null,null,null,null,null,null,null,null,null,null,null,null,null,null,null,null,null,null,null,null,null,null,null,null,null,null,null,null,null,120.90784499999999,120.90423869999999,120.9038237,120.904983,120.90752999999999]
[null,null,null,null,null,null,null,null,null,null,null,null,null,null,null,null,null,null,null,null,null,null,null,null,null,"122",null,null,null,null,null,null,null,null,null,null,null,null,null,null,null,null,null,null,null,null,null,null,null,null,null,null,null,null,null,null,null,null,null,null,null,null,null,null,null,null,null,null,null,null,null,null,null,null,null,null,121.90344,121.90518179999999,121.90305499999999,121.9075,121.90857]
[null,null,null,null,null,null,null,null,null,null,null,null,null,null,null,null,null,null,null,null,null,null,null,null,null,"123",null,null,null,null,null,null,null,null,null,null,null,null,null,null,null,null,null,null,null,null,null,null,null,null,null,null,null,null,null,null,null,null,null,null,null,null,null,null,null,null,null,null,null,null,null,null,null,null,null,null,122.905721,122.904222,122.90427800000001,122.90557,122.90844]
[null,null,null,null,null,null,null,null,null,null,null,null,null,null,null,null,null,null,null,null,null,null,null,null,null,"124",null,null,null,null,null,null,null,null,null,null,null,null,null,null,null,null,null,null,null,null,null,null,null,null,null,null,null,null,null,null,null,null,null,null,null,null,null,null,null,null,null,null,null,null,null,null,null,null,null,null,123.905271,123.90594400000001,123.90282500000001,123.906215,123.90612,123.91248]
[null,null,null,null,null,null,null,null,null,null,null,null,null,null,null,null,null,null,null,null,null,null,null,null,null,"125",null,null,null,null,null,null,null,null,null,null,null,null,null,null,null,null,null,null,null,null,null,null,null,null,null,null,null,null,null,null,null,null,null,null,null,null,null,null,null,null,null,null,null,null,null,null,null,null,null,null,null,124.905259,124.90443500000001,124.90462599999999,124.90649000000001,124.90978]
[null,null,null,null,null,null,null,null,null,null,null,null,null,null,null,null,null,null,null,null,null,null,null,null,null,"126",null,null,null,null,null,null,null,null,null,null,null,null,null,null,null,null,null,null,null,null,null,null,null,null,null,null,null,null,null,null,null,null,null,null,null,null,null,null,null,null,null,null,null,null,null,null,null,null,null,null,null,125.907245,125.90331,125.905624,125.905624,125.90947,125.91137000000001]
[null,null,null,null,null,null,null,null,null,null,null,null,null,null,null,null,null,null,null,null,null,null,null,null,null,"127",null,null,null,null,null,null,null,null,null,null,null,null,null,null,null,null,null,null,null,null,null,null,null,null,null,null,null,null,null,null,null,null,null,null,null,null,null,null,null,null,null,null,null,null,null,null,null,null,null,null,null,126.90692,126.90522199999999,126.904477,126.90519,126.907455,126.91116]
[null,null,null,null,null,null,null,null,null,null,null,null,null,null,null,null,null,null,null,null,null,null,null,null,null,"128",null,null,null,null,null,null,null,null,null,null,null,null,null,null,null,null,null,null,null,null,null,null,null,null,null,null,null,null,null,null,null,null,null,null,null,null,null,null,null,null,null,null,null,null,null,null,null,null,null,null,null,null,127.904464,127.905815,127.9035308,127.907746,127.908232]
[null,null,null,null,null,null,null,null,null,null,null,null,null,null,null,null,null,null,null,null,null,null,null,null,null,"129",null,null,null,null,null,null,null,null,null,null,null,null,null,null,null,null,null,null,null,null,null,null,null,null,null,null,null,null,null,null,null,null,null,null,null,null,null,null,null,null,null,null,null,null,null,null,null,null,null,null,null,null,128.90659500000001,128.90498600000001,128.90478010000001,128.90599800000001,128.908624]
[null,null,null,null,null,null,null,null,null,null,null,null,null,null,null,null,null,null,null,null,null,null,null,null,null,"130",null,null,null,null,null,null,null,null,null,null,null,null,null,null,null,null,null,null,null,null,null,null,null,null,null,null,null,null,null,null,null,null,null,null,null,null,null,null,null,null,null,null,null,null,null,null,null,null,null,null,null,null,129.906229,129.906713,129.90350950000001,129.90674999999999,129.90627699999999,129.91239999999999]
[null,"Z","M","En (MeV)","Vcb (MV)",null,null,null,null,null,null,null,null,null,null,null,null,null,null,null,null,null,null,null,null,"131",null,null,null,null,null,null,null,null,null,null,null,null,null,null,null,null,null,null,null,null,null,null,null,null,null,null,null,null,null,null,null,null,null,null,null,null,null,null,null,null,null,null,null,null,null,null,null,null,null,null,null,null,null,130.90611899999999,130.90507600000001,130.90545700000001,130.90689699999999,130.91006999999999,130.91469000000001]
["H",1,3,3.3614072469022016,{"$f":"B201/(1+C201^0.33)","v":0.41034434562970179},null,null,null,null,null,null,null,null,null,null,null,null,null,null,null,null,null,null,null,null,"132",null,null,null,null,null,null,null,null,null,null,null,null,null,null,null,null,null,null,null,null,null,null,null,null,null,null,null,null,null,null,null,null,null,null,null,null,null,null,null,null,null,null,null,null,null,null,null,null,null,null,null,null,null,131.90799200000001,131.90414799999999,131.90641500000001,131.90504200000001,131.9101,131.91159999999999]
["He",2,5,3.2316670642293275,{"$f":"B202/(1+C202^0.33)","v":0.7405139670917632},null,null,null,null,null,null,null,null,null,null,null,null,null,null,null,null,null,null,null,null,"133",null,null,null,null,null,null,null,null,null,null,null,null,null,null,null,null,null,null,null,null,null,null,null,null,null,null,null,null,null,null,null,null,null,null,null,null,null,null,null,null,null,null,null,null,null,null,null,null,null,null,null,null,null,132.907781,132.90589199999999,132.90543299999999,132.905992,132.90814,132.91179]
["He",2,6,6.9362224576175544,0.71268214695540089,null,null,null,null,null,null,null,null,null,null,null,null,null,null,null,null,null,null,null,null,"134",null,null,null,null,null,null,null,null,null,null,null,null,null,null,null,null,null,null,null,null,null,null,null,null,null,null,null,null,null,null,null,null,null,null,null,null,null,null,null,null,null,null,null,null,null,null,null,null,null,null,null,null,null,null,133.905395,133.9067,133.90449000000001,133.90846199999999,133.90899999999999]
["He",2,7,14.226224143446098,0.6895212238252777,null,null,null,null,null,null,null,null,null,null,null,null,null,null,null,null,null,null,null,null,"135",null,null,null,null,null,null,null,null,null,null,null,null,null,null,null,null,null,null,null,null,null,null,null,null,null,null,null,null,null,null,null,null,null,null,null,null,null,null,null,null,null,null,null,null,null,null,null,null,null,null,null,null,null,null,134.90713199999999,134.905888,134.90566799999999,134.90695600000001,134.90923000000001]
["Li",3,7,2.6881130547031411,1.0342818357379167,null,null,null,null,null,null,null,null,null,null,null,null,null,null,null,null,null,null,null,null,"136",null,null,null,null,null,null,null,null,null,null,null,null,null,null,null,null,null,null,null,null,null,null,null,null,null,null,null,null,null,null,null,null,null,null,null,null,null,null,null,null,null,null,null,null,null,null,null,null,null,null,null,null,null,null,135.907219,135.90729200000001,135.90455600000001,135.90763999999999,135.90714,135.91261,135.91498999999999]
["Li",3,8,18.802884939665855,1.0046263072007087,null,null,null,null,null,null,null,null,null,null,null,null,null,null,null,null,null,null,null,null,"137",null,null,null,null,null,null,null,null,null,null,null,null,null,null,null,null,null,null,null,null,null,null,null,null,null,null,null,null,null,null,null,null,null,null,null,null,null,null,null,null,null,null,null,null,null,null,null,null,null,null,null,null,null,null,null,136.90707499999999,136.90581599999999,136.90646000000001,136.90777,136.91067000000001,136.91475]
["Be",4,9,2.5177929356335467,1.3050976445976266,null,null,null,null,null,null,null,null,null,null,null,null,null,null,null,null,null,null,null,null,"138",null,null,null,null,null,null,null,null,null,null,null,null,null,null,null,null,null,null,null,null,null,null,null,null,null,null,null,null,null,null,null,null,null,null,null,null,null,null,null,null,null,null,null,null,null,null,null,null,null,null,null,null,null,null,null,137.91113999999999,137.905236,137.90711400000001,137.90599599999999,137.91075900000001,137.91193999999999]
["Be",4,10,4.1570357217637746,1.2747126593344251,null,null,null,null,null,null,null,null,null,null,null,null,null,null,null,null,null,null,null,null,"139",null,null,null,null,null,null,null,null,null,null,null,null,null,null,null,null,null,null,null,null,null,null,null,null,null,null,null,null,null,null,null,null,null,null,null,null,null,null,null,null,null,null,null,null,null,null,null,null,null,null,null,null,null,null,null,null,null,138.90635499999999,138.90663900000001,138.908907,138.91191000000001]
["Be",4,11,14.758384024992596,1.2475537395360887,null,null,null,null,null,null,null,null,null,null,null,null,null,null,null,null,null,null,null,null,"140",null,null,null,null,null,null,null,null,null,null,null,null,null,null,null,null,null,null,null,null,null,null,null,null,null,null,null,null,null,null,null,null,null,null,null,null,null,null,null,null,null,null,null,null,null,null,null,null,null,null,null,null,null,null,null,null,null,139.909479,139.90544199999999,139.90907899999999,139.90958000000001]
["Be",4,12,14.940939187215312,1.2230383418496791,null,null,null,null,null,null,null,null,null,null,null,null,null,null,null,null,null,null,null,null,"141",null,null,null,null,null,null,null,null,null,null,null,null,null,null,null,null,null,null,null,null,null,null,null,null,null,null,null,null,null,null,null,null,null,null,null,null,null,null,null,null,null,null,null,null,null,null,null,null,null,null,null,null,null,null,null,null,null,null,140.90827899999999,140.907657,140.909605,140.91361000000001]
["B",5,11,1.6039116908043312,1.5594421744201108,null,null,null,null,null,null,null,null,null,null,null,null,null,null,null,null,null,null,null,null,"142",null,null,null,null,null,null,null,null,null,null,null,null,null,null,null,null,null,null,null,null,null,null,null,null,null,null,null,null,null,null,null,null,null,null,null,null,null,null,null,null,null,null,null,null,null,null,null,null,null,null,null,null,null,null,null,null,null,null,141.90924899999999,141.91004799999999,141.90773100000001,141.91298]
["B",5,12,16.577161237278098,1.5287979273120986,null,null,null,null,null,null,null,null,null,null,null,null,null,null,null,null,null,null,null,null,"143",null,null,null,null,null,null,null,null,null,null,null,null,null,null,null,null,null,null,null,null,null,null,null,null,null,null,null,null,null,null,null,null,null,null,null,null,null,null,null,null,null,null,null,null,null,null,null,null,null,null,null,null,null,null,null,null,null,null,null,142.91082700000001,142.90982299999999,142.91094100000001,142.91464199999999]
["C",6,13,1.376848107316849,1.8010895495864065,null,null,null,null,null,null,null,null,null,null,null,null,null,null,null,null,null,null,null,null,"144",null,null,null,null,null,null,null,null,null,null,null,null,null,null,null,null,null,null,null,null,null,null,null,null,null,null,null,null,null,null,null,null,null,null,null,null,null,null,null,null,null,null,null,null,null,null,null,null,null,null,null,null,null,null,null,null,null,null,null,143.91331199999999,143.91009600000001,143.91259700000001,143.91200900000001,143.918802]
["C",6,14,3.7930385362687717,1.7704162209942069,null,null,null,null,null,null,null,null,null,null,null,null,null,null,null,null,null,null,null,null,"145",null,null,null,null,null,null,null,null,null,null,null,null,null,null,null,null,null,null,null,null,null,null,null,null,null,null,null,null,null,null,null,null,null,null,null,null,null,null,null,null,null,null,null,null,null,null,null,null,null,null,null,null,null,null,null,null,null,null,null,144.91452000000001,144.91258199999999,144.91275400000001,144.91341299999999,144.91633300000001]
["N",7,15,0.83189883420044697,2.0324907208618623,null,null,null,null,null,null,null,null,null,null,null,null,null,null,null,null,null,null,null,null,"146",null,null,null,null,null,null,null,null,null,null,null,null,null,null,null,null,null,null,null,null,null,null,null,null,null,null,null,null,null,null,null,null,null,null,null,null,null,null,null,null,null,null,null,null,null,null,null,null,null,null,null,null,null,null,null,null,null,null,null,145.91750999999999,145.91312600000001,145.914717,145.913061,145.91721899999999,145.91851]
["N",7,16,13.844101863571113,2.0019097659758183,null,null,null,null,null,null,null,null,null,null,null,null,null,null,null,null,null,null,null,null,"147",null,null,null,null,null,null,null,null,null,null,null,null,null,null,null,null,null,null,null,null,null,null,null,null,null,null,null,null,null,null,null,null,null,null,null,null,null,null,null,null,null,null,null,null,null,null,null,null,null,null,null,null,null,null,null,null,null,null,null,146.91900999999999,146.91611,146.91514799999999,146.914907,146.916764,146.919263]
["O",8,17,0.84033539620645614,2.2553555255161686,null,null,null,null,null,null,null,null,null,null,null,null,null,null,null,null,null,null,null,null,"148",null,null,null,null,null,null,null,null,null,null,null,null,null,null,null,null,null,null,null,null,null,null,null,null,null,null,null,null,null,null,null,null,null,null,null,null,null,null,null,null,null,null,null,null,null,null,null,null,null,null,null,null,null,null,null,null,null,null,null,null,147.916901,147.91747699999999,147.91483199999999,147.918159,147.91812400000001]
["O",8,18,1.9897496758745064,2.2249336025621966,null,null,null,null,null,null,null,null,null,null,null,null,null,null,null,null,null,null,null,null,"149",null,null,null,null,null,null,null,null,null,null,null,null,null,null,null,null,null,null,null,null,null,null,null,null,null,null,null,null,null,null,null,null,null,null,null,null,null,null,null,null,null,null,null,null,null,null,null,null,null,null,null,null,null,null,null,null,null,null,null,null,148.92015699999999,148.91834299999999,148.917193,148.91793999999999,148.919344]
["O",8,19,8.4176609347273885,2.1963902726166573,null,null,null,null,null,null,null,null,null,null,null,null,null,null,null,null,null,null,null,null,"150",null,null,null,null,null,null,null,null,null,null,null,null,null,null,null,null,null,null,null,null,null,null,null,null,null,null,null,null,null,null,null,null,null,null,null,null,null,null,null,null,null,null,null,null,null,null,null,null,null,null,null,null,null,null,null,null,null,null,null,null,149.92089999999999,149.92104,149.91728499999999,149.919747,149.91866300000001]
["F",9,19,0.33726034979384534,2.470939056693739,null,null,null,null,null,null,null,null,null,null,null,null,null,null,null,null,null,null,null,null,"151",null,null,null,null,null,null,null,null,null,null,null,null,null,null,null,null,null,null,null,null,null,null,null,null,null,null,null,null,null,null,null,null,null,null,null,null,null,null,null,null,null,null,null,null,null,null,null,null,null,null,null,null,null,null,null,null,null,null,null,null,null,150.92121700000001,150.91994199999999,150.91986,150.920378]
["F",9,20,10.586979142138865,2.4407130854147638,null,null,null,null,null,null,null,null,null,null,null,null,null,null,null,null,null,null,null,null,"152",null,null,null,null,null,null,null,null,null,null,null,null,null,null,null,null,null,null,null,null,null,null,null,null,null,null,null,null,null,null,null,null,null,null,null,null,null,null,null,null,null,null,null,null,null,null,null,null,null,null,null,null,null,null,null,null,null,null,null,null,null,151.92347000000001,151.91974099999999,151.92175599999999,151.919803,151.923936]
["Ne",10,22,0.78224600390021604,2.6501882808395121,null,null,null,null,null,null,null,null,null,null,null,null,null,null,null,null,null,null,null,null,"153",null,null,null,null,null,null,null,null,null,null,null,null,null,null,null,null,null,null,null,null,null,null,null,null,null,null,null,null,null,null,null,null,null,null,null,null,null,null,null,null,null,null,null,null,null,null,null,null,null,null,null,null,null,null,null,null,null,null,null,null,null,null,152.92210700000001,152.921243,152.921505,152.92342600000001]
["Ne",10,23,8.0020293610235953,2.6217139394684952,null,null,null,null,null,null,null,null,null,null,null,null,null,null,null,null,null,null,null,null,"154",null,null,null,null,null,null,null,null,null,null,null,null,null,null,null,null,null,null,null,null,null,null,null,null,null,null,null,null,null,null,null,null,null,null,null,null,null,null,null,null,null,null,null,null,null,null,null,null,null,null,null,null,null,null,null,null,null,null,null,null,null,null,153.92221799999999,153.922999,153.92087599999999,153.92458999999999,153.924432]
["Na",11,24,9.1287059447544774,2.8541008711886411,null,null,null,null,null,null,null,null,null,null,null,null,null,null,null,null,null,null,null,null,"155",null,null,null,null,null,null,null,null,null,null,null,null,null,null,null,null,null,null,null,null,null,null,null,null,null,null,null,null,null,null,null,null,null,null,null,null,null,null,null,null,null,null,null,null,null,null,null,null,null,null,null,null,null,null,null,null,null,null,null,null,null,null,null,154.92289299999999,154.922629,154.92350400000001,154.925758]
["Mg",12,27,6.2715094093812001,3.0247866043645208,null,null,null,null,null,null,null,null,null,null,null,null,null,null,null,null,null,null,null,null,"156",null,null,null,null,null,null,null,null,null,null,null,null,null,null,null,null,null,null,null,null,null,null,null,null,null,null,null,null,null,null,null,null,null,null,null,null,null,null,null,null,null,null,null,null,null,null,null,null,null,null,null,null,null,null,null,null,null,null,null,null,null,null,null,155.92476400000001,155.92213000000001,155.924747,155.92428699999999,155.92975999999999]
["Al",13,28,8.2825382837277459,3.247526078849809,null,null,null,null,null,null,null,null,null,null,null,null,null,null,null,null,null,null,null,null,"157",null,null,null,null,null,null,null,null,null,null,null,null,null,null,null,null,null,null,null,null,null,null,null,null,null,null,null,null,null,null,null,null,null,null,null,null,null,null,null,null,null,null,null,null,null,null,null,null,null,null,null,null,null,null,null,null,null,null,null,null,null,null,null,156.92542700000001,156.923967,156.92402899999999,156.92546999999999,156.9282,156.93227999999999]
["Si",14,31,5.1685234097215158,3.409953804935379,null,null,null,null,null,null,null,null,null,null,null,null,null,null,null,null,null,null,null,null,"158",null,null,null,null,null,null,null,null,null,null,null,null,null,null,null,null,null,null,null,null,null,null,null,null,null,null,null,null,null,null,null,null,null,null,null,null,null,null,null,null,null,null,null,null,null,null,null,null,null,null,null,null,null,null,null,null,null,null,null,null,null,null,null,null,157.92411100000001,157.92541600000001,157.92441199999999,157.92868200000001,157.93018000000001]
["P",15,32,5.3870996762646639,3.6246449250704038,null,null,null,null,null,null,null,null,null,null,null,null,null,null,null,null,null,null,null,null,"159",null,null,null,null,null,null,null,null,null,null,null,null,null,null,null,null,null,null,null,null,null,null,null,null,null,null,null,null,null,null,null,null,null,null,null,null,null,null,null,null,null,null,null,null,null,null,null,null,null,null,null,null,null,null,null,null,null,null,null,null,null,null,null,null,158.92639700000001,158.92535000000001,158.92574300000001,158.92773199999999,158.93088]
["P",15,33,3.9321347493535894,3.5968053625930567,null,null,null,null,null,null,null,null,null,null,null,null,null,null,null,null,null,null,null,null,"160",null,null,null,null,null,null,null,null,null,null,null,null,null,null,null,null,null,null,null,null,null,null,null,null,null,null,null,null,null,null,null,null,null,null,null,null,null,null,null,null,null,null,null,null,null,null,null,null,null,null,null,null,null,null,null,null,null,null,null,null,null,null,null,null,159.92706100000001,159.92717099999999,159.92520300000001,159.928731,159.929091]
["S",16,35,3.8534220423245649,3.7802456403747655,null,null,null,null,null,null,null,null,null,null,null,null,null,null,null,null,null,null,null,null,"161",null,null,null,null,null,null,null,null,null,null,null,null,null,null,null,null,null,null,null,null,null,null,null,null,null,null,null,null,null,null,null,null,null,null,null,null,null,null,null,null,null,null,null,null,null,null,null,null,null,null,null,null,null,null,null,null,null,null,null,null,null,null,null,null,null,160.927573,160.926939,160.92785499999999,160.93000900000001]
["S",16,36,2.54254077182244,3.7534718283606683,null,null,null,null,null,null,null,null,null,null,null,null,null,null,null,null,null,null,null,null,"162",null,null,null,null,null,null,null,null,null,null,null,null,null,null,null,null,null,null,null,null,null,null,null,null,null,null,null,null,null,null,null,null,null,null,null,null,null,null,null,null,null,null,null,null,null,null,null,null,null,null,null,null,null,null,null,null,null,null,null,null,null,null,null,null,null,161.92939999999999,161.926805,161.92909700000001,161.928787,161.93393]
["Cl",17,36,4.3939026489857858,3.9880638176332099,null,null,null,null,null,null,null,null,null,null,null,null,null,null,null,null,null,null,null,null,"163",null,null,null,null,null,null,null,null,null,null,null,null,null,null,null,null,null,null,null,null,null,null,null,null,null,null,null,null,null,null,null,null,null,null,null,null,null,null,null,null,null,null,null,null,null,null,null,null,null,null,null,null,null,null,null,null,null,null,null,null,null,null,null,null,null,null,162.92873700000001,162.92873900000001,162.93003999999999]
["Cl",17,37,2.8730070686436227,3.9605304424106058,null,null,null,null,null,null,null,null,null,null,null,null,null,null,null,null,null,null,null,null,"164",null,null,null,null,null,null,null,null,null,null,null,null,null,null,null,null,null,null,null,null,null,null,null,null,null,null,null,null,null,null,null,null,null,null,null,null,null,null,null,null,null,null,null,null,null,null,null,null,null,null,null,null,null,null,null,null,null,null,null,null,null,null,null,null,null,null,163.92918299999999,163.93028699999999,163.92921100000001,163.93346500000001,163.93465]
["Cl",17,38,8.5721148980194677,3.9338587492745045,null,null,null,null,null,null,null,null,null,null,null,null,null,null,null,null,null,null,null,null,"165",null,null,null,null,null,null,null,null,null,null,null,null,null,null,null,null,null,null,null,null,null,null,null,null,null,null,null,null,null,null,null,null,null,null,null,null,null,null,null,null,null,null,null,null,null,null,null,null,null,null,null,null,null,null,null,null,null,null,null,null,null,null,null,null,null,null,null,164.93033199999999,164.93073699999999,164.93244899999999,164.93541500000001]
["Ar",18,39,4.2531474475855733,4.137883242769151,null,null,null,null,null,null,null,null,null,null,null,null,null,null,null,null,null,null,null,null,"166",null,null,null,null,null,null,null,null,null,null,null,null,null,null,null,null,null,null,null,null,null,null,null,null,null,null,null,null,null,null,null,null,null,null,null,null,null,null,null,null,null,null,null,null,null,null,null,null,null,null,null,null,null,null,null,null,null,null,null,null,null,null,null,null,null,null,null,165.93229600000001,165.930305,165.93357599999999,165.93388899999999]
["Ar",18,40,2.1814325284986111,4.1113192233256193,null,null,null,null,null,null,null,null,null,null,null,null,null,null,null,null,null,null,null,null,"167",null,null,null,null,null,null,null,null,null,null,null,null,null,null,null,null,null,null,null,null,null,null,null,null,null,null,null,null,null,null,null,null,null,null,null,null,null,null,null,null,null,null,null,null,null,null,null,null,null,null,null,null,null,null,null,null,null,null,null,null,null,null,null,null,null,null,null,166.93310199999999,166.932061,166.93286499999999,166.93496200000001]
["Ar",18,41,6.1720311846826856,4.0855270343933112,null,null,null,null,null,null,null,null,null,null,null,null,null,null,null,null,null,null,null,null,"168",null,null,null,null,null,null,null,null,null,null,null,null,null,null,null,null,null,null,null,null,null,null,null,null,null,null,null,null,null,null,null,null,null,null,null,null,null,null,null,null,null,null,null,null,null,null,null,null,null,null,null,null,null,null,null,null,null,null,null,null,null,null,null,null,null,null,null,null,167.93238299999999,167.93418600000001,167.933908,167.93870999999999]
["K",19,40,4.9973173697254198,4.3397258468437085,null,null,null,null,null,null,null,null,null,null,null,null,null,null,null,null,null,null,null,null,"169",null,null,null,null,null,null,null,null,null,null,null,null,null,null,null,null,null,null,null,null,null,null,null,null,null,null,null,null,null,null,null,null,null,null,null,null,null,null,null,null,null,null,null,null,null,null,null,null,null,null,null,null,null,null,null,null,null,null,null,null,null,null,null,null,null,null,null,null,168.93460300000001,168.934225,168.93520100000001,168.93786299999999]
["K",19,41,3.2676266486449488,4.3125007585262729,null,null,null,null,null,null,null,null,null,null,null,null,null,null,null,null,null,null,null,null,"170",null,null,null,null,null,null,null,null,null,null,null,null,null,null,null,null,null,null,null,null,null,null,null,null,null,null,null,null,null,null,null,null,null,null,null,null,null,null,null,null,null,null,null,null,null,null,null,null,null,null,null,null,null,null,null,null,null,null,null,null,null,null,null,null,null,null,null,null,169.93547599999999,169.935813,169.934774,169.93846600000001,169.93975]
["K",19,42,7.1985045259374951,4.2860482955076602,null,null,null,null,null,null,null,null,null,null,null,null,null,null,null,null,null,null,null,null,"171",null,null,null,null,null,null,null,null,null,null,null,null,null,null,null,null,null,null,null,null,null,null,null,null,null,null,null,null,null,null,null,null,null,null,null,null,null,null,null,null,null,null,null,null,null,null,null,null,null,null,null,null,null,null,null,null,null,null,null,null,null,null,null,null,null,null,null,null,null,170.936442,170.93633800000001,170.937927,170.94063]
["K",19,43,5.5057091731426953,4.2603294652510764,null,null,null,null,null,null,null,null,null,null,null,null,null,null,null,null,null,null,null,null,"172",null,null,null,null,null,null,null,null,null,null,null,null,null,null,null,null,null,null,null,null,null,null,null,null,null,null,null,null,null,null,null,null,null,null,null,null,null,null,null,null,null,null,null,null,null,null,null,null,null,null,null,null,null,null,null,null,null,null,null,null,null,null,null,null,null,null,null,null,null,171.9384,171.93639300000001,171.93910299999999,171.93952999999999]
["K",19,44,9.3210893306165641,4.2353080754043235,null,null,null,null,null,null,null,null,null,null,null,null,null,null,null,null,null,null,null,null,"173",null,null,null,null,null,null,null,null,null,null,null,null,null,null,null,null,null,null,null,null,null,null,null,null,null,null,null,null,null,null,null,null,null,null,null,null,null,null,null,null,null,null,null,null,null,null,null,null,null,null,null,null,null,null,null,null,null,null,null,null,null,null,null,null,null,null,null,null,null,172.939639,172.939639,172.93894700000001,172.94066000000001]
["K",19,45,7.8673657304164557,4.2109504752665643,null,null,null,null,null,null,null,null,null,null,null,null,null,null,null,null,null,null,null,null,"174",null,null,null,null,null,null,null,null,null,null,null,null,null,null,null,null,null,null,null,null,null,null,null,null,null,null,null,null,null,null,null,null,null,null,null,null,null,null,null,null,null,null,null,null,null,null,null,null,null,null,null,null,null,null,null,null,null,null,null,null,null,null,null,null,null,null,null,null,null,null,173.938873,173.94035299999999,173.940065,173.94418999999999]
["Ca",20,43,1.4588847863190639,4.4845573318432379,null,null,null,null,null,null,null,null,null,null,null,null,null,null,null,null,null,null,null,null,"175",null,null,null,null,null,null,null,null,null,null,null,null,null,null,null,null,null,null,null,null,null,null,null,null,null,null,null,null,null,null,null,null,null,null,null,null,null,null,null,null,null,null,null,null,null,null,null,null,null,null,null,null,null,null,null,null,null,null,null,null,null,null,null,null,null,null,null,null,null,null,174.94128699999999,174.94078500000001,174.941441]
["Ca",20,45,3.9558890678824477,4.4325794476490152,null,null,null,null,null,null,null,null,null,null,null,null,null,null,null,null,null,null,null,null,"176",null,null,null,null,null,null,null,null,null,null,null,null,null,null,null,null,null,null,null,null,null,null,null,null,null,null,null,null,null,null,null,null,null,null,null,null,null,null,null,null,null,null,null,null,null,null,null,null,null,null,null,null,null,null,null,null,null,null,null,null,null,null,null,null,null,null,null,null,null,null,175.942576,175.94269399999999,175.94141999999999,175.94475,175.94570999999999]
["Ca",20,46,2.3089198909661968,4.4076056065413933,null,null,null,null,null,null,null,null,null,null,null,null,null,null,null,null,null,null,null,null,"177",null,null,null,null,null,null,null,null,null,null,null,null,null,null,null,null,null,null,null,null,null,null,null,null,null,null,null,null,null,null,null,null,null,null,null,null,null,null,null,null,null,null,null,null,null,null,null,null,null,null,null,null,null,null,null,null,null,null,null,null,null,null,null,null,null,null,null,null,null,null,null,176.94376600000001,176.94323299999999,176.94447600000001,176.94662]
["Ca",20,47,5.6747547219654013,4.383266733995665,null,null,null,null,null,null,null,null,null,null,null,null,null,null,null,null,null,null,null,null,"178",null,null,null,null,null,null,null,null,null,null,null,null,null,null,null,null,null,null,null,null,null,null,null,null,null,null,null,null,null,null,null,null,null,null,null,null,null,null,null,null,null,null,null,null,null,null,null,null,null,null,null,null,null,null,null,null,null,null,null,null,null,null,null,null,null,null,null,null,null,null,null,177.946,177.94371000000001,177.94576000000001,177.94586000000001]
["Ca",20,48,3.9770105321896967,4.359534087124457,null,null,null,null,null,null,null,null,null,null,null,null,null,null,null,null,null,null,null,null,"179",null,null,null,null,null,null,null,null,null,null,null,null,null,null,null,null,null,null,null,null,null,null,null,null,null,null,null,null,null,null,null,null,null,null,null,null,null,null,null,null,null,null,null,null,null,null,null,null,null,null,null,null,null,null,null,null,null,null,null,null,null,null,null,null,null,null,null,null,null,null,null,null,178.94582700000001,178.94595100000001,178.947093]
["Sc",21,44,3.4276793268251877,4.681129978078463,null,null,null,null,null,null,null,null,null,null,null,null,null,null,null,null,null,null,null,null,"180",null,null,null,null,null,null,null,null,null,null,null,null,null,null,null,null,null,null,null,null,null,null,null,null,null,null,null,null,null,null,null,null,null,null,null,null,null,null,null,null,null,null,null,null,null,null,null,null,null,null,null,null,null,null,null,null,null,null,null,null,null,null,null,null,null,null,null,null,null,null,null,null,179.946561,179.94748899999999,179.94672700000001,179.95080100000001]
["Sc",21,45,1.6197838913909595,4.6542084200314662,null,null,null,null,null,null,null,null,null,null,null,null,null,null,null,null,null,null,null,null,"181",null,null,null,null,null,null,null,null,null,null,null,null,null,null,null,null,null,null,null,null,null,null,null,null,null,null,null,null,null,null,null,null,null,null,null,null,null,null,null,null,null,null,null,null,null,null,null,null,null,null,null,null,null,null,null,null,null,null,null,null,null,null,null,null,null,null,null,null,null,null,null,null,null,180.948014,180.948215,180.95015000000001]
["Sc",21,46,6.0519764367634634,4.6279858868684629,null,null,null,null,null,null,null,null,null,null,null,null,null,null,null,null,null,null,null,null,"182",null,null,null,null,null,null,null,null,null,null,null,null,null,null,null,null,null,null,null,null,null,null,null,null,null,null,null,null,null,null,null,null,null,null,null,null,null,null,null,null,null,null,null,null,null,null,null,null,null,null,null,null,null,null,null,null,null,null,null,null,null,null,null,null,null,null,null,null,null,null,null,null,null,181.95017000000001,181.94822500000001,181.95123000000001,181.95214000000001]
["Sc",21,47,4.2932075661665356,4.6024300706954486,null,null,null,null,null,null,null,null,null,null,null,null,null,null,null,null,null,null,null,null,"183",null,null,null,null,null,null,null,null,null,null,null,null,null,null,null,null,null,null,null,null,null,null,null,null,null,null,null,null,null,null,null,null,null,null,null,null,null,null,null,null,null,null,null,null,null,null,null,null,null,null,null,null,null,null,null,null,null,null,null,null,null,null,null,null,null,null,null,null,null,null,null,null,null,182.951391,182.950245,182.950841,182.95330999999999]
["Sc",21,48,7.6660804478077402,4.5775107914806803,null,null,null,null,null,null,null,null,null,null,null,null,null,null,null,null,null,null,null,null,"184",null,null,null,null,null,null,null,null,null,null,null,null,null,null,null,null,null,null,null,null,null,null,null,null,null,null,null,null,null,null,null,null,null,null,null,null,null,null,null,null,null,null,null,null,null,null,null,null,null,null,null,null,null,null,null,null,null,null,null,null,null,null,null,null,null,null,null,null,null,null,null,null,null,null,183.950953,183.95255900000001,183.95251400000001,183.95758000000001]
["Sc",21,49,5.6927651719465873,4.5531998165923113,null,null,null,null,null,null,null,null,null,null,null,null,null,null,null,null,null,null,null,null,"185",null,null,null,null,null,null,null,null,null,null,null,null,null,null,null,null,null,null,null,null,null,null,null,null,null,null,null,null,null,null,null,null,null,null,null,null,null,null,null,null,null,null,null,null,null,null,null,null,null,null,null,null,null,null,null,null,null,null,null,null,null,null,null,null,null,null,null,null,null,null,null,null,null,null,184.953441,184.952977,184.95406600000001,184.85675000000001,184.96082999999999]
["Sc",21,50,10.548626583501695,4.529470698933995,null,null,null,null,null,null,null,null,null,null,null,null,null,null,null,null,null,null,null,null,"186",null,null,null,null,null,null,null,null,null,null,null,null,null,null,null,null,null,null,null,null,null,null,null,null,null,null,null,null,null,null,null,null,null,null,null,null,null,null,null,null,null,null,null,null,null,null,null,null,null,null,null,null,null,null,null,null,null,null,null,null,null,null,null,null,null,null,null,null,null,null,null,null,null,null,185.95437699999999,185.95500799999999,185.95385200000001,185.957965,185.95939000000001]
["Ti",22,47,0.74367008617745634,4.8215934073952313,null,null,null,null,null,null,null,null,null,null,null,null,null,null,null,null,null,null,null,null,"187",null,null,null,null,null,null,null,null,null,null,null,null,null,null,null,null,null,null,null,null,null,null,null,null,null,null,null,null,null,null,null,null,null,null,null,null,null,null,null,null,null,null,null,null,null,null,null,null,null,null,null,null,null,null,null,null,null,null,null,null,null,null,null,null,null,null,null,null,null,null,null,null,null,null,null,186.95576500000001,186.95576199999999,186.95737,186.96048999999999]
["Ti",22,49,3.0928784233350242,4.7700188554776597,null,null,null,null,null,null,null,null,null,null,null,null,null,null,null,null,null,null,null,null,"188",null,null,null,null,null,null,null,null,null,null,null,null,null,null,null,null,null,null,null,null,null,null,null,null,null,null,null,null,null,null,null,null,null,null,null,null,null,null,null,null,null,null,null,null,null,null,null,null,null,null,null,null,null,null,null,null,null,null,null,null,null,null,null,null,null,null,null,null,null,null,null,null,null,null,null,187.95812599999999,187.95585,187.95885899999999,187.95943399999999]
["Ti",22,50,1.4748065898652509,4.745159779835614,null,null,null,null,null,null,null,null,null,null,null,null,null,null,null,null,null,null,null,null,"189",null,null,null,null,null,null,null,null,null,null,null,null,null,null,null,null,null,null,null,null,null,null,null,null,null,null,null,null,null,null,null,null,null,null,null,null,null,null,null,null,null,null,null,null,null,null,null,null,null,null,null,null,null,null,null,null,null,null,null,null,null,null,null,null,null,null,null,null,null,null,null,null,null,null,null,188.959238,188.958156,188.95868999999999,188.96073999999999]
["V",23,48,2.0364499730965364,5.013464200193126,null,null,null,null,null,null,null,null,null,null,null,null,null,null,null,null,null,null,null,null,"190",null,null,null,null,null,null,null,null,null,null,null,null,null,null,null,null,null,null,null,null,null,null,null,null,null,null,null,null,null,null,null,null,null,null,null,null,null,null,null,null,null,null,null,null,null,null,null,null,null,null,null,null,null,null,null,null,null,null,null,null,null,null,null,null,null,null,null,null,null,null,null,null,null,null,null,null,189.95845499999999,189.9606,189.959937,189.96470600000001]
["V",23,49,1.0536235721002327,4.9868378943630081,null,null,null,null,null,null,null,null,null,null,null,null,null,null,null,null,null,null,null,null,"191",null,null,null,null,null,null,null,null,null,null,null,null,null,null,null,null,null,null,null,null,null,null,null,null,null,null,null,null,null,null,null,null,null,null,null,null,null,null,null,null,null,null,null,null,null,null,null,null,null,null,null,null,null,null,null,null,null,null,null,null,null,null,null,null,null,null,null,null,null,null,null,null,null,null,null,null,190.960936,190.96060299999999,190.96167700000001,190.96364]
["V",23,50,4.7316063203649277,4.960848860737233,null,null,null,null,null,null,null,null,null,null,null,null,null,null,null,null,null,null,null,null,"192",null,null,null,null,null,null,null,null,null,null,null,null,null,null,null,null,null,null,null,null,null,null,null,null,null,null,null,null,null,null,null,null,null,null,null,null,null,null,null,null,null,null,null,null,null,null,null,null,null,null,null,null,null,null,null,null,null,null,null,null,null,null,null,null,null,null,null,null,null,null,null,null,null,null,null,null,191.96148700000001,191.962613,191.961049,191.964823,191.96567999999999]
["V",23,51,2.9442067634942188,4.9354699296669757,null,null,null,null,null,null,null,null,null,null,null,null,null,null,null,null,null,null,null,null,"193",null,null,null,null,null,null,null,null,null,null,null,null,null,null,null,null,null,null,null,null,null,null,null,null,null,null,null,null,null,null,null,null,null,null,null,null,null,null,null,null,null,null,null,null,null,null,null,null,null,null,null,null,null,null,null,null,null,null,null,null,null,null,null,null,null,null,null,null,null,null,null,null,null,null,null,null,192.964158,192.962942,192.963008,192.96419,192.9667]
["V",23,52,7.6559266660761143,4.9106755841471355,null,null,null,null,null,null,null,null,null,null,null,null,null,null,null,null,null,null,null,null,"194",null,null,null,null,null,null,null,null,null,null,null,null,null,null,null,null,null,null,null,null,null,null,null,null,null,null,null,null,null,null,null,null,null,null,null,null,null,null,null,null,null,null,null,null,null,null,null,null,null,null,null,null,null,null,null,null,null,null,null,null,null,null,null,null,null,null,null,null,null,null,null,null,null,null,null,null,193.96519900000001,193.96509499999999,193.96267900000001,193.965372,193.96542600000001]
["Cr",24,51,0.46152718263891868,5.1500555787829319,null,null,null,null,null,null,null,null,null,null,null,null,null,null,null,null,null,null,null,null,"195",null,null,null,null,null,null,null,null,null,null,null,null,null,null,null,null,null,null,null,null,null,null,null,null,null,null,null,null,null,null,null,null,null,null,null,null,null,null,null,null,null,null,null,null,null,null,null,null,null,null,null,null,null,null,null,null,null,null,null,null,null,null,null,null,null,null,null,null,null,null,null,null,null,null,null,null,null,194.96597700000001,194.96478500000001,194.96503200000001,194.96665999999999]
["Cr",24,53,3.1001224195557562,5.0988958228188093,null,null,null,null,null,null,null,null,null,null,null,null,null,null,null,null,null,null,null,null,"196",null,null,null,null,null,null,null,null,null,null,null,null,null,null,null,null,null,null,null,null,null,null,null,null,null,null,null,null,null,null,null,null,null,null,null,null,null,null,null,null,null,null,null,null,null,null,null,null,null,null,null,null,null,null,null,null,null,null,null,null,null,null,null,null,null,null,null,null,null,null,null,null,null,null,null,null,null,null,195.964947,195.96654599999999,195.965812,195.97064]
["Cr",24,54,2.3181196430465065,{"$f":"B266/(1+C266^0.33)","v":5.0741698222294733},null,null,null,null,null,null,null,null,null,null,null,null,null,null,null,null,null,null,null,null,"197",null,null,null,null,null,null,null,null,null,null,null,null,null,null,null,null,null,null,null,null,null,null,null,null,null,null,null,null,null,null,null,null,null,null,null,null,null,null,null,null,null,null,null,null,null,null,null,null,null,null,null,null,null,null,null,null,null,null,null,null,null,null,null,null,null,null,null,null,null,null,null,null,null,null,null,null,null,null,196.967332,196.96655000000001,196.967005,196.96958000000001]
["Cr",24,55,6.2928140976903251,5.0499830022089078,null,null,null,null,null,null,null,null,null,null,null,null,null,null,null,null,null,null,null,null,"198",null,null,null,null,null,null,null,null,null,null,null,null,null,null,null,null,null,null,null,null,null,null,null,null,null,null,null,null,null,null,null,null,null,null,null,null,null,null,null,null,null,null,null,null,null,null,null,null,null,null,null,null,null,null,null,null,null,null,null,null,null,null,null,null,null,null,null,null,null,null,null,null,null,null,null,null,null,null,197.96789699999999,197.968233,197.96675999999999,197.97047000000001,197.97219000000001]
["Mn",25,52,1.3146951234149766,5.3376908523338429,null,null,null,null,null,null,null,null,null,null,null,null,null,null,null,null,null,null,null,null,"199",null,null,null,null,null,null,null,null,null,null,null,null,null,null,null,null,null,null,null,null,null,null,null,null,null,null,null,null,null,null,null,null,null,null,null,null,null,null,null,null,null,null,null,null,null,null,null,null,null,null,null,null,null,null,null,null,null,null,null,null,null,null,null,null,null,null,null,null,null,null,null,null,null,null,null,null,null,null,null,198.96875600000001,198.96826899999999,198.96985000000001,198.97286]
["Mn",25,54,4.3928385106782901,5.285593564822368,null,null,null,null,null,null,null,null,null,null,null,null,null,null,null,null,null,null,null,null,"200",null,null,null,null,null,null,null,null,null,null,null,null,null,null,null,null,null,null,null,null,null,null,null,null,null,null,null,null,null,null,null,null,null,null,null,null,null,null,null,null,null,null,null,null,null,null,null,null,null,null,null,null,null,null,null,null,null,null,null,null,null,null,null,null,null,null,null,null,null,null,null,null,null,null,null,null,null,null,null,199.97068999999999,199.96831599999999,199.97094999999999,199.97192000000001]
["Mn",25,55,3.4659472946561416,5.2603989606342791,null,null,null,null,null,null,null,null,null,null,null,null,null,null,null,null,null,null,null,null,"201",null,null,null,null,null,null,null,null,null,null,null,null,null,null,null,null,null,null,null,null,null,null,null,null,null,null,null,null,null,null,null,null,null,null,null,null,null,null,null,null,null,null,null,null,null,null,null,null,null,null,null,null,null,null,null,null,null,null,null,null,null,null,null,null,null,null,null,null,null,null,null,null,null,null,null,null,null,null,null,200.97166000000001,200.970293,200.97081600000001,200.97281000000001]
["Mn",25,56,7.3791694816941744,5.2357441706699932,null,null,null,null,null,null,null,null,null,null,null,null,null,null,null,null,null,null,null,null,"202",null,null,null,null,null,null,null,null,null,null,null,null,null,null,null,null,null,null,null,null,null,null,null,null,null,null,null,null,null,null,null,null,null,null,null,null,null,null,null,null,null,null,null,null,null,null,null,null,null,null,null,null,null,null,null,null,null,null,null,null,null,null,null,null,null,null,null,null,null,null,null,null,null,null,null,null,null,null,null,null,201.97063199999999,201.97210100000001,201.97215]
["Fe",26,55,0.20808468304541683,5.4708149190596504,null,null,null,null,null,null,null,null,null,null,null,null,null,null,null,null,null,null,null,null,"203",null,null,null,null,null,null,null,null,null,null,null,null,null,null,null,null,null,null,null,null,null,null,null,null,null,null,null,null,null,null,null,null,null,null,null,null,null,null,null,null,null,null,null,null,null,null,null,null,null,null,null,null,null,null,null,null,null,null,null,null,null,null,null,null,null,null,null,null,null,null,null,null,null,null,null,null,null,null,null,null,202.97286399999999,202.97233600000001,202.97338199999999]
["Fe",26,57,2.8611213504355391,5.420072917995471,null,null,null,null,null,null,null,null,null,null,null,null,null,null,null,null,null,null,null,null,"204",null,null,null,null,null,null,null,null,null,null,null,null,null,null,null,null,null,null,null,null,null,null,null,null,null,null,null,null,null,null,null,null,null,null,null,null,null,null,null,null,null,null,null,null,null,null,null,null,null,null,null,null,null,null,null,null,null,null,null,null,null,null,null,null,null,null,null,null,null,null,null,null,null,null,null,null,null,null,null,null,203.97348099999999,203.97385600000001,203.97303700000001,203.97765000000001]
["Fe",26,58,1.383119811817106,5.3954915861955799,null,null,null,null,null,null,null,null,null,null,null,null,null,null,null,null,null,null,null,null,"205",null,null,null,null,null,null,null,null,null,null,null,null,null,null,null,null,null,null,null,null,null,null,null,null,null,null,null,null,null,null,null,null,null,null,null,null,null,null,null,null,null,null,null,null,null,null,null,null,null,null,null,null,null,null,null,null,null,null,null,null,null,null,null,null,null,null,null,null,null,null,null,null,null,null,null,null,null,null,null,null,null,204.97441000000001,204.97447500000001,204.97738100000001]
["Co",27,56,1.5571090914606116,5.654603704323593,null,null,null,null,null,null,null,null,null,null,null,null,null,null,null,null,null,null,null,null,"206",null,null,null,null,null,null,null,null,null,null,null,null,null,null,null,null,null,null,null,null,null,null,null,null,null,null,null,null,null,null,null,null,null,null,null,null,null,null,null,null,null,null,null,null,null,null,null,null,null,null,null,null,null,null,null,null,null,null,null,null,null,null,null,null,null,null,null,null,null,null,null,null,null,null,null,null,null,null,null,null,null,205.97609399999999,205.97445500000001,205.97849400000001,205.98047199999999]
["Co",27,57,0.43093190686733063,5.6285372609952971,null,null,null,null,null,null,null,null,null,null,null,null,null,null,null,null,null,null,null,null,"207",null,null,null,null,null,null,null,null,null,null,null,null,null,null,null,null,null,null,null,null,null,null,null,null,null,null,null,null,null,null,null,null,null,null,null,null,null,null,null,null,null,null,null,null,null,null,null,null,null,null,null,null,null,null,null,null,null,null,null,null,null,null,null,null,null,null,null,null,null,null,null,null,null,null,null,null,null,null,null,null,null,null,206.97588500000001,206.97846699999999,206.98158900000001]
["Co",27,58,4.0780530503838355,5.6030104933569485,null,null,null,null,null,null,null,null,null,null,null,null,null,null,null,null,null,null,null,null,"208",null,null,null,null,null,null,null,null,null,null,null,null,null,null,null,null,null,null,null,null,null,null,null,null,null,null,null,null,null,null,null,null,null,null,null,null,null,null,null,null,null,null,null,null,null,null,null,null,null,null,null,null,null,null,null,null,null,null,null,null,null,null,null,null,null,null,null,null,null,null,null,null,null,null,null,null,null,null,null,null,null,null,207.976641,207.97973300000001,207.98124000000001]
["Co",27,59,2.6244883346982881,5.5780034769865452,null,null,null,null,null,null,null,null,null,null,null,null,null,null,null,null,null,null,null,null,"209",null,null,null,null,null,null,null,null,null,null,null,null,null,null,null,null,null,null,null,null,null,null,null,null,null,null,null,null,null,null,null,null,null,null,null,null,null,null,null,null,null,null,null,null,null,null,null,null,null,null,null,null,null,null,null,null,null,null,null,null,null,null,null,null,null,null,null,null,null,null,null,null,null,null,null,null,null,null,null,null,null,null,null,208.980388,208.98242200000001,208.986165]
["Co",27,60,6.5140208703955507,5.5534973388782953,null,null,null,null,null,null,null,null,null,null,null,null,null,null,null,null,null,null,null,null,"210",null,null,null,null,null,null,null,null,null,null,null,null,null,null,null,null,null,null,null,null,null,null,null,null,null,null,null,null,null,null,null,null,null,null,null,null,null,null,null,null,null,null,null,null,null,null,null,null,null,null,null,null,null,null,null,null,null,null,null,null,null,null,null,null,null,null,null,null,null,null,null,null,null,null,null,null,null,null,null,null,null,null,209.98417799999999,209.98410999999999,209.98286400000001,209.987143,209.98968600000001]
["Co",27,61,5.0186422907137196,5.5294741857546041,null,null,null,null,null,null,null,null,null,null,null,null,null,null,null,null,null,null,null,null,"211",null,null,null,null,null,null,null,null,null,null,null,null,null,null,null,null,null,null,null,null,null,null,null,null,null,null,null,null,null,null,null,null,null,null,null,null,null,null,null,null,null,null,null,null,null,null,null,null,null,null,null,null,null,null,null,null,null,null,null,null,null,null,null,null,null,null,null,null,null,null,null,null,null,null,null,null,null,null,null,null,null,null,null,210.98726300000001,210.98664099999999,210.98749000000001,210.99059500000001,210.99547000000001]
["Ni",28,61,1.4544740714492861,5.7342695259677381,null,null,null,null,null,null,null,null,null,null,null,null,null,null,null,null,null,null,null,null,"212",null,null,null,null,null,null,null,null,null,null,null,null,null,null,null,null,null,null,null,null,null,null,null,null,null,null,null,null,null,null,null,null,null,null,null,null,null,null,null,null,null,null,null,null,null,null,null,null,null,null,null,null,null,null,null,null,null,null,null,null,null,null,null,null,null,null,null,null,null,null,null,null,null,null,null,null,null,null,null,null,null,null,null,null,null,211.99074100000001,211.99069700000001,211.99603999999999]
["Ni",28,63,3.76562123859402,5.6858767995596837,null,null,null,null,null,null,null,null,null,null,null,null,null,null,null,null,null,null,null,null,"213",null,null,null,null,null,null,null,null,null,null,null,null,null,null,null,null,null,null,null,null,null,null,null,null,null,null,null,null,null,null,null,null,null,null,null,null,null,null,null,null,null,null,null,null,null,null,null,null,null,null,null,null,null,null,null,null,null,null,null,null,null,null,null,null,null,null,null,null,null,null,null,null,null,null,null,null,null,null,null,null,null,null,null,null,null,212.99292600000001]
["Ni",28,64,2.022630104481947,5.6623643546696059,null,null,null,null,null,null,null,null,null,null,null,null,null,null,null,null,null,null,null,null,"214",null,null,null,null,null,null,null,null,null,null,null,null,null,null,null,null,null,null,null,null,null,null,null,null,null,null,null,null,null,null,null,null,null,null,null,null,null,null,null,null,null,null,null,null,null,null,null,null,null,null,null,null,null,null,null,null,null,null,null,null,null,null,null,null,null,null,null,null,null,null,null,null,null,null,null,null,null,null,null,null,null,null,null,null,null,213.996362]
["Cu",29,62,2.0697911823549116,5.9137627448820247,null,null,null,null,null,null,null,null,null,null,null,null,null,null,null,null,null,null,null,null,"215",null,null,null,null,null,null,null,null,null,null,null,null,null,null,null,null,null,null,null,null,null,null,null,null,null,null,null,null,null,null,null,null,null,null,null,null,null,null,null,null,null,null,null,null,null,null,null,null,null,null,null,null,null,null,null,null,null,null,null,null,null,null,null,null,null,null,null,null,null,null,null,null,null,null,null,null,null,null,null,null,null,null,null,null,null,214.99864600000001]
["Cu",29,63,0.30658284179969858,5.8889438281153863,null,null,null,null,null,null,null,null,null,null,null,null,null,null,null,null,null,null,null,null,"216",null,null,null,null,null,null,null,null,null,null,null,null,null,null,null,null,null,null,null,null,null,null,null,null,null,null,null,null,null,null,null,null,null,null,null,null,null,null,null,null,null,null,null,null,null,null,null,null,null,null,null,null,null,null,null,null,null,null,null,null,null,null,null,null,null,null,null,null,null,null,null,null,null,null,null,null,null,null,null,null,null,null,null,null,null,216.00240099999999]
["Cu",29,64,4.2775494413127069,5.8645916530506632,null,null,null,null,null,null,null,null,null,null,null,null,null,null,null,null,null,null,null,null,"217",null,null,null,null,null,null,null,null,null,null,null,null,null,null,null,null,null,null,null,null,null,null,null,null,null,null,null,null,null,null,null,null,null,null,null,null,null,null,null,null,null,null,null,null,null,null,null,null,null,null,null,null,null,null,null,null,null,null,null,null,null,null,null,null,null,null,null,null,null,null,null,null,null,null,null,null,null,null,null,null,null,null,null,null,null,217.004704]
["Cu",29,65,2.3471961205189027,5.8406905592726588,null,null,null,null,null,null,null,null,null,null,null,null,null,null,null,null,null,null,null,null,"218",null,null,null,null,null,null,null,null,null,null,null,null,null,null,null,null,null,null,null,null,null,null,null,null,null,null,null,null,null,null,null,null,null,null,null,null,null,null,null,null,null,null,null,null,null,null,null,null,null,null,null,null,null,null,null,null,null,null,null,null,null,null,null,null,null,null,null,null,null,null,null,null,null,null,null,null,null,null,null,null,null,null,null,null,null,218.00869499999999]
["Cu",29,66,6.3352345730663995,5.8172256381964926,null,null,null,null,null,null,null,null,null,null,null,null,null,null,null,null,null,null,null,null,"219",null,null,null,null,null,null,null,null,null,null,null,null,null,null,null,null,null,null,null,null,null,null,null,null,null,null,null,null,null,null,null,null,null,null,null,null,null,null,null,null,null,null,null,null,null,null,null,null,null,null,null,null,null,null,null,null,null,null,null,null,null,null,null,null,null,null,null,null,null,null,null,null,null,null,null,null,null,null,null,null,null,null,null,null,null,219.01130000000001,219.009480102]
["Cu",29,67,4.2750247664143828,5.7941826863755574,null,null,null,null,null,null,null,null,null,null,null,null,null,null,null,null,null,null,null,null,"220",null,null,null,null,null,null,null,null,null,null,null,null,null,null,null,null,null,null,null,null,null,null,null,null,null,null,null,null,null,null,null,null,null,null,null,null,null,null,null,null,null,null,null,null,null,null,null,null,null,null,null,null,null,null,null,null,null,null,null,null,null,null,null,null,null,null,null,null,null,null,null,null,null,null,null,null,null,null,null,null,null,null,null,null,null,null,220.01137800000001]
["Zn",30,65,0.42311234092622457,6.0420936820061986,null,null,null,null,null,null,null,null,null,null,null,null,null,null,null,null,null,null,null,null,"221",null,null,null,null,null,null,null,null,null,null,null,null,null,null,null,null,null,null,null,null,null,null,null,null,null,null,null,null,null,null,null,null,null,null,null,null,null,null,null,null,null,null,null,null,null,null,null,null,null,null,null,null,null,null,null,null,null,null,null,null,null,null,null,null,null,null,null,null,null,null,null,null,null,null,null,null,null,null,null,null,null,null,null,null,null,null,221.01544000000001]
["Zn",30,67,2.6993773263830914,5.9939820893540245,null,null,null,null,null,null,null,null,null,null,null,null,null,null,null,null,null,null,null,null,"222",null,null,null,null,null,null,null,null,null,null,null,null,null,null,null,null,null,null,null,null,null,null,null,null,null,null,null,null,null,null,null,null,null,null,null,null,null,null,null,null,null,null,null,null,null,null,null,null,null,null,null,null,null,null,null,null,null,null,null,null,null,null,null,null,null,null,null,null,null,null,null,null,null,null,null,null,null,null,null,null,null,null,null,null,null,null,222.01760999999999,222.017539]
["Zn",30,68,0.7666235616317042,5.9705670645000435,null,null,null,null,null,null,null,null,null,null,null,null,null,null,null,null,null,null,null,null,"223",null,null,null,null,null,null,null,null,null,null,null,null,null,null,null,null,null,null,null,null,null,null,null,null,null,null,null,null,null,null,null,null,null,null,null,null,null,null,null,null,null,null,null,null,null,null,null,null,null,null,null,null,null,null,null,null,null,null,null,null,null,null,null,null,null,null,null,null,null,null,null,null,null,null,null,null,null,null,null,null,null,null,null,null,null,null,null,223.01975999999999,223.01853,223.01912999999999]
["Zn",30,69,4.6045740118932192,5.9475611862622753,null,null,null,null,null,null,null,null,null,null,null,null,null,null,null,null,null,null,null,null,"224",null,null,null,null,null,null,null,null,null,null,null,null,null,null,null,null,null,null,null,null,null,null,null,null,null,null,null,null,null,null,null,null,null,null,null,null,null,null,null,null,null,null,null,null,null,null,null,null,null,null,null,null,null,null,null,null,null,null,null,null,null,null,null,null,null,null,null,null,null,null,null,null,null,null,null,null,null,null,null,null,null,null,null,null,null,null,null,224.02331000000001,224.020196]
["Zn",30,70,3.0468639036451282,5.9249516949940881,null,null,null,null,null,null,null,null,null,null,null,null,null,null,null,null,null,null,null,null,"225",null,null,null,null,null,null,null,null,null,null,null,null,null,null,null,null,null,null,null,null,null,null,null,null,null,null,null,null,null,null,null,null,null,null,null,null,null,null,null,null,null,null,null,null,null,null,null,null,null,null,null,null,null,null,null,null,null,null,null,null,null,null,null,null,null,null,null,null,null,null,null,null,null,null,null,null,null,null,null,null,null,null,null,null,null,null,null,null,225.023604199,225.02323000000001,225.02395999999999]
["Ga",31,66,1.5941406463374184,6.2184136132445262,null,null,null,null,null,null,null,null,null,null,null,null,null,null,null,null,null,null,null,null,"226",null,null,null,null,null,null,null,null,null,null,null,null,null,null,null,null,null,null,null,null,null,null,null,null,null,null,null,null,null,null,null,null,null,null,null,null,null,null,null,null,null,null,null,null,null,null,null,null,null,null,null,null,null,null,null,null,null,null,null,null,null,null,null,null,null,null,null,null,null,null,null,null,null,null,null,null,null,null,null,null,null,null,null,null,null,null,null,null,226.02544,226.02608799999999,226.02492000000001,226.02789000000001]
["Ga",31,68,3.5872807400771864,6.169585966650045,null,null,null,null,null,null,null,null,null,null,null,null,null,null,null,null,null,null,null,null,"227",null,null,null,null,null,null,null,null,null,null,null,null,null,null,null,null,null,null,null,null,null,null,null,null,null,null,null,null,null,null,null,null,null,null,null,null,null,null,null,null,null,null,null,null,null,null,null,null,null,null,null,null,null,null,null,null,null,null,null,null,null,null,null,null,null,null,null,null,null,null,null,null,null,null,null,null,null,null,null,null,null,null,null,null,null,null,null,null,null,227.02777,227.02772999999999,227.02879999999999]
["Ga",31,69,1.4704370435344696,6.1458132258043516,null,null,null,null,null,null,null,null,null,null,null,null,null,null,null,null,null,null,null,null,"228",null,null,null,null,null,null,null,null,null,null,null,null,null,null,null,null,null,null,null,null,null,null,null,null,null,null,null,null,null,null,null,null,null,null,null,null,null,null,null,null,null,null,null,null,null,null,null,null,null,null,null,null,null,null,null,null,null,null,null,null,null,null,null,null,null,null,null,null,null,null,null,null,null,null,null,null,null,null,null,null,null,null,null,null,null,null,null,null,null,228.03102000000001,228.02874,228.03101000000001]
["Ga",31,70,5.3546435202105966,6.1224500848272241,null,null,null,null,null,null,null,null,null,null,null,null,null,null,null,null,null,null,null,null,"229",null,null,null,null,null,null,null,null,null,null,null,null,null,null,null,null,null,null,null,null,null,null,null,null,null,null,null,null,null,null,null,null,null,null,null,null,null,null,null,null,null,null,null,null,null,null,null,null,null,null,null,null,null,null,null,null,null,null,null,null,null,null,null,null,null,null,null,null,null,null,null,null,null,null,null,null,null,null,null,null,null,null,null,null,null,null,null,null,null,229.03298000000001,229.03178,229.03210000000001]
["Ga",31,71,3.4661812472474525,6.0994839475106417,null,null,null,null,null,null,null,null,null,null,null,null,null,null,null,null,null,null,null,null,"230",null,null,null,null,null,null,null,null,null,null,null,null,null,null,null,null,null,null,null,null,null,null,null,null,null,null,null,null,null,null,null,null,null,null,null,null,null,null,null,null,null,null,null,null,null,null,null,null,null,null,null,null,null,null,null,null,null,null,null,null,null,null,null,null,null,null,null,null,null,null,null,null,null,null,null,null,null,null,null,null,null,null,null,null,null,null,null,null,null,null,230.03316000000001,230.03456]
["Ga",31,72,7.6815249617976855,6.0769027723684728,null,null,null,null,null,null,null,null,null,null,null,null,null,null,null,null,null,null,null,null,"231",null,null,null,null,null,null,null,null,null,null,null,null,null,null,null,null,null,null,null,null,null,null,null,null,null,null,null,null,null,null,null,null,null,null,null,null,null,null,null,null,null,null,null,null,null,null,null,null,null,null,null,null,null,null,null,null,null,null,null,null,null,null,null,null,null,null,null,null,null,null,null,null,null,null,null,null,null,null,null,null,null,null,null,null,null,null,null,null,null,null,231.03629856399999,231.0359,231.03630000000001,231.03829999999999]
["Ga",31,73,5.2607801730132344,6.0546950410030282,null,null,null,null,null,null,null,null,null,null,null,null,null,null,null,null,null,null,null,null,"232",null,null,null,null,null,null,null,null,null,null,null,null,null,null,null,null,null,null,null,null,null,null,null,null,null,null,null,null,null,null,null,null,null,null,null,null,null,null,null,null,null,null,null,null,null,null,null,null,null,null,null,null,null,null,null,null,null,null,null,null,null,null,null,null,null,null,null,null,null,null,null,null,null,null,null,null,null,null,null,null,null,null,null,null,null,null,null,null,null,null,232.03807,232.03857600000001,232.03715,232.04004]
["Ge",32,71,1.6855820735486136,6.2962414942045326,null,null,null,null,null,null,null,null,null,null,null,null,null,null,null,null,null,null,null,null,"233",null,null,null,null,null,null,null,null,null,null,null,null,null,null,null,null,null,null,null,null,null,null,null,null,null,null,null,null,null,null,null,null,null,null,null,null,null,null,null,null,null,null,null,null,null,null,null,null,null,null,null,null,null,null,null,null,null,null,null,null,null,null,null,null,null,null,null,null,null,null,null,null,null,null,null,null,null,null,null,null,null,null,null,null,null,null,null,null,null,null,null,233.040243702,233.03964999999999,233.04079999999999]
["Ge",32,73,3.3576404509605786,6.2500077842611903,null,null,null,null,null,null,null,null,null,null,null,null,null,null,null,null,null,null,null,null,"234",null,null,null,null,null,null,null,null,null,null,null,null,null,null,null,null,null,null,null,null,null,null,null,null,null,null,null,null,null,null,null,null,null,null,null,null,null,null,null,null,null,null,null,null,null,null,null,null,null,null,null,null,null,null,null,null,null,null,null,null,null,null,null,null,null,null,null,null,null,null,null,null,null,null,null,null,null,null,null,null,null,null,null,null,null,null,null,null,null,null,null,234.043316,234.04097999999999,234.042888]
["Ge",32,74,1.132198416161099,6.2274577844401735,null,null,null,null,null,null,null,null,null,null,null,null,null,null,null,null,null,null,null,null,"235",null,null,null,null,null,null,null,null,null,null,null,null,null,null,null,null,null,null,null,null,null,null,null,null,null,null,null,null,null,null,null,null,null,null,null,null,null,null,null,null,null,null,null,null,null,null,null,null,null,null,null,null,null,null,null,null,null,null,null,null,null,null,null,null,null,null,null,null,null,null,null,null,null,null,null,null,null,null,null,null,null,null,null,null,null,null,null,null,null,null,null,235.04543000000001,235.04393999999999,235.04408000000001,234.04526999999999]
["Ge",32,75,4.8787139900218204,6.2052709955156864,null,null,null,null,null,null,null,null,null,null,null,null,null,null,null,null,null,null,null,null,"236",null,null,null,null,null,null,null,null,null,null,null,null,null,null,null,null,null,null,null,null,null,null,null,null,null,null,null,null,null,null,null,null,null,null,null,null,null,null,null,null,null,null,null,null,null,null,null,null,null,null,null,null,null,null,null,null,null,null,null,null,null,null,null,null,null,null,null,null,null,null,null,null,null,null,null,null,null,null,null,null,null,null,null,null,null,null,null,null,null,null,null,null,236.04558,236.04661999999999,236.046043]
["Ge",32,76,2.7797930215447697,6.1834369733354633,null,null,null,null,null,null,null,null,null,null,null,null,null,null,null,null,null,null,null,null,"237",null,null,null,null,null,null,null,null,null,null,null,null,null,null,null,null,null,null,null,null,null,null,null,null,null,null,null,null,null,null,null,null,null,null,null,null,null,null,null,null,null,null,null,null,null,null,null,null,null,null,null,null,null,null,null,null,null,null,null,null,null,null,null,null,null,null,null,null,null,null,null,null,null,null,null,null,null,null,null,null,null,null,null,null,null,null,null,null,null,null,null,null,237.04872642999999,237.04819000000001,237.04840200000001]
["As",33,72,3.3649716008105686,6.4689610157470838,null,null,null,null,null,null,null,null,null,null,null,null,null,null,null,null,null,null,null,null,"238",null,null,null,null,null,null,null,null,null,null,null,null,null,null,null,null,null,null,null,null,null,null,null,null,null,null,null,null,null,null,null,null,null,null,null,null,null,null,null,null,null,null,null,null,null,null,null,null,null,null,null,null,null,null,null,null,null,null,null,null,null,null,null,null,null,null,null,null,null,null,null,null,null,null,null,null,null,null,null,null,null,null,null,null,null,null,null,null,null,null,null,null,238.05081999999999,238.050942091,238.04955522700001]
["As",33,73,0.95274299412191454,6.4453205275193524,null,null,null,null,null,null,null,null,null,null,null,null,null,null,null,null,null,null,null,null,"239",null,null,null,null,null,null,null,null,null,null,null,null,null,null,null,null,null,null,null,null,null,null,null,null,null,null,null,null,null,null,null,null,null,null,null,null,null,null,null,null,null,null,null,null,null,null,null,null,null,null,null,null,null,null,null,null,null,null,null,null,null,null,null,null,null,null,null,null,null,null,null,null,null,null,null,null,null,null,null,null,null,null,null,null,null,null,null,null,null,null,null,null,239.05429100000001,239.052932196,239.05215778100001]
["As",33,74,5.0532835927640507,6.4220658402039295,null,null,null,null,null,null,null,null,null,null,null,null,null,null,null,null,null,null,null,null,"240",null,null,null,null,null,null,null,null,null,null,null,null,null,null,null,null,null,null,null,null,null,null,null,null,null,null,null,null,null,null,null,null,null,null,null,null,null,null,null,null,null,null,null,null,null,null,null,null,null,null,null,null,null,null,null,null,null,null,null,null,null,null,null,null,null,null,null,null,null,null,null,null,null,null,null,null,null,null,null,null,null,null,null,null,null,null,null,null,null,null,null,null,null,240.05605,240.05380865699999]
["As",33,75,2.8376027994288235,6.3991857141255508,null,null,null,null,null,null,null,null,null,null,null,null,null,null,null,null,null,null,null,null,241]
["As",33,76,6.6641394444408881,6.3766693787521964]
["As",33,77,4.3926324458242654,6.3545065073240368]
["As",33,78,7.9812517624175294,6.332687193160365]
["As",33,79,5.9002041995000845,6.3112019275137605]
["Se",34,75,0.67950381169207896,6.5931004327354161]
["Se",34,77,2.3370494195080305,6.5470673105762804]
["Se",34,78,9.9600790274047377E-2,6.524586805074315]
["Se",34,79,3.8532266176654604,6.5024504707717536]
["Se",34,80,1.8304810806825884,6.480648899423759]
["Se",34,81,5.2857164998495918,6.4591730514461494]
["Se",34,82,3.6164629672788298,6.4380142371872076]
["Br",35,76,2.4977191554522338,6.7631341895856627]
["Br",35,77,0.68499333655249672,6.7396281138285241]
["Br",35,78,4.3955276097274742,6.7164864169882659]
["Br",35,79,2.0706169656855646,6.6936990140297459]
["Br",35,80,5.7057762746838732,6.6712562199950458]
["Br",35,81,3.4356340032954522,6.6491487294298599]
["Br",35,82,6.7893836964553778,6.6273675971044783]
["Br",35,83,4.6624123199393397,6.6059042199333051]
["Br",35,84,8.3640133073120886,{"$f":"B330/(1+C330^0.33)","v":6.5847503200051021}]
["Kr",36,79,9.4237396478836027E-2,6.884947557287739]
["Kr",36,81,1.4363030391161626,6.8391244074135704]
["Kr",36,83,2.7061786963451735,6.7946443405028276]
["Kr",36,84,1.0157862833908411,6.7728860434338198]
["Kr",36,85,4.3907387928130541,6.7514378694618973]
["Kr",36,86,3.1792291960936243,6.7302919248933382]
["Rb",37,80,1.9052279984037319,7.0524708611376195]
["Rb",37,82,3.4898208411134033,7.0060743169390198]
["Rb",37,83,1.4498863926430523,6.983384461072351]
["Rb",37,84,4.5937783676253732,6.9610217668625367]
["Rb",37,85,2.6399039721269508,6.9389778102802833]
["Rb",37,86,5.4761453650862748,6.9172444783625977]
["Rb",37,87,3.9778730997420486,6.8958139543132502]
["Rb",37,88,8.9982467619004911,6.8746787034771435]
["Sr",38,85,0.42791353170696744,7.1265177510986693]
["Sr",38,87,1.840552283090541,7.0821873044298247]
["Sr",38,88,6.4128026691871315E-2,7.0604808305981468]
["Sr",38,89,5.1951861076830097,7.039070148239631]
["Y",39,86,2.4034083823026133,7.2911495853011168]
["Y",39,87,0.10028900272780544,7.2685606545463983]
["Y",39,88,3.0277153074340859,7.246282957719151]
["Y",39,89,0.8601496056073662,7.2243088363512005]
["Y",39,90,5.9850630238040603,7.2026309023122774]
["Y",39,91,5.2461680746484554,7.1812420254270153]
["Y",39,92,7.3317741979842346,7.1601353217867896]
["Y",39,93,6.5902543759795265,7.1393041427103743]
["Zr",40,91,2.449167260338132,7.3653764363354011]
["Zr",40,92,3.7054803256982298,7.3437285351659378]
["Zr",40,93,3.7978712090390072,7.3223632232926912]
["Zr",40,94,2.8087190151496073,7.3012739121137846]
["Zr",40,95,4.8276709869254288,7.2804542334667106]
["Zr",40,96,3.8689071154182719,7.2598980300536118]
["Nb",41,92,2.055261209242595,7.5273217485450861]
["Nb",41,93,3.2995658265732559,7.505422303875009]
["Nb",41,94,5.7477349583740596,7.4838057599166294]
["Nb",41,95,4.630519239780976,7.4624655893033784]
["Nb",41,96,6.8866786277085161,7.4413954808049523]
["Nb",41,97,5.6361364893639863,7.4205893300356456]
["Nb",41,98,8.2800125507009081,7.4000412306522838]
["Mo",42,93,0.49883179383772197,7.6884813844573259]
["Mo",42,95,2.0049706894979957,7.6444769451400463]
["Mo",42,96,0.72216981329509633,7.6228929315562919]
["Mo",42,97,3.3856721714500972,7.6015793136950514]
["Mo",42,98,2.022302251036376,7.5805300411559982]
["Mo",42,99,5.0614095282731792,7.5597392578652354]
["Mo",42,100,3.5362491070386999,7.5392012939702315]
["Tc",43,94,2.1188973082046547,7.8488694555223191]
["Tc",43,95,1.1390733228106991,7.8264883009767141]
["Tc",43,96,3.9591935293763254,7.8043903823076324]
["Tc",43,97,2.5524310207210812,7.782569297354458]
["Tc",43,98,5.4958553039171303,7.7610188516597125]
["Tc",43,99,3.9996704595085282,7.7397330497191694]
["Tc",43,100,6.903005359051023,7.7187060866838086]
["Tc",43,101,5.3291413128593055,7.6979323404861146]
["Tc",43,102,8.1978184725553689,7.6774063643650505]
["Ru",44,99,1.5999325553103447,7.9197268415731035]
["Ru",44,100,5.1073474639687061E-2,7.8982108793973858]
["Ru",44,101,3.1652443631196978,7.8769540228230008]
["Ru",44,102,1.37887850296456,7.8559506984200516]
["Ru",44,103,4.4688218688307098,7.8351955048767064]
["Ru",44,104,2.5597823452172506,7.8146832060947489]
["Rh",45,98,1.7998621618713377,8.1219964726671403]
["Rh",45,99,0.28470564704922774,8.0997206334270384]
["Rh",45,100,3.3451275604876263,{"$f":"B394/(1+C394^0.33)","v":8.077715672110962}]
["Rh",45,101,1.7217357827616115,8.0559757051598879]
["Rh",45,102,4.8539642103435643,8.0344950324750535]
["Rh",45,103,3.1609888283499212,8.0132681299875408]
["Rh",45,104,6.1500000927609175,7.9922896425969023]
["Rh",45,105,4.2738447660516821,7.9715543774571751]
["Rh",45,106,7.2408581517366901,7.9510572975900811]
["Rh",45,107,5.2144137502256847,7.9307935158066103]
["Pd",46,103,1.0166064538309183,8.1913407550983752]
["Pd",46,105,2.3583613332466653,8.1487000302895574]
["Pd",46,106,0.71436678339397552,8.1277474597587496]
["Pd",46,107,3.7397927872171075,8.107033371713424]
["Pd",46,108,1.7843369237051157,8.0865529175619972]
["Pd",46,109,4.8222031008080677,8.0663013902786833]
["Pd",46,110,2.828028412326133,8.0462742190323358]
["Ag",47,104,2.4095748815201015,8.3475025156012101]
["Ag",47,105,0.9615397993607564,8.3258456831219387]
["Ag",47,106,3.9091254226640677,8.3044376219274181]
["Ag",47,107,2.7149169305392009,8.2832732276202368]
["Ag",47,108,5.3539908385100263,8.2623475462046496]
["Ag",47,109,3.5258176418696321,8.2416557683282203]
["Ag",47,110,6.5958825467073092,8.2211932237939074]
["Ag",47,111,4.7349766404799398,8.2009553763276557]
["Ag",47,112,7.6584384058655379,8.1809378185873296]
["Ag",47,113,5.714980083396731,8.1611362673999484]
["Cd",48,109,1.6890984816079075,8.4170101463777574]
["Cd",48,111,2.8579540338787153,8.375443788589946]
["Cd",48,112,1.1243969226348718,8.3550003253657845]
["Cd",48,113,4.02922047864707,8.3347774645786714]
["Cd",48,114,2.2628788789977383,8.3147709540916903]
["Cd",48,115,5.1538986635049477,8.2949766595003691]
["Cd",48,116,3.2432743666885804,8.2753905598953192]
["In",49,108,1.4962787152861767,8.6139368034899544]
["In",49,110,3.1328010454706487,8.5710312333170524]
["In",49,111,1.2382342775952953,8.549932200852238]
["In",49,112,4.3648052770119889,8.5290628321442377]
["In",49,113,2.6679377051758268,8.5084186617573927]
["In",49,114,5.6893410760778469,8.4879953489686013]
["In",49,115,4.2021388352000013,8.4677886732399603]
["In",49,116,6.9752772031870922,8.4477945298931374]
["In",49,117,5.1609751663883072,8.4280089259747974]
["In",49,118,7.9043549727697711,8.4084279763031393]
["In",49,119,6.0419957584990893,8.3890478996861724]
["In",49,120,9.1003382748879726,8.3698650153028709]
["In",49,121,7.0621295057809501,8.3508757392389246]
["Sn",50,115,0.66896554178825096,8.6406006869795515]
["Sn",50,117,1.9615133931144884,8.6000091081375487]
["Sn",50,119,3.1244464204948823,8.5602529588634422]
["Sn",50,120,1.0219294717249292,8.5406785870437467]
["Sn",50,121,4.0947718814468494,8.5213017747335975]
["Sn",50,122,2.0848519236700995,8.5021189603768601]
["Sn",50,123,5.1034869939059702,8.4831266746737981]
["Sn",50,124,3.0817801228956521,8.464321537473408]
["Sb",51,114,1.0192544874843514,8.8344441387224215]
["Sb",51,116,2.1420048071536089,8.7926024698887755]
["Sb",51,117,0.20240525170787596,8.7720092903002982]
["Sb",51,118,3.4120470692515297,8.7516291181930619]
["Sb",51,119,1.4105590535260917,8.7314580180407102]
["Sb",51,120,4.6911594808958847,8.7114921587846208]
["Sb",51,121,2.6282448390877442,8.6917278102282687]
["Sb",51,122,5.6871843217417251,8.6721613395843971]
["Sb",51,123,3.6564374331598297,8.6527892081672739]
["Sb",51,124,6.6096634550670039,8.6336079682228775]
["Sb",51,125,4.475711618038777,8.6146142598901996]
["Sb",51,126,7.3681291437102656,{"$f":"B458/(1+C458^0.33)","v":8.5958048082872356}]
["Sb",51,127,5.2889018868534299,8.5771764207155918]
["Te",52,121,1.3321609546877908,8.8621538457229398]
["Te",52,123,2.5046473360946715,8.8224517416607497]
["Te",52,124,0.54121902916694598,8.8028943989723452]
["Te",52,125,3.5308657110738797,8.7835282649860869]
["Te",52,126,1.5506389268717065,8.7643500006065942]
["Te",52,127,4.4023501621423682,8.7453563505335445]
["Te",52,128,2.4499964706827453,8.7265441405266522]
["Te",52,129,5.2062904496873941,8.7079102747802466]
["Te",52,130,3.2582944003487193,8.689451733402306]
["I",53,122,2.7115903211146724,9.012246097999471]
["I",53,123,1.0298007950231935,8.9921142751542256]
["I",53,124,3.797110223339732,8.9721808297218129]
["I",53,125,1.9710125173841346,8.9524422700819724]
["I",53,126,3.7088014403744025,8.932895192925951]
["I",53,127,3.0447220149819154,8.9135362803514973]
["I",53,128,5.8340775818302513,8.8943622970752418]
["I",53,129,3.9007158400208346,8.8753700877567887]
["I",53,130,6.6888175904267371,8.8565565744292734]
["I",53,131,4.6799260733439523,8.8379187540313335]
["I",53,132,7.2842521119868096,8.8194536960358079]
["I",53,133,5.4670119587638357,8.8011585401706167]
["Xe",54,125,0.63557230440441304,9.1213562751778596]
["Xe",54,126,0.10834464765400134,9.1014403852453079]
["Xe",54,127,1.596541546348996,9.08171621016945]
["Xe",54,129,2.5742023336157254,9.0428299007333326]
["Xe",54,130,0.68281849079532231,9.0236614154562407]
["Xe",54,131,3.3543105554012889,9.0046719380696612]
["Xe",54,132,1.595107314106843,8.9858584827534642]
["Xe",54,133,4.1365920985277196,8.9672181352681744]
["Xe",54,134,2.4933184384347378,8.9487480507224948]
["Xe",54,135,4.8672113317267662,8.9304454514263512]
["Xe",54,136,3.6414851423744095,8.9123076248256208]
["Cs",55,126,1.9374789676849038,9.2699855775646665]
["Cs",55,127,0.24358673081503104,9.2498961399874027]
["Cs",55,128,3.2562958209816855,9.2299986101724212]
["Cs",55,129,1.2590415475876784,9.2102897137098765]
["Cs",55,130,4.1494212873612923,9.190766256483208]
["Cs",55,131,2.3671930860099377,9.171425122107987]
["Cs",55,132,4.9870035210962618,9.1522632694711206]
["Cs",55,133,3.1886165967212508,9.1332777303657338]
["Cs",55,134,5.765593489586279,9.1144656072173564]
["Cs",55,135,3.9142367833009342,9.0958240708972085]
["Cs",55,136,6.254809322753772,9.0773503586186877]
["Cs",55,137,4.881302646852876,9.0590417719132343]
["Cs",55,138,9.1987359192164639,9.0408956746821101]
["Ba",56,131,0.7463890368663022,9.3381783061463146]
["Ba",56,133,1.7063961569566564,9.2993373254632932]
["Ba",56,135,2.5092385266007637,9.2612026903680675]
["Ba",56,136,0.83053409872705586,9.2423930924117546]
["Ba",56,137,3.1096680265941141,9.2237516223116565]
["Ba",56,138,1.9589338606250914,9.2052755960399679]
["La",57,132,2.3112892981277224,9.485072842906435]
["La",57,133,0.29687602539271596,9.4653969205608508]
["La",57,134,3.2082449385493312,9.4459007202070779]
["La",57,135,1.5888105722710597,9.4265813098389266]
["La",57,136,4.1749479167117993,9.4074358262048232]
["La",57,137,2.4888504198041321,9.3884614727100786]
["La",57,138,4.7501855070027448,9.369655517397824]
["La",57,139,3.4451560232666472,9.3510152910050657]
["La",57,140,7.464420008262258,9.3325381850905806]
["Ce",58,137,1.0031931871493887,9.5531713231085007]
["Ce",58,139,1.5947295620188113,9.5150681908472592]
["Ce",58,140,0.3102591545794513,{"$f":"B522/(1+C522^0.33)","v":9.4962669251798886}]
["Ce",58,141,4.2888065376479556,9.4776290476039993]
["Ce",58,142,2.9655241983810163,9.4591520222556138]
["Pr",59,136,1.489802971833968,9.737521293790957]
["Pr",59,138,2.6092058794131661,9.6984153601135379]
["Pr",59,139,0.90683182261123707,9.6791210906894527]
["Pr",59,140,3.2430758772083172,9.6599956652691983]
["Pr",59,141,1.8937836614254837,9.641036444976482]
["Pr",59,142,5.8657006723155609,9.6222408502255377]
["Pr",59,143,4.6444242005610183,9.6036063589875109]
["Pr",59,144,6.7016962282378278,9.585130505119162]
["Pr",59,145,5.5134415694473393,9.566810876751207]
["Pr",59,146,7.7874683455760456,9.5486451147337785]
["Pr",59,147,6.4081519882817499,9.5306309111366119]
["Nd",60,143,2.6682406903441129,9.7663793481228929]
["Nd",60,144,1.3772909760173726,9.7475903441889784]
["Nd",60,145,3.5498040654218852,9.7289602136452942]
["Nd",60,146,2.227288449302157,9.7104865573563863]
["Nd",60,147,4.6055738731893552,9.6921670282745218]
["Nd",60,148,3.1736377104747571,9.6739993299677938]
["Nd",60,149,5.3983595545388994,9.6559812151993452]
["Nd",60,150,3.5798651447878926,9.638110484555602]
["Pm",61,143,0.25001546462865215,9.9291523372582748]
["Pm",61,144,4.257334838908899,9.9100501832587948]
["Pm",61,145,3.0961470691601352,9.8911095505393831]
["Pm",61,146,5.25120341656093,9.8723279999789924]
["Pm",61,147,3.9344802108168753,9.85370314541243]
["Pm",61,148,6.1711267671154113,9.8352326521339233]
["Pm",61,149,4.7806250473502612,9.8169142354526677]
["Pm",61,150,7.2032198006965062,9.798745659298195]
["Pm",61,151,4.8970438183099034,9.7807247348735586]
["Pm",61,152,7.179212640886691,9.7628493193543662]
["Sm",62,145,0.98519319641678116,10.053258887433472]
["Sm",62,147,1.9791214362951735,10.015239262550338]
["Sm",62,148,0.60356204142890579,9.9964659743000546]
["Sm",62,149,3.0143582052902627,9.9778472557059903]
["Sm",62,150,1.414190034874651,9.9593808340407897]
["Sm",62,151,3.7866450808232961,9.9410644846255849]
["Sm",62,152,1.8319201279353703,9.9228960295077169]
["Sm",62,153,4.5146973882593091,9.9048733361831864]
["Sm",62,154,2.9829228134964016,9.886994316362026]
["Eu",63,146,2.5071053425344303,10.196010885224204]
["Eu",63,147,1.3793838139893082,10.176775379688246]
["Eu",63,148,3.74272868693645,10.157699296466184]
["Eu",63,149,2.4018901863652364,10.138780275959313]
["Eu",63,150,4.7192674104707324,10.120016008783383]
["Eu",63,151,3.2278246293831514,10.101404234377609]
["Eu",63,152,5.5278333409293392,10.082942739661068]
["Eu",63,153,3.4663877736781634,10.064629357734528]
["Eu",63,154,5.6860733270661212,10.04646196662593]
["Eu",63,155,3.9562962055173738,10.028438488077761]
["Eu",63,156,6.1614315441275505,10.010556886374648]
["Eu",63,157,5.0694936628688367,9.9928151672096348]
["Gd",64,153,1.919733646060775,10.22438537928587]
["Gd",64,154,0.23916999636164094,10.205929616889835]
["Gd",64,155,2.8953708796087114,10.187620051380582]
["Gd",64,156,1.269663406853681,10.1694546147298]
["Gd",64,157,3.6528401041978902,10.151431280974867]
["Gd",64,158,2.4946706145447735,10.13354806510486]
["Gd",64,159,4.6853022380927767,10.115803021982837]
["Gd",64,160,3.6082740562826277,10.098194245302977]
["Tb",65,154,3.8575564599797807,10.365397267153737]
["Tb",65,155,1.6088919286722316,10.346801614683404]
["Tb",65,156,4.1388122179216147,10.328352343084953]
["Tb",65,157,2.3677972099366333,{"$f":"B586/(1+C586^0.33)","v":10.310047394740099}]
["Tb",65,158,4.6452374457336418,10.291884753622123]
["Tb",65,159,3.3446449215396021,10.273862444201317]
["Tb",65,160,5.5422427841288799,10.255978530385836]
["Tb",65,161,4.3010150032751424,10.238231114496617]
["Tb",65,162,6.1255270823781016,10.220618336275074]
["Dy",66,157,1.164024715188156,10.468663508505331]
["Dy",66,159,1.8565869290253387,10.431921866419799]
["Dy",66,160,0.41561286388340057,10.413762815468695]
["Dy",66,161,2.8574354961733697,10.39574236241195]
["Dy",66,162,1.5738006203553339,10.377858618371613]
["Dy",66,163,3.7089793374111117,10.360109731490304]
["Dy",66,164,2.6823365093464324,10.342493885986471]
["Ho",67,158,2.3146843361978746,10.60855813065665]
["Ho",67,159,0.77264446217693805,10.589981288638281]
["Ho",67,160,3.3754284143672098,10.571547100551554]
["Ho",67,161,1.7026372963185754,10.553253610327282]
["Ho",67,162,3.9994433295670979,10.535098900468153]
["Ho",67,163,2.4986317899609207,10.517081091058341]
["Ho",67,164,4.7125261168021302,10.499198338804447]
["Ho",67,165,3.3337241130728992,10.481448836106493]
["Ho",67,166,5.5639525410111306,10.4638308101579]
["Ho",67,167,4.6800893199526152,10.44634252207341]
["Er",68,165,2.1153929914998657,10.637888370973753]
["Er",68,166,0.65780202169125568,10.620007389413987]
["Er",68,167,2.9620653702417461,10.602258082104356]
["Er",68,168,2.0306266422886652,10.584638717775849]
["Er",68,169,4.0630463910352388,10.567147597897661]
["Er",68,170,3.3972658420810671,10.549783055871004]
["Tm",69,164,2.6068269047229542,10.8126072444404]
["Tm",69,165,0.9436626229058096,10.794327905841016]
["Tm",69,166,3.41946123966969,10.776183968670075]
["Tm",69,167,1.7561732019576357,10.758173642135302]
["Tm",69,168,3.9699038336476824,10.740295169507847]
["Tm",69,169,2.8018534966177184,10.722546827278508]
["Tm",69,170,4.6783580212389797,10.704926924339695]
["Tm",69,171,3.8080110428758753,10.687433801192103]
["Tm",69,172,5.5791302604315662,10.670065829175339]
["Tm",69,173,3.7112434361346924,10.652821409721525]
["Yb",70,169,1.228393104220955,10.877946056659356]
["Yb",70,170,0.26181663680699874,10.860070792808386]
["Yb",70,171,2.2304011226651279,10.842324146136917]
["Yb",70,172,1.183678047312104,10.824704464380778]
["Yb",70,173,4.3555128404158188,10.807210125804446]
["Yb",70,174,2.3321843616385358,10.789839538466421]
["Yb",70,175,4.1787218243298616,10.772591139506309]
["Yb",70,176,3.6014648890256451,10.755463394452935]
["Lu",71,170,2.5147829855952089,11.015214661277078]
["Lu",71,171,1.1901671184775837,10.99721449108173]
["Lu",71,172,3.3135081633268304,10.979343099586218]
["Lu",71,173,2.1148169687070544,10.961598841887366]
["Lu",71,174,3.9794501902197306,10.943980103301655]
["Lu",71,175,3.1002796972121458,10.926485298642113]
["Lu",71,176,4.8973032308800324,10.909112871516548]
["Lu",71,177,4.2076562993034123,10.891861293646253]
["Lu",71,178,5.8426712619894277,10.874729064204601]
["Hf",72,176,0.60318227505015032,11.062762348580161]
["Hf",72,177,2.553283586904922,11.045267790739862]
["Hf",72,178,1.8005602051589864,11.027894262291991]
["Hf",72,179,3.5959844553392828,11.010640268458905]
["Hf",72,180,2.8470043401370111,10.993504341017761]
["Ta",73,176,2.8170364926174605,11.216411825643775]
["Ta",73,177,1.7127660311902522,11.198674287833471]
["Ta",73,178,3.618300455717482,11.181059460379378]
["Ta",73,179,2.6475110197565113,{"$f":"B650/(1+C650^0.33)","v":11.163565827743057}]
["Ta",73,180,4.4209386546449583,11.146191901309676]
["Ta",73,181,3.5243405840345652,11.128936218765009]
["Ta",73,182,5.5218951487328471,11.111797343490162]
["Ta",73,183,4.7784559936959194,11.094773863973399]
["W",74,181,1.9080153442737711,11.281387399843982]
["W",74,182,0.90821894253435187,11.264013745455781]
["W",74,183,3.1564628595529922,11.246757067589474]
["W",74,184,2.2150602146224241,11.229615960269284]
["W",74,185,4.1437051354589052,11.212589041827945]
["W",74,186,3.1239541189003761,11.195674954359234]
["Re",75,182,2.863849100514555,11.4162301474214]
["Re",75,183,1.4095128541528714,11.398740271205549]
["Re",75,184,3.7535402724308171,11.381367527299949]
["Re",75,185,2.697124491878899,11.364110515366161]
["Re",75,186,4.7878725732405476,11.346967859147872]
["Re",75,187,3.7145273596232253,11.329938205931407]
["Re",75,188,5.8300833057633028,11.313020226021061]
["Re",75,189,4.7191068333649566,11.296212612228858]
["Os",76,187,2.2133037467248817,11.481004048677161]
["Os",76,188,0.90481051469348273,11.463860495701342]
["Os",76,189,3.214419409428841,11.446828780391911]
["Os",76,190,1.7123765289679818,11.4299076004366]
["Os",76,191,4.0219368495432635,11.413095675338706]
["Os",76,192,2.662867113961445,11.396391745941003]
["Os",76,193,4.8439574434614503,11.379794573962414]
["Os",76,194,3.8087998398993101,11.363302941547095]
["Ir",77,186,2.3839231408021719,11.649553668725149]
["Ir",77,187,0.80081117390827639,11.632069891422912]
["Ir",77,188,3.1761913723705377,11.614700765381622]
["Ir",77,189,1.801009128484788,11.597444948554962]
["Ir",77,190,4.3291304874903958,11.580301121494976]
["Ir",77,191,2.7113028630940188,11.563267986856321]
["Ir",77,192,5.1677770120150228,11.546344268913911]
["Ir",77,193,3.6504577781151251,11.529528713093498]
["Ir",77,194,5.960566750410039,11.51282008551482]
["Ir",77,195,4.8216875077583401,11.496217172546858]
["Pt",78,191,1.8822743381401636,11.713440298373936]
["Pt",78,192,0.18623792763452532,11.696296791886818]
["Pt",78,193,2.6107002218682402,11.679262852224582]
["Pt",78,194,1.2006847926816713,11.662337229482546]
["Pt",78,195,3.4819433966825439,11.645518694268246]
["Pt",78,196,2.2220036615865633,11.628806037262871]
["Pt",78,197,4.4401289930190782,11.612198068794198]
["Pt",78,198,3.3991331491565497,11.595693618420748]
["Au",79,192,2.913566437479528,11.846249314859726]
["Au",79,193,1.3716508292935559,11.828996991355666]
["Au",79,194,3.6616634642844401,11.81185437345027]
["Au",79,195,2.1949253643695434,11.794820215989633]
["Au",79,196,4.3954156610998032,11.777893294150855]
["Au",79,197,3.2882555382812928,11.761072403009509]
["Au",79,198,5.0833003506041718,11.74435635711845]
["Au",79,199,4.1655611331189126,11.72774399009759]
["Au",79,200,5.9217228671830631,11.711234154234306]
["Au",79,201,4.9847502493275577,11.694825720094153]
["Hg",80,197,1.311089396209812,11.90994673722482]
["Hg",80,198,0.24725289178375595,11.893019095816152]
["Hg",80,199,2.2388855852498804,11.876196445668445]
["Hg",80,200,1.2560832424237953,11.85947762454107]
["Hg",80,201,3.225022930714752,11.842861488702939]
["Hg",80,202,2.3434145964437256,11.826346912548425]
["Hg",80,203,4.2038480959011126,11.809932788223072]
["Hg",80,204,3.3629727059326422,11.793618025258816]
["Tl",81,198,2.1092172015443804,12.041681834513854]
["Tl",81,199,0.90443882709419054,{"$f":"B714/(1+C714^0.33)","v":12.024648901239301}]
["Tl",81,200,2.8085018424791164,12.007721094847835]
["Tl",81,201,1.8536989265598001,11.990897257311726]
["Tl",81,202,3.6665507448493928,11.974176248955279]
["Tl",81,203,2.7377584423639378,11.957556948075862]
["Tl",81,204,4.4747803527877963,11.941038250574552]
["Tl",81,205,3.6517318676542021,11.924619069596165]
["Tl",81,206,5.2380371886795496,11.908298335178333]
["Pb",82,205,1.00201362540531,12.071836588973895]
["Pb",82,207,1.3049443737511892,12.038890734574888]
["Pb",82,208,0.82811529038991527,12.022564650675941]
["Pb",82,210,3.7757224522649429,11.990200999599839]
["Bi",83,206,1.868791164522617,12.202330392837057]
["Bi",83,207,0.79998397426302947,12.185706475240435]
["Bi",83,208,2.3081577205519266,12.169181292757354]
["Bi",83,209,1.81663388434179,12.152753798867515]
["Bi",83,210,4.8724066664933998,12.136422963009593]
["Bi",83,211,4.2915806630634403,12.120187770264092]
["Po",84,209,0.21688114153675617,12.299172519335798]
["Po",84,211,2.9215567100001674,12.266214128941971]
["At",85,210,1.3414869496399087,12.4288668898291]
["At",85,211,0.81608318763900434,12.412240487619853]
["At",85,212,3.753423567041263,12.39571100950285]
["At",85,219,5.4067660808228233,12.282635706666978]
["Rn",86,222,3.7788085988771698,12.379479915885879]
["Fr",87,223,4.8578642355899389,12.507535343253929]
["Fr",87,224,6.6109932574541181,12.491731106930855]
["Ra",88,223,3.1538428196174553,12.651300117314319]
["Ra",88,225,4.0612103298939575,12.619416240031697]
["Ra",88,226,3.1091914311961735,12.603605305525647]
["Ac",89,225,3.032771417983692,12.762818697304784]
["Ac",89,226,4.8002292800690691,12.746828093088439]
["Ac",89,227,3.7500522021577782,12.730924666562874]
["Ac",89,228,5.8351648812655075,12.715107569755444]
["Ac",89,229,4.8300878831523439,12.699375966561538]
["Th",90,226,0.94300032868010897,12.890050880651231]
["Th",90,227,2.7159954068891121,12.873968763939985]
["Th",90,228,1.5969565537041972,12.857973946943709]
["Th",90,229,3.4148056911503262,12.842065584163352]
["Th",90,230,2.4084755346515383,12.826242841882323]
["Th",90,231,4.0840305149863738,12.810504897952452]
["Th",90,232,3.2416086502846104,12.794850941584775]
["Pa",91,231,3.3403299471319019,12.952843841263036]
["Pa",91,232,5.0405163170222016,12.93701595204683]
["Pa",91,233,4.2657620709346276,12.9212721750688]
["Pa",91,234,5.8874380384342304,12.905611712886104]
["Pa",91,235,5.1001553709898229,12.890033778934431]
["U",92,231,1.8489759279604969,13.095182784573618]
["U",92,232,1.0180099342627071,13.079180962508882]
["U",92,233,2.6415695608070831,13.063264176992634]
["U",92,234,1.9348704020005356,13.047431621818919]
["U",92,235,3.5825848499032742,13.031682501779864]
["U",92,236,2.7441481559256524,13.016016032470084]
["U",92,237,4.2125238111491825,13.000431440095415]
["U",92,238,3.5993250869237157,12.984927961285798]
["U",92,239,4.9781343936959903,12.969504842912212]
["Np",93,236,4.250275910302701,13.157494467605627]
["Np",93,237,3.5155658187817709,13.141740477487756]
["Np",93,238,5.0042297321288434,13.126068482604122]
["Np",93,239,4.4341355216231468,13.110477721639519]
["Np",93,240,5.7995121605152393,13.094967443450077]

{"sheet":"IBA-prime","index":1,"n_rows":310,"n_cols":121,"rows_kept":310,"cut":false,"hidden":false,"merged":[]}
["NUCLEAR REACTION ANALYSIS - primed values to invert collision"]
["ENTER VALUES OF DESIRED REACTION IN SHADED CELLS",null,null,null,null,null,null,null,null,null,null,null,null,null,null,null,null,null,null,null,null,null,null,null,null,null,null,null,null,null,null,null,null,null,null,null,null,null,null,null,null,null,null,null,null,null,null,null,null,null,null,null,null,null,null,null,null,null,null,null,null,null,null,null,null,null,null,null,null,null,null,null,null,null,"x",null,null,null,null,null,null,null,null,null,null,null,null,null,null,null,null,null,null,null,null,null,null,null,null,null,null,null,null,null,null,null,null,null,null,null,null,null,null,null,null,null,null,null,null,null,"X"]
["ENTER EXCITED STATE E LEVEL FOR NON-GROUND STATE REACTIONS"]
[]
["IBA INPUT GRID",null,"Z","M",null,null,"TARGET MATRIX GRID",null,null,null,"Mass in amu, Energy in MeV."]
["Projectile=",null,{"$f":"+ZT","v":1},{"$f":"+MT","v":1},null,null,"Zmatrix=",32," ",null,"Z1,M1=incident atomic #(zI), mass(mI)"]
["Target=",null,{"$f":"+ZI","v":6},{"$f":"+MI","v":12},null,null,"Mmatrix=",72,null,null,"Z2,M2=target atomic #(zT), mass(mT)"]
["Reaction Product=",null,{"$f":"+ZD","v":1},{"$f":"+MD","v":1},null,null,null,null,null,null,"Z3,M3=detected reaction particle atomic #(zD),mass(mD)"]
["Incident Energy=",null,null,{"$f":"ENERGY1*D6/(MI)","v":1},"MeV",null,"Vcoulomb=",{"$f":"((D6+D7)/D7)*C6*C7/(D6^0.33+D7^0.33)","v":1.9874373055057284},"MeV",null,"Z4,M4=residual atomic #(zR),mass(mR)"]
["Detector Angle=",null,null,116,"degrees","have to change the lab angle to get these com angles to be the same"]
["Mylar thicknes=",null,null,{"$f":"+IBA!D11","v":13},"microns"]
["Excited state E=",null,null,0,{"$f":"\"MeV above ground state \"&$AC$65","v":"MeV above ground state 12C"}]
[]
["NUCLEAR REACTION ANALYSIS INFORMATION"]
["Reaction",null,{"$f":"($AC$62&$AC$58&$AC$65)","v":"12C(1H,1H)12C"},null,null,null,null,null,null,null,null,null,null,null,null,{"$f":"0.95*494","v":469.29999999999995}]
["Q-Value",null,null,{"$f":"((INDEX($Z$69:$DQ$310,$D$6+1,$C$6+1+1)+INDEX($Z$69:$DQ$310,$D$7+1,$C$7+1+1)-INDEX($Z$69:$DQ$310,$D$8+1,$C$8+1+1)-INDEX($Z$69:$DQ$310,$D$32+1,$B$32+1+1))*931.48)-$D$12","v":0},"MeV","Matrix",null,null,null,null,null,null,null,null,null,null,null,null,"180/PI",{"$f":"180/PI()","v":57.295779513082323}]
["Detected Energy (Ed)",null,null,{"$f":"T31","v":0.78634901369178123},"MeV",{"$f":"D67","v":0.44459383597151148},"RBS","ERD",null,null,"lab","com",null,null,null,null,null,null,"x=",{"$f":"+D6/D7","v":8.3333333333333329E-2}]
["Rutherford Cross Section ",null,null,null,null,null,{"$f":"D46/1000","v":8.9493488225750817E-2},{"$f":"D69/1000","v":-2.5992299803309535},"b/sr",null,{"$f":"+G18","v":8.9493488225750817E-2},{"$f":"+K18/L38","v":9.6700844163029473E-2},null,null,null,null,null,null,"theta=",{"$f":"+D10/T16","v":2.0245819323134224}]
[" ",null,null,null,null,null,null,null,null,null,null,null,null,null,null,null,null,null,"sin(theta)",{"$f":"SIN(T18)","v":0.89879404629916693}]
["REACTION CALCULATIONS CHECKS AND INFORMATION",null,null,null,null,null,null,null,null,null,null,null,null,null,null,null,null,null,"cos(theta)",{"$f":"COS(T18)","v":-0.43837114678907751}]
["Mass of comp nucl.=",null,null,{"$f":"INDEX($Z$69:$DQ$310,$D$6+$D$7+1,$C$6+$C$7+1+1)","v":13.0057387},"M1=",{"$f":"INDEX($Z$69:$DQ$310,$D$6+1,$C$6+1+1)","v":1.00782522},"M2=",{"$f":"INDEX($Z$69:$DQ$310,$D$7+1,$C$7+1+1)","v":12},null,null,null,null,null,null,null,null,null,null,"sin-thetac",{"$f":"+T19*(T17*T20+(1-T17^2*T19^2)^0.5)","v":0.86343563076642793}]
["Compound Nucleus",null,null,{"$f":"INDEX($Z$69:$DQ$310,($D$6+$D$7)+1,1)&INDEX($Z$69:$DQ$310,1,($C$6+$C$7+1)+1)","v":"13N"},"M3=",{"$f":"INDEX($Z$69:$DQ$310,$D$8+1,$C$8+1+1)","v":1.00782522},"M4=",{"$f":"INDEX($Z$69:$DQ$310,$D$32+1,$B$32+1+1)","v":12},null,null,null,null,null,null,null,null,null,null,"thetac",{"$f":"ASIN(T21)*T16","v":59.704551941264711}]
["E of Compound Nucl.=",null,null,{"$f":"D16+D9*(1-F21/D21)","v":0.92250919050065183},"MeV ","Eo(cm)=",{"$f":"T47","v":0.92307692307692313},"MeV",null,null,"delta=",null,-2.879793265790644,null,null,null,null,null,null,{"$f":"180-T22","v":120.29544805873529}]
["Threshold =",null,null,{"$f":"-1*((F21+H21)/H21)*D16","v":0},"MeV","E(coulomb)=",{"$f":"(($C$7*$C$6*10000000000000*$T$59)/(1.4*($D$7^(1/3)+$D$6^(1/3))))*(1+$D$6/$D$7)","v":2.031779346291561},"MeV",null,null,null,null,null,null,null,null,null,null,null,null,null,null,null,null,null,null,null,null,null,null,null,null,null,null,null,"macro for energy scans"]
[{"$f":"+$AC$62&\"+\"&+$AC$61&\" E level on the \"&$D$22&\" NDS=\"","v":"12C+1H E level on the 13N NDS="},null,null,null,{"$f":"((F21-$D$6)+(H21-$D$7)-($D$21-ROUND($D$21,0)))*931.48","v":1.9435516495997751}]
[]
["Emitted Energy (E3)",null,null,{"$f":"$T$31","v":0.78634901369178123},"MeV",null,null,null,null,null,null,null,null,null,null,null,null,null,"mumat",{"$f":"(H7/$D$6)","v":72},"kmat",{"$f":"(($W$71+($T$27^2-$W$73)^0.5)/(1+$T$27))^2","v":0.96083018027271783}]
[null,null,null,null,null,null,null,null,null,null,null,null,null,null,null,null,null,null,null,null,"Reaction particle angle",null,"com angle in IBA tab",{"$f":"+ETA","v":120.00000000000001},"use goal seek function to find det. angle that makes these two the same"]
[null,null,null,null,null,null,null,null,null,null,null,null,null,null,null,null,null,null,"mu",{"$f":"$D$7/$D$6","v":12},"psi",{"$f":"$D$10","v":116},"com angle in primed ",{"$f":"180-ASIN((T33/(T30*T58))^0.5*SIN(D36/T16))*T16","v":120.29544805873529},{"$f":"180-X29","v":59.704551941264711}]
["RESIDUAL SPECIES INFORMATION",null,null,null,null,null,null,null,null,null,null,null,null,null,null,null,null,null,"etotal",{"$f":"$D$9+$D$16","v":1},"psirad",{"$f":"($D$10/(180/PI()))","v":2.0245819323134224},null,{"$f":"((T31/T30)/T58)^0.5","v":0.96066015826614648}]
[null,null,null,"(lab)",null,"(c.m.)",null,null,null,null,null,null,null,null,null,null,"B<D",{"$f":"IF(T56<T58,1,0)","v":1},"energy3",{"$f":"$T$30*$T$56*($V$31+($T$58/$T$56-$V$35^2)^0.5)^2","v":0.78634901369178123},"cospsi",{"$f":"COS($V$30)","v":-0.43837114678907751}]
["Z4=",{"$f":"$C$7+$T$42","v":6},"M4=",{"$f":"$D$7+$T$43","v":12},null,null,null,null,null,null,null,null,null,null,null,null,"B>D",{"$f":"IF(R31=1,0,1)","v":0},null,null,"zeta",{"$f":"((F22*T31/(H22*T35))^0.5*SIN(D43/T16))*T16","v":28.631231566521787}]
["Species=",null,{"$f":"$AC$65","v":"12C"},null,null,null,null,null,null,"Cross Section for inverted collision",null,null,null,null,null,null,"psi<sin-1(D/B^.5)",{"$f":"IF(D10<ASIN((T58/T56)^0.5),1,0)","v":{"$error":"#NUM!"}},null,{"$f":"T31","v":0.78634901369178123}]
["Residual Energy=",null,null,{"$f":"($T$30-$T$31)","v":0.21365098630821877},"MeV",{"$f":"$T$30*$T$57","v":7.1005917159763315E-2},"MeV"]
["Residual angle=",null,null,{"$f":"+V32","v":28.631231566521787},"deg.",{"$f":"180-$X$29","v":59.704551941264711},"deg",null,null,"Light ion is Projectile (primed system)",null,null,null,null,null,null,"A<C",{"$f":"IF(T55<T57,1,0)","v":0},"energy4",{"$f":"T30-T31","v":0.21365098630821877},"sinpsi",{"$f":"SIN($V$30)","v":0.89879404629916693}]
["Detector angle=",null,null,{"$f":"D10","v":116},"deg.",{"$f":"$X$29","v":120.29544805873529},"deg",null,null,"CS trabsform to com from lab for light product (M3)",null,null,null,null,null,null,"A>C",{"$f":"IF(R35=1,0,1)","v":1},"+",{"$f":"$T$30*$T$55*(COS($V$32/$T$16)+($T$57/$T$55-SIN($V$32/$T$16)^2)^0.5)^2","v":0.21881062913445684}]
["Detected energy=",null,null,{"$f":"IF(ISERR($T$35)=1,\"N.Det.\",$T$35)","v":0.21365098630821877},{"$f":"IF(ISERR($T$35)=1,\"\",\"MeV\")","v":"MeV"},null,"MeV",null,null,"Input the lab cross sections from SigmaBase",null,null,null,null,null,null,"psi<sin-1(C/A^.5)",null,"-",{"$f":"$T$30*$T$55*(COS($V$32/$T$16)-($T$57/$T$55-SIN($V$32/$T$16)^2)^0.5)^2","v":0}]
[null,null,null,null,null,null,null,null,null,"CS3lab/CS3com=",null,{"$f":"(T31/T30)/(T55*T57*(T58/T56-SIN(D36/T16)^2))^0.5","v":0.92546749721101029},null,"180 deg scat"]
["RBS INFORMATION",null,null,"(lab)",null,"(c.m.)",null,null,null,"elastic=",null,{"$f":"1/(D6*D7*((D7/D6)^2-SIN(D10/T16)^2)^0.5/((D6+D7)^2*(D17/D9)))","v":0.9254674972110104},"lab",{"$f":"(1-D6/D7)^2","v":0.84027777777777768}]
["Scattered Particle",null,null,{"$f":"$AC$61","v":"1H"},null,null,null,null,null,null,"E(MeV)","lab/com","mb/sr","com",null,null,null,null,"qvalue",{"$f":"D16","v":0},"sinpsi2",{"$f":"($V$35^2)","v":0.80783073766282898}]
["Target Atom",null,null,{"$f":"$AC$62","v":"12C"},null,null,null,null,null,null,null,{"$f":"+L38","v":0.92546749721101029},{"$f":"+G18","v":8.9493488225750817E-2},"mb/sr"]
["Incident Energy=",null,null,{"$f":"$D$9","v":1},"MeV",{"$f":"(D42/(1+$D$6/$D$7))","v":0.92307692307692313},"MeV",null,null,null,0.1,0.92546749721101029,8.9493488225750806,{"$f":"+M42/L42","v":9.6700844163029451},null,null,null,null,"deltaZ",{"$f":"$C$6-$C$8","v":0}]
["Scattering Angle=",null,null,{"$f":"D10","v":116},"degrees",{"$f":"$X$69","v":120.29545164814863},"deg",null,null,null,0.2,0.92546749721101029,2.2373372056437701,{"$f":"+M43/L43","v":2.4175211040757363},null,null,null,null,"deltaM",{"$f":"$D$6-$D$8","v":0}]
["Recoil Angle=",null,null,-3.9221602634071728,"degrees",{"$f":"2*D44","v":-7.8443205268143457},"deg",null,null,null,0.3,0.92546749721101029,0.99437209139723126,1.0744538240336607,null,null,null,null,null,null,"Residual Particle angle"]
["K factor=",null,null,{"$f":"$T$69","v":0.78634921569830951},null,null,null,null,null,null,0.4,0.92546749721101029,0.55933430141094254,0.60438027601893407,null,null,null,null,"total system",null,"zeta",{"$f":"$D$35","v":28.631231566521787},"cm angle",{"$f":"180-X29","v":59.704551941264711}]
["Rutherford xsection=",null,null,{"$f":"$T$61*1000","v":89.493488225750824},"mb/sr",{"$f":"$T$62*1000","v":96.700636005642835},"mb/sr",null,null,null,0.5,0.92546749721101029,0.35797395290300327,{"$f":"+M46/L46","v":0.38680337665211789},null,null,null,null,"energy [MeV]=",{"$f":"(INDEX($Z$69:$DQ$310,$D$6+1,$C$6+1)+INDEX($Z$69:$DQ$310,$D$7+1,$C$7+1)-INDEX($Z$69:$DQ$310,($D$6+$D$7)+1,($C$6+$C$7)+1))*931.48+$T$47","v":19.238514800517045},"zetarad",{"$f":"+V45/T16","v":0.49970925973673908}]
["Scattered Energy=",null,null,{"$f":"$T$70","v":0.78634921569830951},"MeV",{"$f":"$D$7*$D$7*D42/($D$6+$D$7)^2","v":0.85207100591715978},"MeV",null,null,null,0.6,0.92546749721101029,0.24859302284930782,0.26861345600841519,null,null,null,null,"E1[cm frame]=",{"$f":"$D$9/(1+$D$6/$D$7)","v":0.92307692307692313},"coszeta",{"$f":"COS($V$46)","v":0.87772191310473358}]
["Recoil Energy=",null,null,0.95550843012684705,"MeV",{"$f":"$D$6*$D$7*D42/($D$6+$D$7)^2","v":7.1005917159763315E-2},"MeV",null,null,null,0.7,0.92546749721101018,0.1826397718892874,0.19734866155720304,null,null,null,null,null,null,"sinzeta",{"$f":"SIN($V$46)","v":0.47917036975982397}]
[null,null,null,null,null,null,null,null,null,null,0.8,0.92546749721101029,0.13983357535273563,0.15109506900473352,null,null,null,null,null,null,"sinzeta2",{"$f":"SIN($V$46)^2","v":0.22960424325576642}]
[null,null,null,null,null,null,null,null,null,null,0.9,0.92546749721101029,0.11048578793302567,0.11938375822596228]
["ERD INPUT VALUES GRID",null,null,null,null,null,null,null,null,null,1,0.92546749721101029,8.9493488225750817E-2,9.6700844163029473E-2]
[null,null,"Atomic#",2,"Species",null,null,null,null,null,1.1000000000000001,0.9254674972110104,7.3961560517149402E-2,7.9918053027297042E-2]
["Incident Ion",null,{"$f":"C6","v":1},{"$f":"D6","v":1},{"$f":"INDEX($Z$69:$DQ$310,$D$53+1,1)&INDEX($Z$69:$DQ$310,1,$C$53+1+1)","v":"1H"},null,null,null,null,null,1.2,0.92546749721101029,6.2148255712326954E-2,6.7153364002103796E-2,null,null,null,null,null,"NRA Calculations"]
["Recoil Atom",null,{"$f":"C7","v":6},{"$f":"D7","v":12},{"$f":"INDEX($Z$69:$DQ$310,$D$54+1,1)&INDEX($Z$69:$DQ$310,1,$C$54+1+1)","v":"12C"},null,null,null,null,null,1.3,0.92546749721101029,5.2954726760799285E-2,5.7219434415993753E-2,null,null,null,null,null,"Green book coefficients"]
["Substrate",null,{"$f":"H6","v":32},{"$f":"H7","v":72},{"$f":"INDEX($Z$69:$DQ$310,$D$55+1,1)&INDEX($Z$69:$DQ$310,1,$C$55+1+1)","v":"72Ge"},null,null,null,null,null,1.4,0.92546749721101018,4.565994297232185E-2,4.9337165389300761E-2,null,null,null,{"$f":"D6*D7/(D6+D7)^2","v":7.1005917159763315E-2},"A",{"$f":"($D$6*$D$32*($D$9/$T$30))/(($D$6+$D$7)*($D$8+$D$32))","v":7.1005917159763315E-2},{"$f":"(T55*T57)","v":5.0418402716991707E-3},"\u001bAC"]
["Recoil Angle=",null,null,{"$f":"D10","v":116},"degrees",null,null,null,null,null,1.5,0.9254674972110104,3.977488365588925E-2,4.2978152961346425E-2,null,null,null,{"$f":"+D6^2/(D6+D7)^2","v":5.9171597633136093E-3},"B",{"$f":"($D$6*$D$8*($D$9/$T$30))/(($D$6+$D$7)*($D$8+$D$32))","v":5.9171597633136093E-3},{"$f":"(T56*T58)","v":5.0418402716991698E-3},"\u001bBD"]
["Incident Energy=",null,null,{"$f":"D9","v":1},"MeV",null,null,null,null,null,1.6,0.92546749721101029,3.4958393838183908E-2,3.7773767251183379E-2,null,null,null,null,"C",{"$f":"(($D$7*$D$8)/(($D$6+$D$7)*($D$8+$D$32)))*(1+($D$6*$D$16)/($D$7*$T$30))","v":7.1005917159763315E-2},{"$f":"SUM(T55:T58)","v":1},"\u001bSum"]
["Mylar thicknes=",null,null,{"$f":"D11","v":13},"microns",null,null,null,null,null,1.7,0.92546749721101029,3.0966604922405119E-2,{"$f":"+M58/L58","v":3.3460499710390813E-2},null,null,null,{"$f":"+D7^2/(D7+D6)^2","v":0.85207100591715978},"D",{"$f":"(($D$7*$D$32)/(($D$6+$D$7)*($D$8+$D$32)))*(1+($D$6*$D$16)/($D$7*$T$30))","v":0.85207100591715978},null,null,null,null,null,null,null,"RXN",{"$f":"(\"(\"&AC61&\",\"&AC64&\")\")","v":"(1H,1H)"}]
[null,null,null,null,null,null,null,null,null,null,1.8,0.92546749721101029,2.7621446983256418E-2,2.9845939556490571E-2,null,null,null,null,"esqrd",{"$f":"(14.395/1000000)/100000000","v":1.4395000000000001E-13},"MeV cm"]
["ERD INFORMATION",null,null," ",null,null,null,null,null,null,1.9,0.9254674972110104,2.4790439951731528E-2,2.6786937441282396E-2,null,null,null,null,null,null,null,null,null,null,null,null,null,"GAMMA","g-ray"]
["Recoil Energy=",null,null,{"$f":"$T$76","v":0.21301775147928995},"MeV",null,null,null,null,null,2,0.92546749721101029,2.2373372056437704E-2,2.4175211040757368E-2,null,null,null,"Rutherford","dsigma",{"$f":"(U61*U62/U63)/1E-24","v":8.9493488225750817E-2},{"$f":"($C$6*$C$7*$T$59/(2*$D$9))^2","v":1.8649442250000003E-25},{"$f":"($C$6*$C$7*$T$59/(2*$F$42))^2","v":2.1887192640625E-25},null,null,null,null,null,"INCIDENT",{"$f":"INDEX($Z$69:$DQ$310,$D$6+1,1)&INDEX($Z$69:$DQ$310,1,$C$6+1+1)","v":"1H"}]
["Detected Energy=",null,null,{"$f":"B106","v":{"$error":"#NUM!"}},"Mev",null,null,null,null,null,2.1,0.92546749721101018,2.0293307987698593E-2,2.1927629061911442E-2,null,null,180,{"$f":"0.01*(C6*C7*1.4395/(4*D9))^2","v":4.6623605625000009E-2},"cmsigma",{"$f":"+V61/4/V63/1E-24","v":9.670063600564284E-2},{"$f":"($W$71+(1-($D$6/$D$7)^2*$W$73)^0.5)^2","v":0.31228143835546074},null,null,null,null,null,null,"TARGET",{"$f":"INDEX($Z$69:$DQ$310,$D$7+1,1)&INDEX($Z$69:$DQ$310,1,$C$7+1+1)","v":"12C"},null,"3He(3He,2p)a Q value"]
["Recoiled Particle",null,null,{"$f":"$E$54","v":"12C"},null,null,null,null,null,null,2.2000000000000002,0.9254674972110104,1.8490390129287351E-2,1.9979513256824261E-2,null,null,"approx",{"$f":"+R62*(SIN(W69/T16/2)^-4+2*(D6/D7)^2)","v":9.0788871956667724E-2},null,null,{"$f":"($W$72^4*(1-($D$6/$D$7)^2*$W$73)^0.5)","v":0.65075959891809676},{"$f":"SIN(T23/T16/2)^4","v":0.56584924217426558},null,{"$f":"+(C6*C7*T59/(4*F42))^2/SIN(X69/T16/2)^4","v":9.6700629052042373E-26},null,null,null,"COMPOUND",{"$f":"INDEX($Z$69:$DQ$310,($D$6+$D$7)+1,1)&INDEX($Z$69:$DQ$310,1,($C$6+$C$7+1)+1)","v":"13N"},null,12.859379473599907]
["Detector Angle=",null,null,{"$f":"$D$56","v":116},"degrees",null,null,null,null,null,2.2999999999999998,0.9254674972110104,1.6917483596550247E-2,1.8279932734032032E-2,null,null,null,{"$f":"+R62/R63","v":0.51353876989740344},null,{"$f":"+T62/T61","v":1.0805326501712806},null,null,null,null,null,null,null,"DETECTED",{"$f":"INDEX($Z$69:$DQ$310,$D$8+1,1)&INDEX($Z$69:$DQ$310,1,$C$8+1+1)","v":"1H"}]
["Scattered Particle",null,null,{"$f":"$E$53","v":"1H"},null,null,null,null,null,null,2.4,0.92546749721101029,1.5537063928081738E-2,1.6788341000525949E-2,null,null,null,null,null,{"$f":"1/T64","v":0.92546948936849338},null,null,null,null,null,null,null,"RESIDUAL",{"$f":"INDEX($Z$69:$DQ$310,$D$32+1,1)&INDEX($Z$69:$DQ$310,1,$B$32+1+1)","v":"12C"}]
["Scattered Energy=",null,null,{"$f":"$D$9*V27","v":0.96083018027271783},{"$f":"IF(ISERR($W$76)=1,$S$87,$S$86)","v":"MeV at MAX ANGLE"},null,null,null,null,null,2.5,0.92546749721101029,1.4318958116120127E-2,1.5472135066084712E-2,null,null,null,null,null,null,null,null,null,null,null,"mtable"]
["scatt energy after foil=",null,null,{"$f":"B95","v":0.44459383597151148},{"$f":"IF(ISERR($W$76)=1,$S$87,$S$86)","v":"MeV at MAX ANGLE"},null,null,null,null,null,2.6,0.92546749721101029,1.3238681690199821E-2,1.4304858603998438E-2,null,null,null,null,null,null,null,null,"lab","c.m.",null,null,"Z\u001a"]
["Max. Scat. Angle=",null,null,{"$f":"IF(ISERR($W$76)=1,180,$W$76)","v":{"$error":"#VALUE!"}},"degrees",null,null,null,null,null,2.7,0.92546749721101018,1.2276198659225076E-2,1.3264862025106922E-2,null,null,null,null,"MeV",null,null,"RBS Scattering angle",null,null,null,"\u001fM",0,"1","2","3","4","5","6","7","8","9","10","11","12","13","14","15","16","17","18","19","20","21","22","23","24","25","26","27","28","29","30","31","32","33","34","35","36","37","38","39","40","41","42","43","44","45","46","47","48","49","50","51","52","53","54","55","56","57","58","59","60","61","62","63","64","65","66","67","68","69","70","71","72","73","74","75","76","77","78","79","80","81","82","83","84","85","86","87","88","89","90","91","92",93,94]
["Cross Section=",null,null,{"$f":"20.73*(C53*C54*(D53+D54)/(2*D54*D57))^2/COS(D56*3.14159/180)^3","v":-2599.2299803309534},"mb/sr",null,null,null,null,null,2.8,0.92546749721101018,1.1414985743080463E-2,1.233429134732519E-2,null,null,null,null,"K",{"$f":"(($W$71+($T$29^2-$W$73)^0.5)/(1+$T$29))^2","v":0.78634921569830951},null,"theta",{"$f":"$D$43","v":116},{"$f":"($D$43/T16+ASIN($D$6*W72/$D$7))*T16","v":120.29545164814863},null,"g-ray","n","H","He","Li","Be","B","C","N","O","F","Ne","Na","Mg","Al","Si","P","S","Cl","Ar","K","Ca","Sc","Ti","V","Cr","Mn","Fe","Co","Ni","Cu","Zn","Ga","Ge","As","Se","Br","Kr","Rb","Sr","Y","Zr","Nb","Mo","Tc","Ru","Rh","Pd","Ag","Cd","In","Sn","Sb","Te","I","Xe","Cs","Ba","La","Ce","Pr","Nd","Pm","Sm","Eu","Gd","Tb","Dy","Ho","Er","Tm","Yb","Lu","Hf","Ta","W","Re","Os","Ir","Pt","Au","Hg","Tl","Pb","Bi","Po","At","Rn","Fr","Ra","Ac","Th","Pa","U","Np","Pu"]
[null,null,null,null,null,null,null,null,null,null,2.9,0.92546749721101029,1.0641318457283092E-2,1.1498316785140244E-2,null,null,null,null,"escatter",{"$f":"$T$69*$D$9","v":0.78634921569830951},null,"thetarad",{"$f":"W69*3.14159/180","v":2.0245802222222222},2.8867520437663026,null,"1",1.0086649670000001,1.00782522]
["...........................................................",null,null,null,null,null,null,null,null,null,3,0.9254674972110104,9.9437209139723124E-3,1.0744538240336606E-2,null,null,null,null,"bsrecoilE",{"$f":"(1-$T$69)*$D$9","v":0.21365078430169049},null,"costheta",{"$f":"COS($W$70)","v":-0.43836960976864714},{"$f":"COS(X70)","v":-0.96770348883675772},null,"2",null,2.014101787]
["Mylar foil effect on detected energy",null,null,null,null,null,null,null,null,null,null,null,null,null,null,null,null,null,null,null,null,"sintheta",{"$f":"SIN($W$70)","v":0.89879479595249323},{"$f":"SIN(X70)","v":0.2520911694073536},null,"3",null,3.0160492859999999,3.0160292970000002]
[null,null,null,null,null,null,null,null,null,null,null,null,null,null,null,null,null,null,"erdmu",{"$f":"($D$55/$D$53)","v":72},null,"sintheta2",{"$f":"(W72^2)","v":0.80783208523128391},{"$f":"SIN(X70)^2","v":6.3549957693167056E-2},null,"4",null,4.0278299999999998,4.0026032499999999,4.0269700000000004]
["logR = mlogE + b",null,null,null,null,null,null,null,null,null,null,null,null,null,null,null,null,null,"erdK",{"$f":"IF(ISERR($W$76)=1,$T$83,$T$84)","v":{"$error":"#VALUE!"}},null,null,null,null,null,"5",null,5.03627,5.0122200000000001,5.0125000000000002]
["logE = (logR - b)/m",null,null,null,null,null,null,null,null,null,null,null,null,null,null,null,null,null,"erdescatter",{"$f":"$T$74*$D$57","v":{"$error":"#VALUE!"}},null,"ERD Scattering angle",null,null,null,"6",null,null,6.018891,6.0151209999999997,6.0197269999999996]
[null,null,null,null,null,null,null,null,null,null,null,null,null,null,null,null,null,null,"erdrecoilE",{"$f":"4*$D$53*$D$54*$D$57*$W$85/($D$53+$D$54)^2","v":0.21301775147928995},null,"phi",{"$error":"#VALUE!"},null,null,"7",null,null,7.0280310000000004,7.0160030000000004,7.0169299000000001]
["R in um -- E in MeV",null,null,null,null,null,null,null,null,null,null,null,null,null,null,null,null,null,null,null,null,"phirad",{"$error":"#VALUE!"},null,null,"8",null,null,null,8.0224890000000002,8.0053051499999999,8.0246075000000001]
[null,null,null,null,"calc",null,null,null,null,null,null,null,null,null,null,null,null,null,null,null,null,"cosphi",{"$f":"COS($W$77)","v":{"$error":"#VALUE!"}},null,null,"9",null,null,null,null,9.0121824999999998,9.0133291,9.0310380000000006]
["input from nra",null,null,null,null,null,null,null,null,null,null,null,null,null,null,null,null,null,null,null,null,"sinphi",{"$f":"SIN($W$77)","v":{"$error":"#VALUE!"}},null,null,"10",null,null,null,null,10.013534699999999,10.012938,10.0168576]
["Z",{"$f":"C8","v":1},null,null,"m",{"$f":"IF(B80>9,0,INDEX($B$111:$J$129,B81,B80))","v":1.6694520282906096},null,null,null,null,null,null,null,null,null,null,null,null,null,null,null,"sinphi2",{"$f":"($W$79^2)","v":{"$error":"#VALUE!"}},null,null,"11",null,null,null,null,11.021660000000001,11.009305299999999,11.0114331,11.02708]
["M",{"$f":"D8","v":1},null,null,"b",{"$f":"IF(B80>9,0,INDEX($B$136:$J$154,B81,B80))","v":1.2833101815966044},null,null,null,null,null,null,null,null,null,null,null,null,null,null,null,null,null,null,null,"12",null,null,null,null,12.026870000000001,12.0143526,12,12.018613]
["E3",{"$f":"D27","v":0.78634901369178123},"MeV",null,"R",{"$f":"10^(LOG(B82)*F80+F81)","v":12.85419872860821},"um",null,null,null,null,null,null,null,null,null,null,null,null,null,null,"ERD Recoil angle",null,null,null,"13",null,null,null,null,null,null,13.003354839,13.0057387]
[null,null,null,null,"x",{"$f":"F82-B84","v":-0.14580127139178956},"um",null,null,null,null,null,null,null,null,null,null,null,"erdk if 1",{"$f":"(($W$86+($T$73^2-$W$87)^0.5)/(1+$T$73))^2","v":0.99628535392682538},null,"recoilangle",{"$f":"D56","v":116},null,null,"14",null,null,null,null,null,null,14.003241993,14.003074008,14.008597200000001]
["thick=",{"$f":"D11","v":13},"um",null,null,null,null,null,null,null,null,null,null,null,null,null,null,null,"erdk if 2",{"$f":"(($W$78+($T$73^2-$W$80)^0.5)/(1+$T$73))^2","v":{"$error":"#VALUE!"}},null,"sinrecoil",0.5,null,null,"15",null,null,null,null,null,null,null,15.000108978,15.003065400000001,15.01895]
[null,null,null,null,null,null,null,null,null,null,null,null,null,null,null,null,null,null,null,null,null,"cosrecoil2",0.75,null,null,"16",null,null,null,null,null,null,null,16.0060994,15.994914639999999,16.011479000000001]
["Ed",{"$f":"10^((LOG(F83)-F81)/F80)","v":{"$error":"#NUM!"}},"MeV",null,null,null,null,null,null,null,null,null,null,null,null,null,null,null,"MeV at MAX ANGLE",null,null,"cosrecoil",0.8660254037844386,null,null,"17",null,null,null,null,null,null,null,null,16.999130600000001,17.002095180000001]
[null,null,null,null,null,null,null,null,null,null,null,null,null,null,null,null,null,null,"MeV at DET. ANGLE",null,null,"sinrecoil2",{"$f":"(W84^2)","v":0.25},null,null,"18",null,null,null,null,null,null,null,null,17.999159389999999,18.000936599999999,18.005710000000001]
["input from RBS",null,null,null,null,null,null,null,null,null,null,null,null,null,null,null,null,null,null,null,null,null,null,null,null,"19",null,null,null,null,null,null,null,null,19.0035764,18.998403249999999,19.0018797]
["Z",{"$f":"C53","v":1},null,null,"m",{"$f":"IF(B89>9,0,INDEX($B$111:$J$129,B90,B89))","v":1.6694520282906096},null,null,null,null,null,null,null,null,null,null,null,null,null,null,null,null,null,null,null,"20",null,null,null,null,null,null,null,null,null,19.999981699999999,19.992439099999999,20.007346999999999]
["M",{"$f":"D53","v":1},null,null,"b",{"$f":"IF(B89>9,0,INDEX($B$136:$J$154,B90,B89))","v":1.2833101815966044},null,null,null,null,null,null,null,null,null,null,null,null,null,null,null,null,null,null,null,"21",null,null,null,null,null,null,null,null,null,null,20.9938453,20.997653499999998]
["E3",{"$f":"D66","v":0.96083018027271783},"MeV",null,"R",{"$f":"10^(LOG(B91)*F89+F90)","v":17.961374700776741},"um",null,null,null,null,null,null,null,null,null,null,null,null,null,null,null,null,null,null,"22",null,null,null,null,null,null,null,null,null,null,21.9913837,21.994436,21.999576900000001]
[null,null,null,null,"x",{"$f":"F91-B93","v":4.9613747007767408},"um",null,null,null,null,null,null,null,null,null,null,null,null,null,null,null,null,null,null,"23",null,null,null,null,null,null,null,null,null,null,22.9944658,22.989768000000002,22.994125]
["thick=",{"$f":"B84","v":13},"um",null,null,null,null,null,null,null,null,null,null,null,null,null,null,null,null,null,null,null,null,null,null,"24",null,null,null,null,null,null,null,null,null,null,null,23.990964000000002,23.985042,23.999943999999999]
[null,null,null,null,null,null,null,null,null,null,null,null,null,null,null,null,null,null,null,null,null,null,null,null,null,"25",null,null,null,null,null,null,null,null,null,null,null,null,24.985838000000001,24.990431699999998]
["Ed",{"$f":"10^((LOG(F92)-F90)/F89)","v":0.44459383597151148},"MeV",null,null,null,null,null,null,null,null,null,null,null,null,null,null,null,null,null,null,null,null,null,null,"26",null,null,null,null,null,null,null,null,null,null,null,null,25.982593999999999,25.986893999999999,25.9923316]
[null,null,null,null,null,null,null,null,null,null,null,null,null,null,null,null,null,null,null,null,null,null,null,null,null,"27",null,null,null,null,null,null,null,null,null,null,null,null,26.984342999999999,26.981539000000001,26.986704]
[null,null,null,null,null,null,null,null,null,null,null,null,null,null,null,null,null,null,null,null,null,null,null,null,null,"28",null,null,null,null,null,null,null,null,null,null,null,null,null,27.9819122,27.976927,27.992314]
[null,null,null,null,null,null,null,null,null,null,null,null,null,null,null,null,null,null,null,null,null,null,null,null,null,"29",null,null,null,null,null,null,null,null,null,null,null,null,null,null,28.976495,28.981804400000001]
["input from erd",null,null,null,null,null,null,null,null,null,null,null,null,null,null,null,null,null,null,null,null,null,null,null,null,"30",null,null,null,null,null,null,null,null,null,null,null,null,null,null,29.973769999999998,29.97831,29.984903899999999]
["Z",{"$f":"C54","v":6},null,null,"m",{"$f":"IF(B100>9,0,INDEX($B$111:$J$129,B101,B100))","v":0.9860379051542888},null,null,null,null,null,null,null,null,null,null,null,null,null,null,null,null,null,null,null,"31",null,null,null,null,null,null,null,null,null,null,null,null,null,null,30.975365,30.973762000000001,30.979600000000001]
["M",{"$f":"D54","v":12},null,null,"b",{"$f":"IF(B100>9,0,INDEX($B$136:$J$154,B101,B100))","v":5.5961469181884826E-2},null,null,null,null,null,null,null,null,null,null,null,null,null,null,null,null,null,null,null,"32",null,null,null,null,null,null,null,null,null,null,null,null,null,null,null,31.973908699999999,31.972071,31.985690999999999]
["E3",{"$f":"D61","v":0.21301775147928995},"MeV",null,"R",{"$f":"10^(LOG(B102)*F100+F101)","v":0.24760190839215576},"um",null,null,null,null,null,null,null,null,null,null,null,null,null,null,null,null,null,null,"33",null,null,null,null,null,null,null,null,null,null,null,null,null,null,null,32.971726400000001,32.971459000000003,32.977452599999999]
[null,null,null,null,"x",{"$f":"F102-B104","v":-12.752398091607844},"um",null,null,null,null,null,null,null,null,null,null,null,null,null,null,null,null,null,null,"34",null,null,null,null,null,null,null,null,null,null,null,null,null,null,null,null,33.967866700000002,33.973765,33.980269300000003]
["thick=",{"$f":"D58","v":13},"um",null,null,null,null,null,null,null,null,null,null,null,null,null,null,null,null,null,null,null,null,null,null,"35",null,null,null,null,null,null,null,null,null,null,null,null,null,null,null,null,34.9690333,34.968852699999999,34.975256199999997]
[null,null,null,null,null,null,null,null,null,null,null,null,null,null,null,null,null,null,null,null,null,null,null,null,null,"36",null,null,null,null,null,null,null,null,null,null,null,null,null,null,null,null,35.967080600000003,35.968307000000003,35.967545604999998,35.981293000000001]
["Ed",{"$f":"10^((LOG(F103)-F101)/F100)","v":{"$error":"#NUM!"}},"MeV",null,null,null,null,null,null,null,null,null,null,null,null,null,null,null,null,null,null,null,null,null,null,"37",null,null,null,null,null,null,null,null,null,null,null,null,null,null,null,null,null,36.9659026,36.966776299999999,36.973370000000003]
[null,null,null,null,null,null,null,null,null,null,null,null,null,null,null,null,null,null,null,null,null,null,null,null,null,"38",null,null,null,null,null,null,null,null,null,null,null,null,null,null,null,null,null,37.968009000000002,37.962732199999998,37.969080099999999,37.976317999999999]
["slope=m",null,null,null,null,null,null,null,null,null,null,null,null,null,null,null,null,null,null,null,null,null,null,null,null,"39",null,null,null,null,null,null,null,null,null,null,null,null,null,null,null,null,null,null,38.964314999999999,38.963707900000003,38.970711000000001]
[" ","z",null,null,null,null,null,null,null,null,null,null,null,null,null,null,null,null,null,null,null,null,null,null,null,"40",null,null,null,null,null,null,null,null,null,null,null,null,null,null,null,null,null,null,39.962383099999997,39.963998799999999,39.9625907,39.977963000000003]
["m",1,2,3,4,5,6,7,8,9,null,null,null,null,null,null,null,null,null,null,null,null,null,null,null,"41",null,null,null,null,null,null,null,null,null,null,null,null,null,null,null,null,null,null,40.964500600000001,40.961825400000002,40.962279199999998,40.969250199999998]
[1,1.6694520282906096,null,null,null,null,null,null,null,null,null,null,null,null,null,null,null,null,null,null,null,null,null,null,null,"42",null,null,null,null,null,null,null,null,null,null,null,null,null,null,null,null,null,null,null,41.962401800000002,41.958618000000001,41.965517300000002,41.973030999999999]
[2,1.6212553266223282,null,null,null,null,null,null,null,null,null,null,null,null,null,null,null,null,null,null,null,null,null,null,null,"43",null,null,null,null,null,null,null,null,null,null,null,null,null,null,null,null,null,null,null,42.960720999999999,42.958767000000002,42.961154100000002,42.968519000000001]
[3,1.5526328490769452,1.5121279892299686,null,null,null,null,null,null,null,null,null,null,null,null,null,null,null,null,null,null,null,null,null,null,"44",null,null,null,null,null,null,null,null,null,null,null,null,null,null,null,null,null,null,null,43.961559999999999,43.955480999999999,43.959408799999999,43.959692799999999]
[4,null,1.5040446658818245,null,null,null,null,null,null,null,null,null,null,null,null,null,null,null,null,null,null,null,null,null,null,"45",null,null,null,null,null,null,null,null,null,null,null,null,null,null,null,null,null,null,null,44.960697000000003,44.956192999999999,44.955910000000003,44.958127900000001]
[5,null,null,null,null,null,null,null,null,null,null,null,null,null,null,null,null,null,null,null,null,null,null,null,null,"46",null,null,null,null,null,null,null,null,null,null,null,null,null,null,null,null,null,null,null,null,45.953690000000002,45.955173899999998,45.952632700000002,45.960203200000002]
[6,null,null,null,null,null,null,null,null,null,null,null,null,null,null,null,null,null,null,null,null,null,null,null,null,"47",null,null,null,null,null,null,null,null,null,null,null,null,null,null,null,null,null,null,null,null,46.954543000000001,46.952409600000003,46.951764900000001,46.954910400000003]
[7,null,null,1.2991330348645937,null,null,null,null,null,null,null,null,null,null,null,null,null,null,null,null,null,null,null,null,null,"48",null,null,null,null,null,null,null,null,null,null,null,null,null,null,null,null,null,null,null,null,47.952534,47.95223,47.947946700000003,47.952256900000002,47.954033000000003]
[8,null,null,null,null,null,null,null,null,null,null,null,null,null,null,null,null,null,null,null,null,null,null,null,null,"49",null,null,null,null,null,null,null,null,null,null,null,null,null,null,null,null,null,null,null,null,null,48.950021999999997,48.947870500000001,48.948516599999998,48.951337700000003]
[9,null,null,null,1.1641836090425788,null,null,null,null,null,null,null,null,null,null,null,null,null,null,null,null,null,null,null,null,"50",null,null,null,null,null,null,null,null,null,null,null,null,null,null,null,null,null,null,null,null,null,49.952185999999998,49.944785799999998,49.947161299999998,49.946046299999999,49.954239800000003]
[10,null,null,null,null,null,null,null,null,null,null,null,null,null,null,null,null,null,null,null,null,null,null,null,null,"51",null,null,null,null,null,null,null,null,null,null,null,null,null,null,null,null,null,null,null,null,null,null,null,50.943962499999998,50.944769000000001,50.948212900000001]
[11,null,null,null,null,1.0394207257924954,null,null,null,null,null,null,null,null,null,null,null,null,null,null,null,null,null,null,null,"52",null,null,null,null,null,null,null,null,null,null,null,null,null,null,null,null,null,null,null,null,null,null,null,51.944778599999999,51.9405097,51.945567199999999,51.948113999999997]
[12,null,null,null,null,null,0.9860379051542888,null,null,null,null,null,null,null,null,null,null,null,null,null,null,null,null,null,null,"53",null,null,null,null,null,null,null,null,null,null,null,null,null,null,null,null,null,null,null,null,null,null,null,null,52.940651000000003,52.941291200000002,52.9453095]
[13,null,null,null,null,null,null,null,null,null,null,null,null,null,null,null,null,null,null,null,null,null,null,null,null,"54",null,null,null,null,null,null,null,null,null,null,null,null,null,null,null,null,null,null,null,null,null,null,null,null,53.938882200000002,53.940360499999997,53.939612099999998,53.948459999999997]
[14,null,null,null,null,null,null,0.92047940805848538,null,null,null,null,null,null,null,null,null,null,null,null,null,null,null,null,null,"55",null,null,null,null,null,null,null,null,null,null,null,null,null,null,null,null,null,null,null,null,null,null,null,null,54.940841499999998,54.938046300000003,54.9382947,54.942003399999997]
[15,null,null,null,null,null,null,null,null,null,null,null,null,null,null,null,null,null,null,null,null,null,null,null,null,"56",null,null,null,null,null,null,null,null,null,null,null,null,null,null,null,null,null,null,null,null,null,null,null,null,null,55.9389064,55.934939300000003,55.939842599999999,55.942134000000003]
[16,null,null,null,null,null,null,null,0.90347043319054465,null,null,null,null,null,null,null,null,null,null,null,null,null,null,null,null,"57",null,null,null,null,null,null,null,null,null,null,null,null,null,null,null,null,null,null,null,null,null,null,null,null,null,null,56.935395700000001,56.936293800000001,56.939774999999997]
[17,null,null,null,null,null,null,null,null,null,null,null,null,null,null,null,null,null,null,null,null,null,null,null,null,"58",null,null,null,null,null,null,null,null,null,null,null,null,null,null,null,null,null,null,null,null,null,null,null,null,null,null,57.933277799999999,57.935755299999997,57.935347100000001,57.944539399999996]
[18,null,null,null,null,null,null,null,null,null,null,null,null,null,null,null,null,null,null,null,null,null,null,null,null,"59",null,null,null,null,null,null,null,null,null,null,null,null,null,null,null,null,null,null,null,null,null,null,null,null,null,null,null,58.933197800000002,58.934350199999997,58.939503899999998]
[19,null,null,null,null,null,null,null,null,0.86527202751660437,null,null,null,null,null,null,null,null,null,null,null,null,null,null,null,"60",null,null,null,null,null,null,null,null,null,null,null,null,null,null,null,null,null,null,null,null,null,null,null,null,null,null,null,59.9338202,59.930788999999997,59.937366400000002,59.941831000000001]
[null,null,null,null,null,null,null,null,null,null,null,null,null,null,null,null,null,null,null,null,null,null,null,null,null,"61",null,null,null,null,null,null,null,null,null,null,null,null,null,null,null,null,null,null,null,null,null,null,null,null,null,null,null,60.932477800000001,60.9310586,60.933461600000001,60.939259999999997]
[null,null,null,null,null,null,null,null,null,null,null,null,null,null,null,null,null,null,null,null,null,null,null,null,null,"62",null,null,null,null,null,null,null,null,null,null,null,null,null,null,null,null,null,null,null,null,null,null,null,null,null,null,null,null,61.928346400000002,61.932586000000001,61.934333000000002]
["intercept=b",null,null,null,null,null,null,null,null,null,null,null,null,null,null,null,null,null,null,null,null,null,null,null,null,"63",null,null,null,null,null,null,null,null,null,null,null,null,null,null,null,null,null,null,null,null,null,null,null,null,null,null,null,null,62.9296699,62.929599199999998,62.933214100000001]
[null,null,null,null,null,null,null,null,null,null,null,null,null,null,null,null,null,null,null,null,null,null,null,null,null,"64",null,null,null,null,null,null,null,null,null,null,null,null,null,null,null,null,null,null,null,null,null,null,null,null,null,null,null,null,63.927968,63.929766100000002,63.929145400000003,63.936836999999997,63.941569999999999]
[" ","z",null,null,null,null,null,null,null,null,null,null,null,null,null,null,null,null,null,null,null,null,null,null,null,"65",null,null,null,null,null,null,null,null,null,null,null,null,null,null,null,null,null,null,null,null,null,null,null,null,null,null,null,null,null,64.927792400000001,64.929243700000001,64.932738900000004,64.939440000000005]
["m",1,2,3,4,5,6,7,8,9,null,null,null,null,null,null,null,null,null,null,null,null,null,null,null,"66",null,null,null,null,null,null,null,null,null,null,null,null,null,null,null,null,null,null,null,null,null,null,null,null,null,null,null,null,null,65.928871000000001,65.926035200000001,65.931590799999995,65.933847]
[1,1.2833101815966044,null,null,null,null,null,null,null,null,null,null,null,null,null,null,null,null,null,null,null,null,null,null,null,"67",null,null,null,null,null,null,null,null,null,null,null,null,null,null,null,null,null,null,null,null,null,null,null,null,null,null,null,null,null,66.927745999999999,66.9271289,66.928203600000003,66.932959999999994]
[2,1.1103071378728733,null,null,null,null,null,null,null,null,null,null,null,null,null,null,null,null,null,null,null,null,null,null,null,"68",null,null,null,null,null,null,null,null,null,null,null,null,null,null,null,null,null,null,null,null,null,null,null,null,null,null,null,null,null,null,67.9248458,67.927981700000004,67.928104000000005]
[3,1.0484391462175604,0.49936832791053121,null,null,null,null,null,null,null,null,null,null,null,null,null,null,null,null,null,null,null,null,null,null,"69",null,null,null,null,null,null,null,null,null,null,null,null,null,null,null,null,null,null,null,null,null,null,null,null,null,null,null,null,null,null,68.926551900000007,68.9255809,68.927970000000002]
[4,null,0.43060856564791961,null,null,null,null,null,null,null,null,null,null,null,null,null,null,null,null,null,null,null,null,null,null,"70",null,null,null,null,null,null,null,null,null,null,null,null,null,null,null,null,null,null,null,null,null,null,null,null,null,null,null,null,null,null,69.925324900000007,69.9260278,69.924249799999998,69.930929000000006]
[5,null,null,null,null,null,null,null,null,null,null,null,null,null,null,null,null,null,null,null,null,null,null,null,null,"71",null,null,null,null,null,null,null,null,null,null,null,null,null,null,null,null,null,null,null,null,null,null,null,null,null,null,null,null,null,null,null,70.924700599999994,70.924953700000003,70.927114000000003]
[6,null,null,null,null,null,null,null,null,null,null,null,null,null,null,null,null,null,null,null,null,null,null,null,null,"72",null,null,null,null,null,null,null,null,null,null,null,null,null,null,null,null,null,null,null,null,null,null,null,null,null,null,null,null,null,null,null,71.926365099999998,71.922079999999994,71.926750999999996,71.927113000000006]
[7,null,null,0.23661270390043729,null,null,null,null,null,null,null,null,null,null,null,null,null,null,null,null,null,null,null,null,null,"73",null,null,null,null,null,null,null,null,null,null,null,null,null,null,null,null,null,null,null,null,null,null,null,null,null,null,null,null,null,null,null,72.925139999999999,72.923463900000002,72.923833999999999,72.926775000000006]
[8,null,null,null,null,null,null,null,null,null,null,null,null,null,null,null,null,null,null,null,null,null,null,null,null,"74",null,null,null,null,null,null,null,null,null,null,null,null,null,null,null,null,null,null,null,null,null,null,null,null,null,null,null,null,null,null,null,null,73.921178800000007,73.923929599999994,73.922477099999995,73.929902999999996]
[9,null,null,null,0.13862239005370564,null,null,null,null,null,null,null,null,null,null,null,null,null,null,null,null,null,null,null,null,"75",null,null,null,null,null,null,null,null,null,null,null,null,null,null,null,null,null,null,null,null,null,null,null,null,null,null,null,null,null,null,null,null,74.922859900000006,74.921595499999995,74.922523999999996,74.925754999999995]
[10,null,null,null,null,0.11418124598689067,null,null,null,null,null,null,null,null,null,null,null,null,null,null,null,null,null,null,null,"76",null,null,null,null,null,null,null,null,null,null,null,null,null,null,null,null,null,null,null,null,null,null,null,null,null,null,null,null,null,null,null,null,75.921402700000002,75.922393400000004,75.919206599999995,75.924526999999998,75.925820000000002]
[11,null,null,null,null,null,null,null,null,null,null,null,null,null,null,null,null,null,null,null,null,null,null,null,null,"77",null,null,null,null,null,null,null,null,null,null,null,null,null,null,null,null,null,null,null,null,null,null,null,null,null,null,null,null,null,null,null,null,null,76.920648799999995,76.919907699999996,76.921373000000003,76.924599000000001]
[12,null,null,null,null,null,5.5961469181884826E-2,null,null,null,null,null,null,null,null,null,null,null,null,null,null,null,null,null,null,"78",null,null,null,null,null,null,null,null,null,null,null,null,null,null,null,null,null,null,null,null,null,null,null,null,null,null,null,null,null,null,null,null,null,77.921909999999997,77.917304000000001,77.921141000000006,77.920396999999994,77.927980000000005]
[13,null,null,null,null,null,null,null,null,null,null,null,null,null,null,null,null,null,null,null,null,null,null,null,null,"79",null,null,null,null,null,null,null,null,null,null,null,null,null,null,null,null,null,null,null,null,null,null,null,null,null,null,null,null,null,null,null,null,null,78.920860000000005,78.918497000000002,78.918336100000005,78.920086999999995,78.923929999999999]
[14,null,null,null,null,null,null,3.6242071476753519E-2,null,null,null,null,null,null,null,null,null,null,null,null,null,null,null,null,null,"80",null,null,null,null,null,null,null,null,null,null,null,null,null,null,null,null,null,null,null,null,null,null,null,null,null,null,null,null,null,null,null,null,null,null,79.916520500000004,79.9185284,79.916375000000002,79.922501999999994,79.924430000000001]
[15,null,null,null,null,null,null,null,null,null,null,null,null,null,null,null,null,null,null,null,null,null,null,null,null,"81",null,null,null,null,null,null,null,null,null,null,null,null,null,null,null,null,null,null,null,null,null,null,null,null,null,null,null,null,null,null,null,null,null,null,80.917991000000001,80.916290000000004,80.916578000000001,80.919006999999993,80.923289999999994]
[16,null,null,null,null,null,null,null,-6.5437137776740576E-3,null,null,null,null,null,null,null,null,null,null,null,null,null,null,null,null,"82",null,null,null,null,null,null,null,null,null,null,null,null,null,null,null,null,null,null,null,null,null,null,null,null,null,null,null,null,null,null,null,null,null,null,81.916708999999997,81.916803000000002,81.913482999999999,81.918182999999999,81.918413000000001]
[17,null,null,null,null,null,null,null,null,null,null,null,null,null,null,null,null,null,null,null,null,null,null,null,null,"83",null,null,null,null,null,null,null,null,null,null,null,null,null,null,null,null,null,null,null,null,null,null,null,null,null,null,null,null,null,null,null,null,null,null,null,82.915164000000004,82.914134000000004,82.915205,82.917619999999999]
[18,null,null,null,null,null,null,null,null,null,null,null,null,null,null,null,null,null,null,null,null,null,null,null,null,"84",null,null,null,null,null,null,null,null,null,null,null,null,null,null,null,null,null,null,null,null,null,null,null,null,null,null,null,null,null,null,null,null,null,null,null,83.916522999999998,83.911506399999993,83.914383999999998,83.913427999999996,83.920889000000003]
[19,null,null,null,null,null,null,null,null,-9.9892517341248575E-3,null,null,null,null,null,null,null,null,null,null,null,null,null,null,null,"85",null,null,null,null,null,null,null,null,null,null,null,null,null,null,null,null,null,null,null,null,null,null,null,null,null,null,null,null,null,null,null,null,null,null,null,null,84.912537099999994,84.911799599999995,84.912942000000001,84.916442000000004]
[null,null,null,null,null,null,null,null,null,null,null,null,null,null,null,null,null,null,null,null,null,null,null,null,null,"86",null,null,null,null,null,null,null,null,null,null,null,null,null,null,null,null,null,null,null,null,null,null,null,null,null,null,null,null,null,null,null,null,null,null,null,null,85.910613999999995,85.911178100000001,85.909273200000001,85.914934000000002,85.916330000000002]
[null,null,null,null,null,null,null,null,null,null,null,null,null,null,null,null,null,null,null,null,null,null,null,null,null,"87",null,null,null,null,null,null,null,null,null,null,null,null,null,null,null,null,null,null,null,null,null,null,null,null,null,null,null,null,null,null,null,null,null,null,null,null,null,86.909183600000006,86.908890200000002,86.910888799999995,86.914730000000006]
[null,null,null,null,null,null,null,null,null,null,null,null,null,null,null,null,null,null,null,null,null,null,null,null,null,"88",null,null,null,null,null,null,null,null,null,null,null,null,null,null,null,null,null,null,null,null,null,null,null,null,null,null,null,null,null,null,null,null,null,null,null,null,null,87.911323999999993,87.905624900000007,87.909503000000001,87.910229999999999]
[null,null,null,null,null,null,null,null,null,null,null,null,null,null,null,null,null,null,null,null,null,null,null,null,null,"89",null,null,null,null,null,null,null,null,null,null,null,null,null,null,null,null,null,null,null,null,null,null,null,null,null,null,null,null,null,null,null,null,null,null,null,null,null,null,88.907458000000005,88.905856,88.908900299999999,88.913450999999995]
[null,null,null,null,null,null,null,null,null,null,null,null,null,null,null,null,null,null,null,null,null,null,null,null,null,"90",null,null,null,null,null,null,null,null,null,null,null,null,null,null,null,null,null,null,null,null,null,null,null,null,null,null,null,null,null,null,null,null,null,null,null,null,null,null,null,89.907159899999996,89.904707999999999,89.911268000000007]
[null,null,null,null,null,null,null,null,null,null,null,null,null,null,null,null,null,null,null,null,null,null,null,null,null,"91",null,null,null,null,null,null,null,null,null,null,null,null,null,null,null,null,null,null,null,null,null,null,null,null,null,null,null,null,null,null,null,null,null,null,null,null,null,null,null,90.907300699999993,90.905644199999998,90.906992000000002,90.911756999999994]
[null,null,null,null,null,null,null,null,null,null,null,null,null,null,null,null,null,null,null,null,null,null,null,null,null,"92",null,null,null,null,null,null,null,null,null,null,null,null,null,null,null,null,null,null,null,null,null,null,null,null,null,null,null,null,null,null,null,null,null,null,null,null,null,null,null,91.908940999999999,91.905039200000004,91.905039200000004,91.906808999999996,91.915260000000004]
[null,null,null,null,null,null,null,null,null,null,null,null,null,null,null,null,null,null,null,null,null,null,null,null,null,"97",null,null,null,null,null,null,null,null,null,null,null,null,null,null,null,null,null,null,null,null,null,null,null,null,null,null,null,null,null,null,null,null,null,null,null,null,null,null,null,92.909580000000005,92.906477100000004,92.906378000000004,92.906813999999997,92.910241999999997]
[null,null,null,null,null,null,null,null,null,null,null,null,null,null,null,null,null,null,null,null,null,null,null,null,null,"97",null,null,null,null,null,null,null,null,null,null,null,null,null,null,null,null,null,null,null,null,null,null,null,null,null,null,null,null,null,null,null,null,null,null,null,null,null,null,null,null,93.906319100000005,93.907281900000001,93.9050862,93.909655000000001,93.911356999999995]
[null,null,null,null,null,null,null,null,null,null,null,null,null,null,null,null,null,null,null,null,null,null,null,null,null,"97",null,null,null,null,null,null,null,null,null,null,null,null,null,null,null,null,null,null,null,null,null,null,null,null,null,null,null,null,null,null,null,null,null,null,null,null,null,null,null,null,94.908037300000004,94.906831600000004,94.905837899999995,94.907662000000002,94.910410999999996]
[null,null,null,null,null,null,null,null,null,null,null,null,null,null,null,null,null,null,null,null,null,null,null,null,null,"96",null,null,null,null,null,null,null,null,null,null,null,null,null,null,null,null,null,null,null,null,null,null,null,null,null,null,null,null,null,null,null,null,null,null,null,null,null,null,null,null,95.908271999999997,95.908096999999998,95.904675499999996,95.907867999999993,95.907595999999998,95.914511000000005]
[null,null,null,null,null,null,null,null,null,null,null,null,null,null,null,null,null,null,null,null,null,null,null,null,null,"97",null,null,null,null,null,null,null,null,null,null,null,null,null,null,null,null,null,null,null,null,null,null,null,null,null,null,null,null,null,null,null,null,null,null,null,null,null,null,null,null,null,96.908092999999994,96.906017899999995,96.906362000000001,96.907600000000002]
[null,null,null,null,null,null,null,null,null,null,null,null,null,null,null,null,null,null,null,null,null,null,null,null,null,"98",null,null,null,null,null,null,null,null,null,null,null,null,null,null,null,null,null,null,null,null,null,null,null,null,null,null,null,null,null,null,null,null,null,null,null,null,null,null,null,null,null,97.910326999999995,97.905405000000002,97.907211000000004,97.905287000000001,97.910715999999994,97.912760000000006]
[null,null,null,null,null,null,null,null,null,null,null,null,null,null,null,null,null,null,null,null,null,null,null,null,null,"99",null,null,null,null,null,null,null,null,null,null,null,null,null,null,null,null,null,null,null,null,null,null,null,null,null,null,null,null,null,null,null,null,null,null,null,null,null,null,null,null,null,null,98.907708700000001,98.906252199999997,98.905937100000003,98.908195000000006,98.911850000000001]
[null,null,null,null,null,null,null,null,null,null,null,null,null,null,null,null,null,null,null,null,null,null,null,null,null,"100",null,null,null,null,null,null,null,null,null,null,null,null,null,null,null,null,null,null,null,null,null,null,null,null,null,null,null,null,null,null,null,null,null,null,null,null,null,null,null,null,null,null,99.907472999999996,99.907655800000001,99.904217500000001,99.908113999999998,99.908501999999999]
[null,null,null,null,null,null,null,null,null,null,null,null,null,null,null,null,null,null,null,null,null,null,null,null,null,"101",null,null,null,null,null,null,null,null,null,null,null,null,null,null,null,null,null,null,null,null,null,null,null,null,null,null,null,null,null,null,null,null,null,null,null,null,null,null,null,null,null,null,null,100.907325,100.9055808,100.90616199999999,100.90828999999999]
[null,null,null,null,null,null,null,null,null,null,null,null,null,null,null,null,null,null,null,null,null,null,null,null,null,"102",null,null,null,null,null,null,null,null,null,null,null,null,null,null,null,null,null,null,null,null,null,null,null,null,null,null,null,null,null,null,null,null,null,null,null,null,null,null,null,null,null,null,null,101.90918000000001,101.9043475,101.906842,101.905609,101.91162]
[null,null,null,null,null,null,null,null,null,null,null,null,null,null,null,null,null,null,null,null,null,null,null,null,null,"103",null,null,null,null,null,null,null,null,null,null,null,null,null,null,null,null,null,null,null,null,null,null,null,null,null,null,null,null,null,null,null,null,null,null,null,null,null,null,null,null,null,null,null,null,102.9063218,102.905503,102.90608899999999,102.90897]
[null,null,null,null,null,null,null,null,null,null,null,null,null,null,null,null,null,null,null,null,null,null,null,null,null,"104",null,null,null,null,null,null,null,null,null,null,null,null,null,null,null,null,null,null,null,null,null,null,null,null,null,null,null,null,null,null,null,null,null,null,null,null,null,null,null,null,null,null,null,null,103.905422,103.90665300000001,103.904026,103.90858799999999,103.90998]
[null,null,null,null,null,null,null,null,null,null,null,null,null,null,null,null,null,null,null,null,null,null,null,null,null,"105",null,null,null,null,null,null,null,null,null,null,null,null,null,null,null,null,null,null,null,null,null,null,null,null,null,null,null,null,null,null,null,null,null,null,null,null,null,null,null,null,null,null,null,null,null,104.90568399999999,104.905075,104.906522,104.909462]
[null,null,null,null,null,null,null,null,null,null,null,null,null,null,null,null,null,null,null,null,null,null,null,null,null,"106",null,null,null,null,null,null,null,null,null,null,null,null,null,null,null,null,null,null,null,null,null,null,null,null,null,null,null,null,null,null,null,null,null,null,null,null,null,null,null,null,null,null,null,null,null,105.907276,105.903475,105.906678,105.90646099999999,105.913488]
[null,null,null,null,null,null,null,null,null,null,null,null,null,null,null,null,null,null,null,null,null,null,null,null,null,"107",null,null,null,null,null,null,null,null,null,null,null,null,null,null,null,null,null,null,null,null,null,null,null,null,null,null,null,null,null,null,null,null,null,null,null,null,null,null,null,null,null,null,null,null,null,106.90675,106.90513,106.905095,106.90616,106.91036]
[null,null,null,null,null,null,null,null,null,null,null,null,null,null,null,null,null,null,null,null,null,null,null,null,null,"108",null,null,null,null,null,null,null,null,null,null,null,null,null,null,null,null,null,null,null,null,null,null,null,null,null,null,null,null,null,null,null,null,null,null,null,null,null,null,null,null,null,null,null,null,null,null,107.90389399999999,107.905956,107.904186,107.90971,107.91208]
[null,null,null,null,null,null,null,null,null,null,null,null,null,null,null,null,null,null,null,null,null,null,null,null,null,"109",null,null,null,null,null,null,null,null,null,null,null,null,null,null,null,null,null,null,null,null,null,null,null,null,null,null,null,null,null,null,null,null,null,null,null,null,null,null,null,null,null,null,null,null,null,null,108.905952,108.904754,108.904949,108.907113,108.9113]
[null,null,null,null,null,null,null,null,null,null,null,null,null,null,null,null,null,null,null,null,null,null,null,null,null,"110",null,null,null,null,null,null,null,null,null,null,null,null,null,null,null,null,null,null,null,null,null,null,null,null,null,null,null,null,null,null,null,null,null,null,null,null,null,null,null,null,null,null,null,null,null,null,109.905169,109.906113,109.903007,109.90723699999999,109.907854]
[null,null,null,null,null,null,null,null,null,null,null,null,null,null,null,null,null,null,null,null,null,null,null,null,null,"111",null,null,null,null,null,null,null,null,null,null,null,null,null,null,null,null,null,null,null,null,null,null,null,null,null,null,null,null,null,null,null,null,null,null,null,null,null,null,null,null,null,null,null,null,null,null,null,110.905286,110.90418200000001,110.90509400000001,110.90774]
[null,null,null,null,null,null,null,null,null,null,null,null,null,null,null,null,null,null,null,null,null,null,null,null,null,"112",null,null,null,null,null,null,null,null,null,null,null,null,null,null,null,null,null,null,null,null,null,null,null,null,null,null,null,null,null,null,null,null,null,null,null,null,null,null,null,null,null,null,null,null,null,null,null,111.907011,111.9027614,111.905529,111.90482299999999,111.91255,111.91674999999999]
[null,null,null,null,null,null,null,null,null,null,null,null,null,null,null,null,null,null,null,null,null,null,null,null,null,"113",null,null,null,null,null,null,null,null,null,null,null,null,null,null,null,null,null,null,null,null,null,null,null,null,null,null,null,null,null,null,null,null,null,null,null,null,null,null,null,null,null,null,null,null,null,null,null,112.906559,112.9044013,112.904056,112.90517199999999,112.90934799999999,112.91567999999999]
[null,null,null,null,null,null,null,null,null,null,null,null,null,null,null,null,null,null,null,null,null,null,null,null,null,"114",null,null,null,null,null,null,null,null,null,null,null,null,null,null,null,null,null,null,null,null,null,null,null,null,null,null,null,null,null,null,null,null,null,null,null,null,null,null,null,null,null,null,null,null,null,null,null,null,113.90336069999999,113.904911,113.902781,113.90889,113.91177]
[null,null,null,null,null,null,null,null,null,null,null,null,null,null,null,null,null,null,null,null,null,null,null,null,null,"115",null,null,null,null,null,null,null,null,null,null,null,null,null,null,null,null,null,null,null,null,null,null,null,null,null,null,null,null,null,null,null,null,null,null,null,null,null,null,null,null,null,null,null,null,null,null,null,null,114.905429,114.903875,114.9033441,114.906597,114.91152]
[null,null,null,null,null,null,null,null,null,null,null,null,null,null,null,null,null,null,null,null,null,null,null,null,null,"116",null,null,null,null,null,null,null,null,null,null,null,null,null,null,null,null,null,null,null,null,null,null,null,null,null,null,null,null,null,null,null,null,null,null,null,null,null,null,null,null,null,null,null,null,null,null,null,null,115.904758,115.90525700000001,115.90174349999999,115.90667999999999,115.90836]
[null,null,null,null,null,null,null,null,null,null,null,null,null,null,null,null,null,null,null,null,null,null,null,null,null,"117",null,null,null,null,null,null,null,null,null,null,null,null,null,null,null,null,null,null,null,null,null,null,null,null,null,null,null,null,null,null,null,null,null,null,null,null,null,null,null,null,null,null,null,null,null,null,null,null,null,116.904515,116.9029536,116.904827,116.908573]
[null,null,null,null,null,null,null,null,null,null,null,null,null,null,null,null,null,null,null,null,null,null,null,null,null,"118",null,null,null,null,null,null,null,null,null,null,null,null,null,null,null,null,null,null,null,null,null,null,null,null,null,null,null,null,null,null,null,null,null,null,null,null,null,null,null,null,null,null,null,null,null,null,null,null,null,117.90612,117.90160659999999,117.905564,117.90588200000001]
[null,null,null,null,null,null,null,null,null,null,null,null,null,null,null,null,null,null,null,null,null,null,null,null,null,"119",null,null,null,null,null,null,null,null,null,null,null,null,null,null,null,null,null,null,null,null,null,null,null,null,null,null,null,null,null,null,null,null,null,null,null,null,null,null,null,null,null,null,null,null,null,null,null,null,null,118.90581899999999,118.90331020000001,118.903937,118.9064]
[null,null,null,null,null,null,null,null,null,null,null,null,null,null,null,null,null,null,null,null,null,null,null,null,null,"120",null,null,null,null,null,null,null,null,null,null,null,null,null,null,null,null,null,null,null,null,null,null,null,null,null,null,null,null,null,null,null,null,null,null,null,null,null,null,null,null,null,null,null,null,null,null,null,null,null,119.908,119.902199,119.90507700000001,119.904021,119.90982]
[null,null,null,null,null,null,null,null,null,null,null,null,null,null,null,null,null,null,null,null,null,null,null,null,null,"121",null,null,null,null,null,null,null,null,null,null,null,null,null,null,null,null,null,null,null,null,null,null,null,null,null,null,null,null,null,null,null,null,null,null,null,null,null,null,null,null,null,null,null,null,null,null,null,null,null,120.90784499999999,120.90423869999999,120.9038237,120.904983,120.90752999999999]
[null,null,null,null,null,null,null,null,null,null,null,null,null,null,null,null,null,null,null,null,null,null,null,null,null,"122",null,null,null,null,null,null,null,null,null,null,null,null,null,null,null,null,null,null,null,null,null,null,null,null,null,null,null,null,null,null,null,null,null,null,null,null,null,null,null,null,null,null,null,null,null,null,null,null,null,null,121.90344,121.90518179999999,121.90305499999999,121.9075,121.90857]
[null,null,null,null,null,null,null,null,null,null,null,null,null,null,null,null,null,null,null,null,null,null,null,null,null,"123",null,null,null,null,null,null,null,null,null,null,null,null,null,null,null,null,null,null,null,null,null,null,null,null,null,null,null,null,null,null,null,null,null,null,null,null,null,null,null,null,null,null,null,null,null,null,null,null,null,null,122.905721,122.904222,122.90427800000001,122.90557,122.90844]
[null,null,null,null,null,null,null,null,null,null,null,null,null,null,null,null,null,null,null,null,null,null,null,null,null,"124",null,null,null,null,null,null,null,null,null,null,null,null,null,null,null,null,null,null,null,null,null,null,null,null,null,null,null,null,null,null,null,null,null,null,null,null,null,null,null,null,null,null,null,null,null,null,null,null,null,null,123.905271,123.90594400000001,123.90282500000001,123.906215,123.90612,123.91248]
[null,null,null,null,null,null,null,null,null,null,null,null,null,null,null,null,null,null,null,null,null,null,null,null,null,"125",null,null,null,null,null,null,null,null,null,null,null,null,null,null,null,null,null,null,null,null,null,null,null,null,null,null,null,null,null,null,null,null,null,null,null,null,null,null,null,null,null,null,null,null,null,null,null,null,null,null,null,124.905259,124.90443500000001,124.90462599999999,124.90649000000001,124.90978]
[null,null,null,null,null,null,null,null,null,null,null,null,null,null,null,null,null,null,null,null,null,null,null,null,null,"126",null,null,null,null,null,null,null,null,null,null,null,null,null,null,null,null,null,null,null,null,null,null,null,null,null,null,null,null,null,null,null,null,null,null,null,null,null,null,null,null,null,null,null,null,null,null,null,null,null,null,null,125.907245,125.90331,125.905624,125.905624,125.90947,125.91137000000001]
[null,null,null,null,null,null,null,null,null,null,null,null,null,null,null,null,null,null,null,null,null,null,null,null,null,"127",null,null,null,null,null,null,null,null,null,null,null,null,null,null,null,null,null,null,null,null,null,null,null,null,null,null,null,null,null,null,null,null,null,null,null,null,null,null,null,null,null,null,null,null,null,null,null,null,null,null,null,126.90692,126.90522199999999,126.904477,126.90519,126.907455,126.91116]
[null,null,null,null,null,null,null,null,null,null,null,null,null,null,null,null,null,null,null,null,null,null,null,null,null,"128",null,null,null,null,null,null,null,null,null,null,null,null,null,null,null,null,null,null,null,null,null,null,null,null,null,null,null,null,null,null,null,null,null,null,null,null,null,null,null,null,null,null,null,null,null,null,null,null,null,null,null,null,127.904464,127.905815,127.9035308,127.907746,127.908232]
[null,null,null,null,null,null,null,null,null,null,null,null,null,null,null,null,null,null,null,null,null,null,null,null,null,"129",null,null,null,null,null,null,null,null,null,null,null,null,null,null,null,null,null,null,null,null,null,null,null,null,null,null,null,null,null,null,null,null,null,null,null,null,null,null,null,null,null,null,null,null,null,null,null,null,null,null,null,null,128.90659500000001,128.90498600000001,128.90478010000001,128.90599800000001,128.908624]
[null,null,null,null,null,null,null,null,null,null,null,null,null,null,null,null,null,null,null,null,null,null,null,null,null,"130",null,null,null,null,null,null,null,null,null,null,null,null,null,null,null,null,null,null,null,null,null,null,null,null,null,null,null,null,null,null,null,null,null,null,null,null,null,null,null,null,null,null,null,null,null,null,null,null,null,null,null,null,129.906229,129.906713,129.90350950000001,129.90674999999999,129.90627699999999,129.91239999999999]
[null,null,null,null,null,null,null,null,null,null,null,null,null,null,null,null,null,null,null,null,null,null,null,null,null,"131",null,null,null,null,null,null,null,null,null,null,null,null,null,null,null,null,null,null,null,null,null,null,null,null,null,null,null,null,null,null,null,null,null,null,null,null,null,null,null,null,null,null,null,null,null,null,null,null,null,null,null,null,null,130.90611899999999,130.90507600000001,130.90545700000001,130.90689699999999,130.91006999999999,130.91469000000001]
[null,null,null,null,null,null,null,null,null,null,null,null,null,null,null,null,null,null,null,null,null,null,null,null,null,"132",null,null,null,null,null,null,null,null,null,null,null,null,null,null,null,null,null,null,null,null,null,null,null,null,null,null,null,null,null,null,null,null,null,null,null,null,null,null,null,null,null,null,null,null,null,null,null,null,null,null,null,null,null,131.90799200000001,131.90414799999999,131.90641500000001,131.90504200000001,131.9101,131.91159999999999]
[null,null,null,null,null,null,null,null,null,null,null,null,null,null,null,null,null,null,null,null,null,null,null,null,null,"133",null,null,null,null,null,null,null,null,null,null,null,null,null,null,null,null,null,null,null,null,null,null,null,null,null,null,null,null,null,null,null,null,null,null,null,null,null,null,null,null,null,null,null,null,null,null,null,null,null,null,null,null,null,132.907781,132.90589199999999,132.90543299999999,132.905992,132.90814,132.91179]
[null,null,null,null,null,null,null,null,null,null,null,null,null,null,null,null,null,null,null,null,null,null,null,null,null,"134",null,null,null,null,null,null,null,null,null,null,null,null,null,null,null,null,null,null,null,null,null,null,null,null,null,null,null,null,null,null,null,null,null,null,null,null,null,null,null,null,null,null,null,null,null,null,null,null,null,null,null,null,null,null,133.905395,133.9067,133.90449000000001,133.90846199999999,133.90899999999999]
[null,null,null,null,null,null,null,null,null,null,null,null,null,null,null,null,null,null,null,null,null,null,null,null,null,"135",null,null,null,null,null,null,null,null,null,null,null,null,null,null,null,null,null,null,null,null,null,null,null,null,null,null,null,null,null,null,null,null,null,null,null,null,null,null,null,null,null,null,null,null,null,null,null,null,null,null,null,null,null,null,134.90713199999999,134.905888,134.90566799999999,134.90695600000001,134.90923000000001]
[null,null,null,null,null,null,null,null,null,null,null,null,null,null,null,null,null,null,null,null,null,null,null,null,null,"136",null,null,null,null,null,null,null,null,null,null,null,null,null,null,null,null,null,null,null,null,null,null,null,null,null,null,null,null,null,null,null,null,null,null,null,null,null,null,null,null,null,null,null,null,null,null,null,null,null,null,null,null,null,null,135.907219,135.90729200000001,135.90455600000001,135.90763999999999,135.90714,135.91261,135.91498999999999]
[null,null,null,null,null,null,null,null,null,null,null,null,null,null,null,null,null,null,null,null,null,null,null,null,null,"137",null,null,null,null,null,null,null,null,null,null,null,null,null,null,null,null,null,null,null,null,null,null,null,null,null,null,null,null,null,null,null,null,null,null,null,null,null,null,null,null,null,null,null,null,null,null,null,null,null,null,null,null,null,null,null,136.90707499999999,136.90581599999999,136.90646000000001,136.90777,136.91067000000001,136.91475]
[null,null,null,null,null,null,null,null,null,null,null,null,null,null,null,null,null,null,null,null,null,null,null,null,null,"138",null,null,null,null,null,null,null,null,null,null,null,null,null,null,null,null,null,null,null,null,null,null,null,null,null,null,null,null,null,null,null,null,null,null,null,null,null,null,null,null,null,null,null,null,null,null,null,null,null,null,null,null,null,null,null,137.91113999999999,137.905236,137.90711400000001,137.90599599999999,137.91075900000001,137.91193999999999]
[null,null,null,null,null,null,null,null,null,null,null,null,null,null,null,null,null,null,null,null,null,null,null,null,null,"139",null,null,null,null,null,null,null,null,null,null,null,null,null,null,null,null,null,null,null,null,null,null,null,null,null,null,null,null,null,null,null,null,null,null,null,null,null,null,null,null,null,null,null,null,null,null,null,null,null,null,null,null,null,null,null,null,null,138.90635499999999,138.90663900000001,138.908907,138.91191000000001]
[null,null,null,null,null,null,null,null,null,null,null,null,null,null,null,null,null,null,null,null,null,null,null,null,null,"140",null,null,null,null,null,null,null,null,null,null,null,null,null,null,null,null,null,null,null,null,null,null,null,null,null,null,null,null,null,null,null,null,null,null,null,null,null,null,null,null,null,null,null,null,null,null,null,null,null,null,null,null,null,null,null,null,null,139.909479,139.90544199999999,139.90907899999999,139.90958000000001]
[null,null,null,null,null,null,null,null,null,null,null,null,null,null,null,null,null,null,null,null,null,null,null,null,null,"141",null,null,null,null,null,null,null,null,null,null,null,null,null,null,null,null,null,null,null,null,null,null,null,null,null,null,null,null,null,null,null,null,null,null,null,null,null,null,null,null,null,null,null,null,null,null,null,null,null,null,null,null,null,null,null,null,null,null,140.90827899999999,140.907657,140.909605,140.91361000000001]
[null,null,null,null,null,null,null,null,null,null,null,null,null,null,null,null,null,null,null,null,null,null,null,null,null,"142",null,null,null,null,null,null,null,null,null,null,null,null,null,null,null,null,null,null,null,null,null,null,null,null,null,null,null,null,null,null,null,null,null,null,null,null,null,null,null,null,null,null,null,null,null,null,null,null,null,null,null,null,null,null,null,null,null,null,141.90924899999999,141.91004799999999,141.90773100000001,141.91298]
[null,null,null,null,null,null,null,null,null,null,null,null,null,null,null,null,null,null,null,null,null,null,null,null,null,"143",null,null,null,null,null,null,null,null,null,null,null,null,null,null,null,null,null,null,null,null,null,null,null,null,null,null,null,null,null,null,null,null,null,null,null,null,null,null,null,null,null,null,null,null,null,null,null,null,null,null,null,null,null,null,null,null,null,null,null,142.91082700000001,142.90982299999999,142.91094100000001,142.91464199999999]
[null,null,null,null,null,null,null,null,null,null,null,null,null,null,null,null,null,null,null,null,null,null,null,null,null,"144",null,null,null,null,null,null,null,null,null,null,null,null,null,null,null,null,null,null,null,null,null,null,null,null,null,null,null,null,null,null,null,null,null,null,null,null,null,null,null,null,null,null,null,null,null,null,null,null,null,null,null,null,null,null,null,null,null,null,null,143.91331199999999,143.91009600000001,143.91259700000001,143.91200900000001,143.918802]
[null,null,null,null,null,null,null,null,null,null,null,null,null,null,null,null,null,null,null,null,null,null,null,null,null,"145",null,null,null,null,null,null,null,null,null,null,null,null,null,null,null,null,null,null,null,null,null,null,null,null,null,null,null,null,null,null,null,null,null,null,null,null,null,null,null,null,null,null,null,null,null,null,null,null,null,null,null,null,null,null,null,null,null,null,null,144.91452000000001,144.91258199999999,144.91275400000001,144.91341299999999,144.91633300000001]
[null,null,null,null,null,null,null,null,null,null,null,null,null,null,null,null,null,null,null,null,null,null,null,null,null,"146",null,null,null,null,null,null,null,null,null,null,null,null,null,null,null,null,null,null,null,null,null,null,null,null,null,null,null,null,null,null,null,null,null,null,null,null,null,null,null,null,null,null,null,null,null,null,null,null,null,null,null,null,null,null,null,null,null,null,null,145.91750999999999,145.91312600000001,145.914717,145.913061,145.91721899999999,145.91851]
[null,null,null,null,null,null,null,null,null,null,null,null,null,null,null,null,null,null,null,null,null,null,null,null,null,"147",null,null,null,null,null,null,null,null,null,null,null,null,null,null,null,null,null,null,null,null,null,null,null,null,null,null,null,null,null,null,null,null,null,null,null,null,null,null,null,null,null,null,null,null,null,null,null,null,null,null,null,null,null,null,null,null,null,null,null,146.91900999999999,146.91611,146.91514799999999,146.914907,146.916764,146.919263]
[null,null,null,null,null,null,null,null,null,null,null,null,null,null,null,null,null,null,null,null,null,null,null,null,null,"148",null,null,null,null,null,null,null,null,null,null,null,null,null,null,null,null,null,null,null,null,null,null,null,null,null,null,null,null,null,null,null,null,null,null,null,null,null,null,null,null,null,null,null,null,null,null,null,null,null,null,null,null,null,null,null,null,null,null,null,null,147.916901,147.91747699999999,147.91483199999999,147.918159,147.91812400000001]
[null,null,null,null,null,null,null,null,null,null,null,null,null,null,null,null,null,null,null,null,null,null,null,null,null,"149",null,null,null,null,null,null,null,null,null,null,null,null,null,null,null,null,null,null,null,null,null,null,null,null,null,null,null,null,null,null,null,null,null,null,null,null,null,null,null,null,null,null,null,null,null,null,null,null,null,null,null,null,null,null,null,null,null,null,null,null,148.92015699999999,148.91834299999999,148.917193,148.91793999999999,148.919344]
[null,null,null,null,null,null,null,null,null,null,null,null,null,null,null,null,null,null,null,null,null,null,null,null,null,"150",null,null,null,null,null,null,null,null,null,null,null,null,null,null,null,null,null,null,null,null,null,null,null,null,null,null,null,null,null,null,null,null,null,null,null,null,null,null,null,null,null,null,null,null,null,null,null,null,null,null,null,null,null,null,null,null,null,null,null,null,149.92089999999999,149.92104,149.91728499999999,149.919747,149.91866300000001]
[null,null,null,null,null,null,null,null,null,null,null,null,null,null,null,null,null,null,null,null,null,null,null,null,null,"151",null,null,null,null,null,null,null,null,null,null,null,null,null,null,null,null,null,null,null,null,null,null,null,null,null,null,null,null,null,null,null,null,null,null,null,null,null,null,null,null,null,null,null,null,null,null,null,null,null,null,null,null,null,null,null,null,null,null,null,null,null,150.92121700000001,150.91994199999999,150.91986,150.920378]
[null,null,null,null,null,null,null,null,null,null,null,null,null,null,null,null,null,null,null,null,null,null,null,null,null,"152",null,null,null,null,null,null,null,null,null,null,null,null,null,null,null,null,null,null,null,null,null,null,null,null,null,null,null,null,null,null,null,null,null,null,null,null,null,null,null,null,null,null,null,null,null,null,null,null,null,null,null,null,null,null,null,null,null,null,null,null,null,151.92347000000001,151.91974099999999,151.92175599999999,151.919803,151.923936]
[null,null,null,null,null,null,null,null,null,null,null,null,null,null,null,null,null,null,null,null,null,null,null,null,null,"153",null,null,null,null,null,null,null,null,null,null,null,null,null,null,null,null,null,null,null,null,null,null,null,null,null,null,null,null,null,null,null,null,null,null,null,null,null,null,null,null,null,null,null,null,null,null,null,null,null,null,null,null,null,null,null,null,null,null,null,null,null,null,152.92210700000001,152.921243,152.921505,152.92342600000001]
[null,null,null,null,null,null,null,null,null,null,null,null,null,null,null,null,null,null,null,null,null,null,null,null,null,"154",null,null,null,null,null,null,null,null,null,null,null,null,null,null,null,null,null,null,null,null,null,null,null,null,null,null,null,null,null,null,null,null,null,null,null,null,null,null,null,null,null,null,null,null,null,null,null,null,null,null,null,null,null,null,null,null,null,null,null,null,null,null,153.92221799999999,153.922999,153.92087599999999,153.92458999999999,153.924432]
[null,null,null,null,null,null,null,null,null,null,null,null,null,null,null,null,null,null,null,null,null,null,null,null,null,"155",null,null,null,null,null,null,null,null,null,null,null,null,null,null,null,null,null,null,null,null,null,null,null,null,null,null,null,null,null,null,null,null,null,null,null,null,null,null,null,null,null,null,null,null,null,null,null,null,null,null,null,null,null,null,null,null,null,null,null,null,null,null,null,154.92289299999999,154.922629,154.92350400000001,154.925758]
[null,null,null,null,null,null,null,null,null,null,null,null,null,null,null,null,null,null,null,null,null,null,null,null,null,"156",null,null,null,null,null,null,null,null,null,null,null,null,null,null,null,null,null,null,null,null,null,null,null,null,null,null,null,null,null,null,null,null,null,null,null,null,null,null,null,null,null,null,null,null,null,null,null,null,null,null,null,null,null,null,null,null,null,null,null,null,null,null,null,155.92476400000001,155.92213000000001,155.924747,155.92428699999999,155.92975999999999]
[null,null,null,null,null,null,null,null,null,null,null,null,null,null,null,null,null,null,null,null,null,null,null,null,null,"157",null,null,null,null,null,null,null,null,null,null,null,null,null,null,null,null,null,null,null,null,null,null,null,null,null,null,null,null,null,null,null,null,null,null,null,null,null,null,null,null,null,null,null,null,null,null,null,null,null,null,null,null,null,null,null,null,null,null,null,null,null,null,null,156.92542700000001,156.923967,156.92402899999999,156.92546999999999,156.9282,156.93227999999999]
[null,null,null,null,null,null,null,null,null,null,null,null,null,null,null,null,null,null,null,null,null,null,null,null,null,"158",null,null,null,null,null,null,null,null,null,null,null,null,null,null,null,null,null,null,null,null,null,null,null,null,null,null,null,null,null,null,null,null,null,null,null,null,null,null,null,null,null,null,null,null,null,null,null,null,null,null,null,null,null,null,null,null,null,null,null,null,null,null,null,null,157.92411100000001,157.92541600000001,157.92441199999999,157.92868200000001,157.93018000000001]
[null,null,null,null,null,null,null,null,null,null,null,null,null,null,null,null,null,null,null,null,null,null,null,null,null,"159",null,null,null,null,null,null,null,null,null,null,null,null,null,null,null,null,null,null,null,null,null,null,null,null,null,null,null,null,null,null,null,null,null,null,null,null,null,null,null,null,null,null,null,null,null,null,null,null,null,null,null,null,null,null,null,null,null,null,null,null,null,null,null,null,158.92639700000001,158.92535000000001,158.92574300000001,158.92773199999999,158.93088]
[null,null,null,null,null,null,null,null,null,null,null,null,null,null,null,null,null,null,null,null,null,null,null,null,null,"160",null,null,null,null,null,null,null,null,null,null,null,null,null,null,null,null,null,null,null,null,null,null,null,null,null,null,null,null,null,null,null,null,null,null,null,null,null,null,null,null,null,null,null,null,null,null,null,null,null,null,null,null,null,null,null,null,null,null,null,null,null,null,null,null,159.92706100000001,159.92717099999999,159.92520300000001,159.928731,159.929091]
[null,null,null,null,null,null,null,null,null,null,null,null,null,null,null,null,null,null,null,null,null,null,null,null,null,"161",null,null,null,null,null,null,null,null,null,null,null,null,null,null,null,null,null,null,null,null,null,null,null,null,null,null,null,null,null,null,null,null,null,null,null,null,null,null,null,null,null,null,null,null,null,null,null,null,null,null,null,null,null,null,null,null,null,null,null,null,null,null,null,null,null,160.927573,160.926939,160.92785499999999,160.93000900000001]
[null,null,null,null,null,null,null,null,null,null,null,null,null,null,null,null,null,null,null,null,null,null,null,null,null,"162",null,null,null,null,null,null,null,null,null,null,null,null,null,null,null,null,null,null,null,null,null,null,null,null,null,null,null,null,null,null,null,null,null,null,null,null,null,null,null,null,null,null,null,null,null,null,null,null,null,null,null,null,null,null,null,null,null,null,null,null,null,null,null,null,null,161.92939999999999,161.926805,161.92909700000001,161.928787,161.93393]
[null,null,null,null,null,null,null,null,null,null,null,null,null,null,null,null,null,null,null,null,null,null,null,null,null,"163",null,null,null,null,null,null,null,null,null,null,null,null,null,null,null,null,null,null,null,null,null,null,null,null,null,null,null,null,null,null,null,null,null,null,null,null,null,null,null,null,null,null,null,null,null,null,null,null,null,null,null,null,null,null,null,null,null,null,null,null,null,null,null,null,null,null,162.92873700000001,162.92873900000001,162.93003999999999]
[null,null,null,null,null,null,null,null,null,null,null,null,null,null,null,null,null,null,null,null,null,null,null,null,null,"164",null,null,null,null,null,null,null,null,null,null,null,null,null,null,null,null,null,null,null,null,null,null,null,null,null,null,null,null,null,null,null,null,null,null,null,null,null,null,null,null,null,null,null,null,null,null,null,null,null,null,null,null,null,null,null,null,null,null,null,null,null,null,null,null,null,null,163.92918299999999,163.93028699999999,163.92921100000001,163.93346500000001,163.93465]
[null,null,null,null,null,null,null,null,null,null,null,null,null,null,null,null,null,null,null,null,null,null,null,null,null,"165",null,null,null,null,null,null,null,null,null,null,null,null,null,null,null,null,null,null,null,null,null,null,null,null,null,null,null,null,null,null,null,null,null,null,null,null,null,null,null,null,null,null,null,null,null,null,null,null,null,null,null,null,null,null,null,null,null,null,null,null,null,null,null,null,null,null,null,164.93033199999999,164.93073699999999,164.93244899999999,164.93541500000001]
[null,null,null,null,null,null,null,null,null,null,null,null,null,null,null,null,null,null,null,null,null,null,null,null,null,"166",null,null,null,null,null,null,null,null,null,null,null,null,null,null,null,null,null,null,null,null,null,null,null,null,null,null,null,null,null,null,null,null,null,null,null,null,null,null,null,null,null,null,null,null,null,null,null,null,null,null,null,null,null,null,null,null,null,null,null,null,null,null,null,null,null,null,null,165.93229600000001,165.930305,165.93357599999999,165.93388899999999]
[null,null,null,null,null,null,null,null,null,null,null,null,null,null,null,null,null,null,null,null,null,null,null,null,null,"167",null,null,null,null,null,null,null,null,null,null,null,null,null,null,null,null,null,null,null,null,null,null,null,null,null,null,null,null,null,null,null,null,null,null,null,null,null,null,null,null,null,null,null,null,null,null,null,null,null,null,null,null,null,null,null,null,null,null,null,null,null,null,null,null,null,null,null,166.93310199999999,166.932061,166.93286499999999,166.93496200000001]
[null,null,null,null,null,null,null,null,null,null,null,null,null,null,null,null,null,null,null,null,null,null,null,null,null,"168",null,null,null,null,null,null,null,null,null,null,null,null,null,null,null,null,null,null,null,null,null,null,null,null,null,null,null,null,null,null,null,null,null,null,null,null,null,null,null,null,null,null,null,null,null,null,null,null,null,null,null,null,null,null,null,null,null,null,null,null,null,null,null,null,null,null,null,null,167.93238299999999,167.93418600000001,167.933908,167.93870999999999]
[null,null,null,null,null,null,null,null,null,null,null,null,null,null,null,null,null,null,null,null,null,null,null,null,null,"169",null,null,null,null,null,null,null,null,null,null,null,null,null,null,null,null,null,null,null,null,null,null,null,null,null,null,null,null,null,null,null,null,null,null,null,null,null,null,null,null,null,null,null,null,null,null,null,null,null,null,null,null,null,null,null,null,null,null,null,null,null,null,null,null,null,null,null,null,168.93460300000001,168.934225,168.93520100000001,168.93786299999999]
[null,null,null,null,null,null,null,null,null,null,null,null,null,null,null,null,null,null,null,null,null,null,null,null,null,"170",null,null,null,null,null,null,null,null,null,null,null,null,null,null,null,null,null,null,null,null,null,null,null,null,null,null,null,null,null,null,null,null,null,null,null,null,null,null,null,null,null,null,null,null,null,null,null,null,null,null,null,null,null,null,null,null,null,null,null,null,null,null,null,null,null,null,null,null,169.93547599999999,169.935813,169.934774,169.93846600000001,169.93975]
[null,null,null,null,null,null,null,null,null,null,null,null,null,null,null,null,null,null,null,null,null,null,null,null,null,"171",null,null,null,null,null,null,null,null,null,null,null,null,null,null,null,null,null,null,null,null,null,null,null,null,null,null,null,null,null,null,null,null,null,null,null,null,null,null,null,null,null,null,null,null,null,null,null,null,null,null,null,null,null,null,null,null,null,null,null,null,null,null,null,null,null,null,null,null,null,170.936442,170.93633800000001,170.937927,170.94063]
[null,null,null,null,null,null,null,null,null,null,null,null,null,null,null,null,null,null,null,null,null,null,null,null,null,"172",null,null,null,null,null,null,null,null,null,null,null,null,null,null,null,null,null,null,null,null,null,null,null,null,null,null,null,null,null,null,null,null,null,null,null,null,null,null,null,null,null,null,null,null,null,null,null,null,null,null,null,null,null,null,null,null,null,null,null,null,null,null,null,null,null,null,null,null,null,171.9384,171.93639300000001,171.93910299999999,171.93952999999999]
[null,null,null,null,null,null,null,null,null,null,null,null,null,null,null,null,null,null,null,null,null,null,null,null,null,"173",null,null,null,null,null,null,null,null,null,null,null,null,null,null,null,null,null,null,null,null,null,null,null,null,null,null,null,null,null,null,null,null,null,null,null,null,null,null,null,null,null,null,null,null,null,null,null,null,null,null,null,null,null,null,null,null,null,null,null,null,null,null,null,null,null,null,null,null,null,172.939639,172.939639,172.93894700000001,172.94066000000001]
[null,null,null,null,null,null,null,null,null,null,null,null,null,null,null,null,null,null,null,null,null,null,null,null,null,"174",null,null,null,null,null,null,null,null,null,null,null,null,null,null,null,null,null,null,null,null,null,null,null,null,null,null,null,null,null,null,null,null,null,null,null,null,null,null,null,null,null,null,null,null,null,null,null,null,null,null,null,null,null,null,null,null,null,null,null,null,null,null,null,null,null,null,null,null,null,null,173.938873,173.94035299999999,173.940065,173.94418999999999]
[null,null,null,null,null,null,null,null,null,null,null,null,null,null,null,null,null,null,null,null,null,null,null,null,null,"175",null,null,null,null,null,null,null,null,null,null,null,null,null,null,null,null,null,null,null,null,null,null,null,null,null,null,null,null,null,null,null,null,null,null,null,null,null,null,null,null,null,null,null,null,null,null,null,null,null,null,null,null,null,null,null,null,null,null,null,null,null,null,null,null,null,null,null,null,null,null,174.94128699999999,174.94078500000001,174.941441]
[null,null,null,null,null,null,null,null,null,null,null,null,null,null,null,null,null,null,null,null,null,null,null,null,null,"176",null,null,null,null,null,null,null,null,null,null,null,null,null,null,null,null,null,null,null,null,null,null,null,null,null,null,null,null,null,null,null,null,null,null,null,null,null,null,null,null,null,null,null,null,null,null,null,null,null,null,null,null,null,null,null,null,null,null,null,null,null,null,null,null,null,null,null,null,null,null,175.942576,175.94269399999999,175.94141999999999,175.94475,175.94570999999999]
[null,null,null,null,null,null,null,null,null,null,null,null,null,null,null,null,null,null,null,null,null,null,null,null,null,"177",null,null,null,null,null,null,null,null,null,null,null,null,null,null,null,null,null,null,null,null,null,null,null,null,null,null,null,null,null,null,null,null,null,null,null,null,null,null,null,null,null,null,null,null,null,null,null,null,null,null,null,null,null,null,null,null,null,null,null,null,null,null,null,null,null,null,null,null,null,null,null,176.94376600000001,176.94323299999999,176.94447600000001,176.94662]
[null,null,null,null,null,null,null,null,null,null,null,null,null,null,null,null,null,null,null,null,null,null,null,null,null,"178",null,null,null,null,null,null,null,null,null,null,null,null,null,null,null,null,null,null,null,null,null,null,null,null,null,null,null,null,null,null,null,null,null,null,null,null,null,null,null,null,null,null,null,null,null,null,null,null,null,null,null,null,null,null,null,null,null,null,null,null,null,null,null,null,null,null,null,null,null,null,null,177.946,177.94371000000001,177.94576000000001,177.94586000000001]
[null,null,null,null,null,null,null,null,null,null,null,null,null,null,null,null,null,null,null,null,null,null,null,null,null,"179",null,null,null,null,null,null,null,null,null,null,null,null,null,null,null,null,null,null,null,null,null,null,null,null,null,null,null,null,null,null,null,null,null,null,null,null,null,null,null,null,null,null,null,null,null,null,null,null,null,null,null,null,null,null,null,null,null,null,null,null,null,null,null,null,null,null,null,null,null,null,null,null,178.94582700000001,178.94595100000001,178.947093]
[null,null,null,null,null,null,null,null,null,null,null,null,null,null,null,null,null,null,null,null,null,null,null,null,null,"180",null,null,null,null,null,null,null,null,null,null,null,null,null,null,null,null,null,null,null,null,null,null,null,null,null,null,null,null,null,null,null,null,null,null,null,null,null,null,null,null,null,null,null,null,null,null,null,null,null,null,null,null,null,null,null,null,null,null,null,null,null,null,null,null,null,null,null,null,null,null,null,null,179.946561,179.94748899999999,179.94672700000001,179.95080100000001]
[null,null,null,null,null,null,null,null,null,null,null,null,null,null,null,null,null,null,null,null,null,null,null,null,null,"181",null,null,null,null,null,null,null,null,null,null,null,null,null,null,null,null,null,null,null,null,null,null,null,null,null,null,null,null,null,null,null,null,null,null,null,null,null,null,null,null,null,null,null,null,null,null,null,null,null,null,null,null,null,null,null,null,null,null,null,null,null,null,null,null,null,null,null,null,null,null,null,null,null,180.948014,180.948215,180.95015000000001]
[null,null,null,null,null,null,null,null,null,null,null,null,null,null,null,null,null,null,null,null,null,null,null,null,null,"182",null,null,null,null,null,null,null,null,null,null,null,null,null,null,null,null,null,null,null,null,null,null,null,null,null,null,null,null,null,null,null,null,null,null,null,null,null,null,null,null,null,null,null,null,null,null,null,null,null,null,null,null,null,null,null,null,null,null,null,null,null,null,null,null,null,null,null,null,null,null,null,null,null,181.95017000000001,181.94822500000001,181.95123000000001,181.95214000000001]
[null,null,null,null,null,null,null,null,null,null,null,null,null,null,null,null,null,null,null,null,null,null,null,null,null,"183",null,null,null,null,null,null,null,null,null,null,null,null,null,null,null,null,null,null,null,null,null,null,null,null,null,null,null,null,null,null,null,null,null,null,null,null,null,null,null,null,null,null,null,null,null,null,null,null,null,null,null,null,null,null,null,null,null,null,null,null,null,null,null,null,null,null,null,null,null,null,null,null,null,182.951391,182.950245,182.950841,182.95330999999999]
[null,null,null,null,null,null,null,null,null,null,null,null,null,null,null,null,null,null,null,null,null,null,null,null,null,"184",null,null,null,null,null,null,null,null,null,null,null,null,null,null,null,null,null,null,null,null,null,null,null,null,null,null,null,null,null,null,null,null,null,null,null,null,null,null,null,null,null,null,null,null,null,null,null,null,null,null,null,null,null,null,null,null,null,null,null,null,null,null,null,null,null,null,null,null,null,null,null,null,null,null,183.950953,183.95255900000001,183.95251400000001,183.95758000000001]
[null,null,null,null,null,null,null,null,null,null,null,null,null,null,null,null,null,null,null,null,null,null,null,null,null,"185",null,null,null,null,null,null,null,null,null,null,null,null,null,null,null,null,null,null,null,null,null,null,null,null,null,null,null,null,null,null,null,null,null,null,null,null,null,null,null,null,null,null,null,null,null,null,null,null,null,null,null,null,null,null,null,null,null,null,null,null,null,null,null,null,null,null,null,null,null,null,null,null,null,null,184.953441,184.952977,184.95406600000001,184.85675000000001,184.96082999999999]
[null,null,null,null,null,null,null,null,null,null,null,null,null,null,null,null,null,null,null,null,null,null,null,null,null,"186",null,null,null,null,null,null,null,null,null,null,null,null,null,null,null,null,null,null,null,null,null,null,null,null,null,null,null,null,null,null,null,null,null,null,null,null,null,null,null,null,null,null,null,null,null,null,null,null,null,null,null,null,null,null,null,null,null,null,null,null,null,null,null,null,null,null,null,null,null,null,null,null,null,null,185.95437699999999,185.95500799999999,185.95385200000001,185.957965,185.95939000000001]
[null,null,null,null,null,null,null,null,null,null,null,null,null,null,null,null,null,null,null,null,null,null,null,null,null,"187",null,null,null,null,null,null,null,null,null,null,null,null,null,null,null,null,null,null,null,null,null,null,null,null,null,null,null,null,null,null,null,null,null,null,null,null,null,null,null,null,null,null,null,null,null,null,null,null,null,null,null,null,null,null,null,null,null,null,null,null,null,null,null,null,null,null,null,null,null,null,null,null,null,null,null,186.95576500000001,186.95576199999999,186.95737,186.96048999999999]
[null,null,null,null,null,null,null,null,null,null,null,null,null,null,null,null,null,null,null,null,null,null,null,null,null,"188",null,null,null,null,null,null,null,null,null,null,null,null,null,null,null,null,null,null,null,null,null,null,null,null,null,null,null,null,null,null,null,null,null,null,null,null,null,null,null,null,null,null,null,null,null,null,null,null,null,null,null,null,null,null,null,null,null,null,null,null,null,null,null,null,null,null,null,null,null,null,null,null,null,null,null,187.95812599999999,187.95585,187.95885899999999,187.95943399999999]
[null,null,null,null,null,null,null,null,null,null,null,null,null,null,null,null,null,null,null,null,null,null,null,null,null,"189",null,null,null,null,null,null,null,null,null,null,null,null,null,null,null,null,null,null,null,null,null,null,null,null,null,null,null,null,null,null,null,null,null,null,null,null,null,null,null,null,null,null,null,null,null,null,null,null,null,null,null,null,null,null,null,null,null,null,null,null,null,null,null,null,null,null,null,null,null,null,null,null,null,null,null,188.959238,188.958156,188.95868999999999,188.96073999999999]
[null,null,null,null,null,null,null,null,null,null,null,null,null,null,null,null,null,null,null,null,null,null,null,null,null,"190",null,null,null,null,null,null,null,null,null,null,null,null,null,null,null,null,null,null,null,null,null,null,null,null,null,null,null,null,null,null,null,null,null,null,null,null,null,null,null,null,null,null,null,null,null,null,null,null,null,null,null,null,null,null,null,null,null,null,null,null,null,null,null,null,null,null,null,null,null,null,null,null,null,null,null,null,189.95845499999999,189.9606,189.959937,189.96470600000001]
[null,null,null,null,null,null,null,null,null,null,null,null,null,null,null,null,null,null,null,null,null,null,null,null,null,"191",null,null,null,null,null,null,null,null,null,null,null,null,null,null,null,null,null,null,null,null,null,null,null,null,null,null,null,null,null,null,null,null,null,null,null,null,null,null,null,null,null,null,null,null,null,null,null,null,null,null,null,null,null,null,null,null,null,null,null,null,null,null,null,null,null,null,null,null,null,null,null,null,null,null,null,null,190.960936,190.96060299999999,190.96167700000001,190.96364]
[null,null,null,null,null,null,null,null,null,null,null,null,null,null,null,null,null,null,null,null,null,null,null,null,null,"192",null,null,null,null,null,null,null,null,null,null,null,null,null,null,null,null,null,null,null,null,null,null,null,null,null,null,null,null,null,null,null,null,null,null,null,null,null,null,null,null,null,null,null,null,null,null,null,null,null,null,null,null,null,null,null,null,null,null,null,null,null,null,null,null,null,null,null,null,null,null,null,null,null,null,null,null,191.96148700000001,191.962613,191.961049,191.964823,191.96567999999999]
[null,null,null,null,null,null,null,null,null,null,null,null,null,null,null,null,null,null,null,null,null,null,null,null,null,"193",null,null,null,null,null,null,null,null,null,null,null,null,null,null,null,null,null,null,null,null,null,null,null,null,null,null,null,null,null,null,null,null,null,null,null,null,null,null,null,null,null,null,null,null,null,null,null,null,null,null,null,null,null,null,null,null,null,null,null,null,null,null,null,null,null,null,null,null,null,null,null,null,null,null,null,null,192.964158,192.962942,192.963008,192.96419,192.9667]
[null,null,null,null,null,null,null,null,null,null,null,null,null,null,null,null,null,null,null,null,null,null,null,null,null,"194",null,null,null,null,null,null,null,null,null,null,null,null,null,null,null,null,null,null,null,null,null,null,null,null,null,null,null,null,null,null,null,null,null,null,null,null,null,null,null,null,null,null,null,null,null,null,null,null,null,null,null,null,null,null,null,null,null,null,null,null,null,null,null,null,null,null,null,null,null,null,null,null,null,null,null,null,193.96519900000001,193.96509499999999,193.96267900000001,193.965372,193.96542600000001]
[null,null,null,null,null,null,null,null,null,null,null,null,null,null,null,null,null,null,null,null,null,null,null,null,null,"195",null,null,null,null,null,null,null,null,null,null,null,null,null,null,null,null,null,null,null,null,null,null,null,null,null,null,null,null,null,null,null,null,null,null,null,null,null,null,null,null,null,null,null,null,null,null,null,null,null,null,null,null,null,null,null,null,null,null,null,null,null,null,null,null,null,null,null,null,null,null,null,null,null,null,null,null,null,194.96597700000001,194.96478500000001,194.96503200000001,194.96665999999999]
[null,null,null,null,null,null,null,null,null,null,null,null,null,null,null,null,null,null,null,null,null,null,null,null,null,"196",null,null,null,null,null,null,null,null,null,null,null,null,null,null,null,null,null,null,null,null,null,null,null,null,null,null,null,null,null,null,null,null,null,null,null,null,null,null,null,null,null,null,null,null,null,null,null,null,null,null,null,null,null,null,null,null,null,null,null,null,null,null,null,null,null,null,null,null,null,null,null,null,null,null,null,null,null,null,195.964947,195.96654599999999,195.965812,195.97064]
[null,null,null,null,null,null,null,null,null,null,null,null,null,null,null,null,null,null,null,null,null,null,null,null,null,"197",null,null,null,null,null,null,null,null,null,null,null,null,null,null,null,null,null,null,null,null,null,null,null,null,null,null,null,null,null,null,null,null,null,null,null,null,null,null,null,null,null,null,null,null,null,null,null,null,null,null,null,null,null,null,null,null,null,null,null,null,null,null,null,null,null,null,null,null,null,null,null,null,null,null,null,null,null,null,196.967332,196.96655000000001,196.967005,196.96958000000001]
[null,null,null,null,null,null,null,null,null,null,null,null,null,null,null,null,null,null,null,null,null,null,null,null,null,"198",null,null,null,null,null,null,null,null,null,null,null,null,null,null,null,null,null,null,null,null,null,null,null,null,null,null,null,null,null,null,null,null,null,null,null,null,null,null,null,null,null,null,null,null,null,null,null,null,null,null,null,null,null,null,null,null,null,null,null,null,null,null,null,null,null,null,null,null,null,null,null,null,null,null,null,null,null,null,197.96789699999999,197.968233,197.96675999999999,197.97047000000001,197.97219000000001]
[null,null,null,null,null,null,null,null,null,null,null,null,null,null,null,null,null,null,null,null,null,null,null,null,null,"199",null,null,null,null,null,null,null,null,null,null,null,null,null,null,null,null,null,null,null,null,null,null,null,null,null,null,null,null,null,null,null,null,null,null,null,null,null,null,null,null,null,null,null,null,null,null,null,null,null,null,null,null,null,null,null,null,null,null,null,null,null,null,null,null,null,null,null,null,null,null,null,null,null,null,null,null,null,null,null,198.96875600000001,198.96826899999999,198.96985000000001,198.97286]
[null,null,null,null,null,null,null,null,null,null,null,null,null,null,null,null,null,null,null,null,null,null,null,null,null,"200",null,null,null,null,null,null,null,null,null,null,null,null,null,null,null,null,null,null,null,null,null,null,null,null,null,null,null,null,null,null,null,null,null,null,null,null,null,null,null,null,null,null,null,null,null,null,null,null,null,null,null,null,null,null,null,null,null,null,null,null,null,null,null,null,null,null,null,null,null,null,null,null,null,null,null,null,null,null,null,199.97068999999999,199.96831599999999,199.97094999999999,199.97192000000001]
[null,null,null,null,null,null,null,null,null,null,null,null,null,null,null,null,null,null,null,null,null,null,null,null,null,"201",null,null,null,null,null,null,null,null,null,null,null,null,null,null,null,null,null,null,null,null,null,null,null,null,null,null,null,null,null,null,null,null,null,null,null,null,null,null,null,null,null,null,null,null,null,null,null,null,null,null,null,null,null,null,null,null,null,null,null,null,null,null,null,null,null,null,null,null,null,null,null,null,null,null,null,null,null,null,null,200.97166000000001,200.970293,200.97081600000001,200.97281000000001]
[null,null,null,null,null,null,null,null,null,null,null,null,null,null,null,null,null,null,null,null,null,null,null,null,null,"202",null,null,null,null,null,null,null,null,null,null,null,null,null,null,null,null,null,null,null,null,null,null,null,null,null,null,null,null,null,null,null,null,null,null,null,null,null,null,null,null,null,null,null,null,null,null,null,null,null,null,null,null,null,null,null,null,null,null,null,null,null,null,null,null,null,null,null,null,null,null,null,null,null,null,null,null,null,null,null,null,201.97063199999999,201.97210100000001,201.97215]
[null,null,null,null,null,null,null,null,null,null,null,null,null,null,null,null,null,null,null,null,null,null,null,null,null,"203",null,null,null,null,null,null,null,null,null,null,null,null,null,null,null,null,null,null,null,null,null,null,null,null,null,null,null,null,null,null,null,null,null,null,null,null,null,null,null,null,null,null,null,null,null,null,null,null,null,null,null,null,null,null,null,null,null,null,null,null,null,null,null,null,null,null,null,null,null,null,null,null,null,null,null,null,null,null,null,null,202.97286399999999,202.97233600000001,202.97338199999999]
[null,null,null,null,null,null,null,null,null,null,null,null,null,null,null,null,null,null,null,null,null,null,null,null,null,"204",null,null,null,null,null,null,null,null,null,null,null,null,null,null,null,null,null,null,null,null,null,null,null,null,null,null,null,null,null,null,null,null,null,null,null,null,null,null,null,null,null,null,null,null,null,null,null,null,null,null,null,null,null,null,null,null,null,null,null,null,null,null,null,null,null,null,null,null,null,null,null,null,null,null,null,null,null,null,null,null,203.97348099999999,203.97385600000001,203.97303700000001,203.97765000000001]
[null,null,null,null,null,null,null,null,null,null,null,null,null,null,null,null,null,null,null,null,null,null,null,null,null,"205",null,null,null,null,null,null,null,null,null,null,null,null,null,null,null,null,null,null,null,null,null,null,null,null,null,null,null,null,null,null,null,null,null,null,null,null,null,null,null,null,null,null,null,null,null,null,null,null,null,null,null,null,null,null,null,null,null,null,null,null,null,null,null,null,null,null,null,null,null,null,null,null,null,null,null,null,null,null,null,null,null,204.97441000000001,204.97447500000001,204.97738100000001]
[null,null,null,null,null,null,null,null,null,null,null,null,null,null,null,null,null,null,null,null,null,null,null,null,null,"206",null,null,null,null,null,null,null,null,null,null,null,null,null,null,null,null,null,null,null,null,null,null,null,null,null,null,null,null,null,null,null,null,null,null,null,null,null,null,null,null,null,null,null,null,null,null,null,null,null,null,null,null,null,null,null,null,null,null,null,null,null,null,null,null,null,null,null,null,null,null,null,null,null,null,null,null,null,null,null,null,null,205.97609399999999,205.97445500000001,205.97849400000001,205.98047199999999]
[null,null,null,null,null,null,null,null,null,null,null,null,null,null,null,null,null,null,null,null,null,null,null,null,null,"207",null,null,null,null,null,null,null,null,null,null,null,null,null,null,null,null,null,null,null,null,null,null,null,null,null,null,null,null,null,null,null,null,null,null,null,null,null,null,null,null,null,null,null,null,null,null,null,null,null,null,null,null,null,null,null,null,null,null,null,null,null,null,null,null,null,null,null,null,null,null,null,null,null,null,null,null,null,null,null,null,null,null,206.97588500000001,206.97846699999999,206.98158900000001]
[null,null,null,null,null,null,null,null,null,null,null,null,null,null,null,null,null,null,null,null,null,null,null,null,null,"208",null,null,null,null,null,null,null,null,null,null,null,null,null,null,null,null,null,null,null,null,null,null,null,null,null,null,null,null,null,null,null,null,null,null,null,null,null,null,null,null,null,null,null,null,null,null,null,null,null,null,null,null,null,null,null,null,null,null,null,null,null,null,null,null,null,null,null,null,null,null,null,null,null,null,null,null,null,null,null,null,null,null,207.976641,207.97973300000001,207.98124000000001]
[null,null,null,null,null,null,null,null,null,null,null,null,null,null,null,null,null,null,null,null,null,null,null,null,null,"209",null,null,null,null,null,null,null,null,null,null,null,null,null,null,null,null,null,null,null,null,null,null,null,null,null,null,null,null,null,null,null,null,null,null,null,null,null,null,null,null,null,null,null,null,null,null,null,null,null,null,null,null,null,null,null,null,null,null,null,null,null,null,null,null,null,null,null,null,null,null,null,null,null,null,null,null,null,null,null,null,null,null,null,208.980388,208.98242200000001,208.986165]
[null,null,null,null,null,null,null,null,null,null,null,null,null,null,null,null,null,null,null,null,null,null,null,null,null,"210",null,null,null,null,null,null,null,null,null,null,null,null,null,null,null,null,null,null,null,null,null,null,null,null,null,null,null,null,null,null,null,null,null,null,null,null,null,null,null,null,null,null,null,null,null,null,null,null,null,null,null,null,null,null,null,null,null,null,null,null,null,null,null,null,null,null,null,null,null,null,null,null,null,null,null,null,null,null,null,null,null,null,209.98417799999999,209.98410999999999,209.98286400000001,209.987143,209.98968600000001]
[null,null,null,null,null,null,null,null,null,null,null,null,null,null,null,null,null,null,null,null,null,null,null,null,null,"211",null,null,null,null,null,null,null,null,null,null,null,null,null,null,null,null,null,null,null,null,null,null,null,null,null,null,null,null,null,null,null,null,null,null,null,null,null,null,null,null,null,null,null,null,null,null,null,null,null,null,null,null,null,null,null,null,null,null,null,null,null,null,null,null,null,null,null,null,null,null,null,null,null,null,null,null,null,null,null,null,null,null,null,210.98726300000001,210.98664099999999,210.98749000000001,210.99059500000001,210.99547000000001]
[null,null,null,null,null,null,null,null,null,null,null,null,null,null,null,null,null,null,null,null,null,null,null,null,null,"212",null,null,null,null,null,null,null,null,null,null,null,null,null,null,null,null,null,null,null,null,null,null,null,null,null,null,null,null,null,null,null,null,null,null,null,null,null,null,null,null,null,null,null,null,null,null,null,null,null,null,null,null,null,null,null,null,null,null,null,null,null,null,null,null,null,null,null,null,null,null,null,null,null,null,null,null,null,null,null,null,null,null,null,null,null,211.99074100000001,211.99069700000001,211.99603999999999]
[null,null,null,null,null,null,null,null,null,null,null,null,null,null,null,null,null,null,null,null,null,null,null,null,null,"213",null,null,null,null,null,null,null,null,null,null,null,null,null,null,null,null,null,null,null,null,null,null,null,null,null,null,null,null,null,null,null,null,null,null,null,null,null,null,null,null,null,null,null,null,null,null,null,null,null,null,null,null,null,null,null,null,null,null,null,null,null,null,null,null,null,null,null,null,null,null,null,null,null,null,null,null,null,null,null,null,null,null,null,null,null,212.99292600000001]
[null,null,null,null,null,null,null,null,null,null,null,null,null,null,null,null,null,null,null,null,null,null,null,null,null,"214",null,null,null,null,null,null,null,null,null,null,null,null,null,null,null,null,null,null,null,null,null,null,null,null,null,null,null,null,null,null,null,null,null,null,null,null,null,null,null,null,null,null,null,null,null,null,null,null,null,null,null,null,null,null,null,null,null,null,null,null,null,null,null,null,null,null,null,null,null,null,null,null,null,null,null,null,null,null,null,null,null,null,null,null,null,213.996362]
[null,null,null,null,null,null,null,null,null,null,null,null,null,null,null,null,null,null,null,null,null,null,null,null,null,"215",null,null,null,null,null,null,null,null,null,null,null,null,null,null,null,null,null,null,null,null,null,null,null,null,null,null,null,null,null,null,null,null,null,null,null,null,null,null,null,null,null,null,null,null,null,null,null,null,null,null,null,null,null,null,null,null,null,null,null,null,null,null,null,null,null,null,null,null,null,null,null,null,null,null,null,null,null,null,null,null,null,null,null,null,null,214.99864600000001]
[null,null,null,null,null,null,null,null,null,null,null,null,null,null,null,null,null,null,null,null,null,null,null,null,null,"216",null,null,null,null,null,null,null,null,null,null,null,null,null,null,null,null,null,null,null,null,null,null,null,null,null,null,null,null,null,null,null,null,null,null,null,null,null,null,null,null,null,null,null,null,null,null,null,null,null,null,null,null,null,null,null,null,null,null,null,null,null,null,null,null,null,null,null,null,null,null,null,null,null,null,null,null,null,null,null,null,null,null,null,null,null,216.00240099999999]
[null,null,null,null,null,null,null,null,null,null,null,null,null,null,null,null,null,null,null,null,null,null,null,null,null,"217",null,null,null,null,null,null,null,null,null,null,null,null,null,null,null,null,null,null,null,null,null,null,null,null,null,null,null,null,null,null,null,null,null,null,null,null,null,null,null,null,null,null,null,null,null,null,null,null,null,null,null,null,null,null,null,null,null,null,null,null,null,null,null,null,null,null,null,null,null,null,null,null,null,null,null,null,null,null,null,null,null,null,null,null,null,217.004704]
[null,null,null,null,null,null,null,null,null,null,null,null,null,null,null,null,null,null,null,null,null,null,null,null,null,"218",null,null,null,null,null,null,null,null,null,null,null,null,null,null,null,null,null,null,null,null,null,null,null,null,null,null,null,null,null,null,null,null,null,null,null,null,null,null,null,null,null,null,null,null,null,null,null,null,null,null,null,null,null,null,null,null,null,null,null,null,null,null,null,null,null,null,null,null,null,null,null,null,null,null,null,null,null,null,null,null,null,null,null,null,null,218.00869499999999]
[null,null,null,null,null,null,null,null,null,null,null,null,null,null,null,null,null,null,null,null,null,null,null,null,null,"219",null,null,null,null,null,null,null,null,null,null,null,null,null,null,null,null,null,null,null,null,null,null,null,null,null,null,null,null,null,null,null,null,null,null,null,null,null,null,null,null,null,null,null,null,null,null,null,null,null,null,null,null,null,null,null,null,null,null,null,null,null,null,null,null,null,null,null,null,null,null,null,null,null,null,null,null,null,null,null,null,null,null,null,null,null,219.01130000000001,219.009480102]
[null,null,null,null,null,null,null,null,null,null,null,null,null,null,null,null,null,null,null,null,null,null,null,null,null,"220",null,null,null,null,null,null,null,null,null,null,null,null,null,null,null,null,null,null,null,null,null,null,null,null,null,null,null,null,null,null,null,null,null,null,null,null,null,null,null,null,null,null,null,null,null,null,null,null,null,null,null,null,null,null,null,null,null,null,null,null,null,null,null,null,null,null,null,null,null,null,null,null,null,null,null,null,null,null,null,null,null,null,null,null,null,null,220.01137800000001]
[null,null,null,null,null,null,null,null,null,null,null,null,null,null,null,null,null,null,null,null,null,null,null,null,null,"221",null,null,null,null,null,null,null,null,null,null,null,null,null,null,null,null,null,null,null,null,null,null,null,null,null,null,null,null,null,null,null,null,null,null,null,null,null,null,null,null,null,null,null,null,null,null,null,null,null,null,null,null,null,null,null,null,null,null,null,null,null,null,null,null,null,null,null,null,null,null,null,null,null,null,null,null,null,null,null,null,null,null,null,null,null,null,221.01544000000001]
[null,null,null,null,null,null,null,null,null,null,null,null,null,null,null,null,null,null,null,null,null,null,null,null,null,"222",null,null,null,null,null,null,null,null,null,null,null,null,null,null,null,null,null,null,null,null,null,null,null,null,null,null,null,null,null,null,null,null,null,null,null,null,null,null,null,null,null,null,null,null,null,null,null,null,null,null,null,null,null,null,null,null,null,null,null,null,null,null,null,null,null,null,null,null,null,null,null,null,null,null,null,null,null,null,null,null,null,null,null,null,null,null,222.01760999999999,222.017539]
[null,null,null,null,null,null,null,null,null,null,null,null,null,null,null,null,null,null,null,null,null,null,null,null,null,"223",null,null,null,null,null,null,null,null,null,null,null,null,null,null,null,null,null,null,null,null,null,null,null,null,null,null,null,null,null,null,null,null,null,null,null,null,null,null,null,null,null,null,null,null,null,null,null,null,null,null,null,null,null,null,null,null,null,null,null,null,null,null,null,null,null,null,null,null,null,null,null,null,null,null,null,null,null,null,null,null,null,null,null,null,null,null,null,223.01975999999999,223.01853,223.01912999999999]
[null,null,null,null,null,null,null,null,null,null,null,null,null,null,null,null,null,null,null,null,null,null,null,null,null,"224",null,null,null,null,null,null,null,null,null,null,null,null,null,null,null,null,null,null,null,null,null,null,null,null,null,null,null,null,null,null,null,null,null,null,null,null,null,null,null,null,null,null,null,null,null,null,null,null,null,null,null,null,null,null,null,null,null,null,null,null,null,null,null,null,null,null,null,null,null,null,null,null,null,null,null,null,null,null,null,null,null,null,null,null,null,null,null,224.02331000000001,224.020196]
[null,null,null,null,null,null,null,null,null,null,null,null,null,null,null,null,null,null,null,null,null,null,null,null,null,"225",null,null,null,null,null,null,null,null,null,null,null,null,null,null,null,null,null,null,null,null,null,null,null,null,null,null,null,null,null,null,null,null,null,null,null,null,null,null,null,null,null,null,null,null,null,null,null,null,null,null,null,null,null,null,null,null,null,null,null,null,null,null,null,null,null,null,null,null,null,null,null,null,null,null,null,null,null,null,null,null,null,null,null,null,null,null,null,null,225.023604199,225.02323000000001,225.02395999999999]
[null,null,null,null,null,null,null,null,null,null,null,null,null,null,null,null,null,null,null,null,null,null,null,null,null,"226",null,null,null,null,null,null,null,null,null,null,null,null,null,null,null,null,null,null,null,null,null,null,null,null,null,null,null,null,null,null,null,null,null,null,null,null,null,null,null,null,null,null,null,null,null,null,null,null,null,null,null,null,null,null,null,null,null,null,null,null,null,null,null,null,null,null,null,null,null,null,null,null,null,null,null,null,null,null,null,null,null,null,null,null,null,null,null,null,226.02544,226.02608799999999,226.02492000000001,226.02789000000001]
[null,null,null,null,null,null,null,null,null,null,null,null,null,null,null,null,null,null,null,null,null,null,null,null,null,"227",null,null,null,null,null,null,null,null,null,null,null,null,null,null,null,null,null,null,null,null,null,null,null,null,null,null,null,null,null,null,null,null,null,null,null,null,null,null,null,null,null,null,null,null,null,null,null,null,null,null,null,null,null,null,null,null,null,null,null,null,null,null,null,null,null,null,null,null,null,null,null,null,null,null,null,null,null,null,null,null,null,null,null,null,null,null,null,null,null,227.02777,227.02772999999999,227.02879999999999]
[null,null,null,null,null,null,null,null,null,null,null,null,null,null,null,null,null,null,null,null,null,null,null,null,null,"228",null,null,null,null,null,null,null,null,null,null,null,null,null,null,null,null,null,null,null,null,null,null,null,null,null,null,null,null,null,null,null,null,null,null,null,null,null,null,null,null,null,null,null,null,null,null,null,null,null,null,null,null,null,null,null,null,null,null,null,null,null,null,null,null,null,null,null,null,null,null,null,null,null,null,null,null,null,null,null,null,null,null,null,null,null,null,null,null,null,228.03102000000001,228.02874,228.03101000000001]
[null,null,null,null,null,null,null,null,null,null,null,null,null,null,null,null,null,null,null,null,null,null,null,null,null,"229",null,null,null,null,null,null,null,null,null,null,null,null,null,null,null,null,null,null,null,null,null,null,null,null,null,null,null,null,null,null,null,null,null,null,null,null,null,null,null,null,null,null,null,null,null,null,null,null,null,null,null,null,null,null,null,null,null,null,null,null,null,null,null,null,null,null,null,null,null,null,null,null,null,null,null,null,null,null,null,null,null,null,null,null,null,null,null,null,null,229.03298000000001,229.03178,229.03210000000001]
[null,null,null,null,null,null,null,null,null,null,null,null,null,null,null,null,null,null,null,null,null,null,null,null,null,"230",null,null,null,null,null,null,null,null,null,null,null,null,null,null,null,null,null,null,null,null,null,null,null,null,null,null,null,null,null,null,null,null,null,null,null,null,null,null,null,null,null,null,null,null,null,null,null,null,null,null,null,null,null,null,null,null,null,null,null,null,null,null,null,null,null,null,null,null,null,null,null,null,null,null,null,null,null,null,null,null,null,null,null,null,null,null,null,null,null,null,230.03316000000001,230.03456]
[null,null,null,null,null,null,null,null,null,null,null,null,null,null,null,null,null,null,null,null,null,null,null,null,null,"231",null,null,null,null,null,null,null,null,null,null,null,null,null,null,null,null,null,null,null,null,null,null,null,null,null,null,null,null,null,null,null,null,null,null,null,null,null,null,null,null,null,null,null,null,null,null,null,null,null,null,null,null,null,null,null,null,null,null,null,null,null,null,null,null,null,null,null,null,null,null,null,null,null,null,null,null,null,null,null,null,null,null,null,null,null,null,null,null,null,null,231.03629856399999,231.0359,231.03630000000001,231.03829999999999]
[null,null,null,null,null,null,null,null,null,null,null,null,null,null,null,null,null,null,null,null,null,null,null,null,null,"232",null,null,null,null,null,null,null,null,null,null,null,null,null,null,null,null,null,null,null,null,null,null,null,null,null,null,null,null,null,null,null,null,null,null,null,null,null,null,null,null,null,null,null,null,null,null,null,null,null,null,null,null,null,null,null,null,null,null,null,null,null,null,null,null,null,null,null,null,null,null,null,null,null,null,null,null,null,null,null,null,null,null,null,null,null,null,null,null,null,null,232.03807,232.03857600000001,232.03715,232.04004]
[null,null,null,null,null,null,null,null,null,null,null,null,null,null,null,null,null,null,null,null,null,null,null,null,null,"233",null,null,null,null,null,null,null,null,null,null,null,null,null,null,null,null,null,null,null,null,null,null,null,null,null,null,null,null,null,null,null,null,null,null,null,null,null,null,null,null,null,null,null,null,null,null,null,null,null,null,null,null,null,null,null,null,null,null,null,null,null,null,null,null,null,null,null,null,null,null,null,null,null,null,null,null,null,null,null,null,null,null,null,null,null,null,null,null,null,null,null,233.040243702,233.03964999999999,233.04079999999999]
[null,null,null,null,null,null,null,null,null,null,null,null,null,null,null,null,null,null,null,null,null,null,null,null,null,"234",null,null,null,null,null,null,null,null,null,null,null,null,null,null,null,null,null,null,null,null,null,null,null,null,null,null,null,null,null,null,null,null,null,null,null,null,null,null,null,null,null,null,null,null,null,null,null,null,null,null,null,null,null,null,null,null,null,null,null,null,null,null,null,null,null,null,null,null,null,null,null,null,null,null,null,null,null,null,null,null,null,null,null,null,null,null,null,null,null,null,null,234.043316,234.04097999999999,234.042888]
[null,null,null,null,null,null,null,null,null,null,null,null,null,null,null,null,null,null,null,null,null,null,null,null,null,"235",null,null,null,null,null,null,null,null,null,null,null,null,null,null,null,null,null,null,null,null,null,null,null,null,null,null,null,null,null,null,null,null,null,null,null,null,null,null,null,null,null,null,null,null,null,null,null,null,null,null,null,null,null,null,null,null,null,null,null,null,null,null,null,null,null,null,null,null,null,null,null,null,null,null,null,null,null,null,null,null,null,null,null,null,null,null,null,null,null,null,null,235.04543000000001,235.04393999999999,235.04408000000001,234.04526999999999]
[null,null,null,null,null,null,null,null,null,null,null,null,null,null,null,null,null,null,null,null,null,null,null,null,null,"236",null,null,null,null,null,null,null,null,null,null,null,null,null,null,null,null,null,null,null,null,null,null,null,null,null,null,null,null,null,null,null,null,null,null,null,null,null,null,null,null,null,null,null,null,null,null,null,null,null,null,null,null,null,null,null,null,null,null,null,null,null,null,null,null,null,null,null,null,null,null,null,null,null,null,null,null,null,null,null,null,null,null,null,null,null,null,null,null,null,null,null,null,236.04558,236.04661999999999,236.046043]
[null,null,null,null,null,null,null,null,null,null,null,null,null,null,null,null,null,null,null,null,null,null,null,null,null,"237",null,null,null,null,null,null,null,null,null,null,null,null,null,null,null,null,null,null,null,null,null,null,null,null,null,null,null,null,null,null,null,null,null,null,null,null,null,null,null,null,null,null,null,null,null,null,null,null,null,null,null,null,null,null,null,null,null,null,null,null,null,null,null,null,null,null,null,null,null,null,null,null,null,null,null,null,null,null,null,null,null,null,null,null,null,null,null,null,null,null,null,null,237.04872642999999,237.04819000000001,237.04840200000001]
[null,null,null,null,null,null,null,null,null,null,null,null,null,null,null,null,null,null,null,null,null,null,null,null,null,"238",null,null,null,null,null,null,null,null,null,null,null,null,null,null,null,null,null,null,null,null,null,null,null,null,null,null,null,null,null,null,null,null,null,null,null,null,null,null,null,null,null,null,null,null,null,null,null,null,null,null,null,null,null,null,null,null,null,null,null,null,null,null,null,null,null,null,null,null,null,null,null,null,null,null,null,null,null,null,null,null,null,null,null,null,null,null,null,null,null,null,null,null,238.05081999999999,238.050942091,238.04955522700001]
[null,null,null,null,null,null,null,null,null,null,null,null,null,null,null,null,null,null,null,null,null,null,null,null,null,"239",null,null,null,null,null,null,null,null,null,null,null,null,null,null,null,null,null,null,null,null,null,null,null,null,null,null,null,null,null,null,null,null,null,null,null,null,null,null,null,null,null,null,null,null,null,null,null,null,null,null,null,null,null,null,null,null,null,null,null,null,null,null,null,null,null,null,null,null,null,null,null,null,null,null,null,null,null,null,null,null,null,null,null,null,null,null,null,null,null,null,null,null,239.05429100000001,239.052932196,239.05215778100001]
[null,null,null,null,null,null,null,null,null,null,null,null,null,null,null,null,null,null,null,null,null,null,null,null,null,"240",null,null,null,null,null,null,null,null,null,null,null,null,null,null,null,null,null,null,null,null,null,null,null,null,null,null,null,null,null,null,null,null,null,null,null,null,null,null,null,null,null,null,null,null,null,null,null,null,null,null,null,null,null,null,null,null,null,null,null,null,null,null,null,null,null,null,null,null,null,null,null,null,null,null,null,null,null,null,null,null,null,null,null,null,null,null,null,null,null,null,null,null,null,240.05605,240.05380865699999]
[null,null,null,null,null,null,null,null,null,null,null,null,null,null,null,null,null,null,null,null,null,null,null,null,null,241]

{"sheet":"Sheet1","index":2,"n_rows":0,"n_cols":0,"rows_kept":0,"cut":false,"hidden":false,"merged":[]}